PublisherLabel,PublisherURI,"Body name","Body","Service area","Service division","Responsible unit","Expenses type","Date","Transaction","Amount","Supplier name"
"Bracknell Forest Council","http://opendatacommunities.org/id/unitary-authority/bracknell-forest","Bracknell Forest Council","00MA","Non-School Funding","Pre-School Education","Neighbourhood Nursery","Catering Consumables",01/07/2010 00:00:00,"6419735",512.57,"3663"
"Bracknell Forest Council","http://opendatacommunities.org/id/unitary-authority/bracknell-forest","Bracknell Forest Council","00MA","Recreation, Sports and Leisure","Golf Courses","Leisure DSO - Downshire Catering","Cost of Goods Sold",31/08/2010 00:00:00,"6421114",2577.78,"3663"
"Bracknell Forest Council","http://opendatacommunities.org/id/unitary-authority/bracknell-forest","Bracknell Forest Council","00MA","Recreation, Sports and Leisure","Golf Courses","Leisure DSO - Downshire Catering","Cost of Goods Sold",31/08/2010 00:00:00,"6421114",575.29,"3663"
"Bracknell Forest Council","http://opendatacommunities.org/id/unitary-authority/bracknell-forest","Bracknell Forest Council","00MA","Recreation, Sports and Leisure","Retail Services, Catering & Licenced","Easthampstead Park Centre - Catering","Cost of Goods Sold",01/09/2010 00:00:00,"6421678",3169.88,"3663"
"Bracknell Forest Council","http://opendatacommunities.org/id/unitary-authority/bracknell-forest","Bracknell Forest Council","00MA","Recreation, Sports and Leisure","Indoor Sports & Recreation Facilities","Leisure Centre - Catering General","Cost of Goods Sold",01/09/2010 00:00:00,"6421858",2129.6,"3663"
"Bracknell Forest Council","http://opendatacommunities.org/id/unitary-authority/bracknell-forest","Bracknell Forest Council","00MA","Recreation, Sports and Leisure","Indoor Sports & Recreation Facilities","Coral Reef - Catering & Bar","Cost of Goods Sold",01/09/2010 00:00:00,"6422215",3595.22,"3663"
"Bracknell Forest Council","http://opendatacommunities.org/id/unitary-authority/bracknell-forest","Bracknell Forest Council","00MA","Mental Health Needs (Under 65)","Residential Care Home Placements","Residential Placements-Mental Illness","Contracted Services",06/09/2010 00:00:00,"30160451",4687.48,"2 CARE"
"Bracknell Forest Council","http://opendatacommunities.org/id/unitary-authority/bracknell-forest","Bracknell Forest Council","00MA","Mental Health Needs (Under 65)","Residential Care Home Placements","Residential Placements-Mental Illness","Contracted Services",06/09/2010 00:00:00,"30160451",2346,"2 CARE"
"Bracknell Forest Council","http://opendatacommunities.org/id/unitary-authority/bracknell-forest","Bracknell Forest Council","00MA","Mental Health Needs (Under 65)","Residential Care Home Placements","Residential Placements-Mental Illness","Contracted Services",28/09/2010 00:00:00,"30161409",4687.48,"2 CARE"
"Bracknell Forest Council","http://opendatacommunities.org/id/unitary-authority/bracknell-forest","Bracknell Forest Council","00MA","Mental Health Needs (Under 65)","Residential Care Home Placements","Residential Placements-Mental Illness","Contracted Services",28/09/2010 00:00:00,"30161409",2346,"2 CARE"
"Bracknell Forest Council","http://opendatacommunities.org/id/unitary-authority/bracknell-forest","Bracknell Forest Council","00MA","Waste Disposal","Disposal of Waste","London Road Tip","Consultants Fees",24/08/2010 00:00:00,"6422010",1200,"A BETTER SERVICE LTD"
"Bracknell Forest Council","http://opendatacommunities.org/id/unitary-authority/bracknell-forest","Bracknell Forest Council","00MA","Central Support Services - COF","Finance","Insurance Excess / Risk Management","Claims Paid",02/09/2010 00:00:00,"6420812",517.1,"A C NURDEN LTD"
"Bracknell Forest Council","http://opendatacommunities.org/id/unitary-authority/bracknell-forest","Bracknell Forest Council","00MA","-","-","Look Out, Edgbarrow/Sandhurst SC Plasma Screens","Office Equipment",15/07/2010 00:00:00,"6421469",3049,"AB AUDIO VISUAL LTD"
"Bracknell Forest Council","http://opendatacommunities.org/id/unitary-authority/bracknell-forest","Bracknell Forest Council","00MA","Supporting People","Supporting People","Supporting People Payments","Transfer Payments - Supporting People",06/09/2010 00:00:00,"6421090",8973.67,"ABILITY HOUSING ASSOCIATION"
"Bracknell Forest Council","http://opendatacommunities.org/id/unitary-authority/bracknell-forest","Bracknell Forest Council","00MA","Older People (Aged 65 or Over)","Direct Payments","Direct Payments - OP","Direct Payments to Clients",05/10/2010 00:00:00,"6423034",624.88,"REDACTED PERSONAL DATA"
"Bracknell Forest Council","http://opendatacommunities.org/id/unitary-authority/bracknell-forest","Bracknell Forest Council","00MA","Physical Disability/Sensory Impairment","Direct Payments","Direct Payments - PD","Direct Payments to Clients",05/10/2010 00:00:00,"6423062",759.56,"REDACTED PERSONAL DATA"
"Bracknell Forest Council","http://opendatacommunities.org/id/unitary-authority/bracknell-forest","Bracknell Forest Council","00MA","Family Support Services","Other Family Support Services","Direct Payments for Children","Direct Payments to Clients",16/09/2010 00:00:00,"6420388",563.12,"REDACTED PERSONAL DATA"
"Bracknell Forest Council","http://opendatacommunities.org/id/unitary-authority/bracknell-forest","Bracknell Forest Council","00MA","Physical Disability/Sensory Impairment","Direct Payments","Direct Payments - PD","Direct Payments to Clients",20/09/2010 00:00:00,"6422550",856.82,"REDACTED PERSONAL DATA"
"Bracknell Forest Council","http://opendatacommunities.org/id/unitary-authority/bracknell-forest","Bracknell Forest Council","00MA","Physical Disability/Sensory Impairment","Direct Payments","Direct Payments - PD","Direct Payments to Clients",05/10/2010 00:00:00,"6423067",1799.68,"REDACTED PERSONAL DATA"
"Bracknell Forest Council","http://opendatacommunities.org/id/unitary-authority/bracknell-forest","Bracknell Forest Council","00MA","Older People (Aged 65 or Over)","Direct Payments","Direct Payments - OP","Direct Payments to Clients",05/10/2010 00:00:00,"6423072",1520.8,"REDACTED PERSONAL DATA"
"Bracknell Forest Council","http://opendatacommunities.org/id/unitary-authority/bracknell-forest","Bracknell Forest Council","00MA","Older People (Aged 65 or Over)","Direct Payments","Direct Payments - OP","Direct Payments to Clients",05/10/2010 00:00:00,"6423037",861.68,"REDACTED PERSONAL DATA"
"Bracknell Forest Council","http://opendatacommunities.org/id/unitary-authority/bracknell-forest","Bracknell Forest Council","00MA","Physical Disability/Sensory Impairment","Direct Payments","Direct Payments - PD","Direct Payments to Clients",05/10/2010 00:00:00,"6423088",1344.8,"REDACTED PERSONAL DATA"
"Bracknell Forest Council","http://opendatacommunities.org/id/unitary-authority/bracknell-forest","Bracknell Forest Council","00MA","Non-School Funding","Pre-School Education","SSEYCG Sufficiency & Access","Grants and Donations",23/08/2010 00:00:00,"6420592",600,"MRS S L FLETCHER"
"Bracknell Forest Council","http://opendatacommunities.org/id/unitary-authority/bracknell-forest","Bracknell Forest Council","00MA","Children Looked After (CLA)","Children's Homes","Children's Home Placements","Contracted Services",27/08/2010 00:00:00,"6421666",20000,"MRS S WIGHTWICK"
"Bracknell Forest Council","http://opendatacommunities.org/id/unitary-authority/bracknell-forest","Bracknell Forest Council","00MA","Children Looked After (CLA)","Children's Homes","Children's Home Placements","Contracted Services",27/08/2010 00:00:00,"6421672",10600,"MRS S WIGHTWICK"
"Bracknell Forest Council","http://opendatacommunities.org/id/unitary-authority/bracknell-forest","Bracknell Forest Council","00MA","Physical Disability/Sensory Impairment","Direct Payments","Direct Payments - PD","Direct Payments to Clients",05/10/2010 00:00:00,"6423063",1812.2,"REDACTED PERSONAL DATA"
"Bracknell Forest Council","http://opendatacommunities.org/id/unitary-authority/bracknell-forest","Bracknell Forest Council","00MA","Physical Disability/Sensory Impairment","Direct Payments","Direct Payments - PD","Direct Payments to Clients",05/10/2010 00:00:00,"6423099",914.4,"REDACTED PERSONAL DATA"
"Bracknell Forest Council","http://opendatacommunities.org/id/unitary-authority/bracknell-forest","Bracknell Forest Council","00MA","Other Adult Services","Other Adult Services","Other NHS Assistance","Other Support to Clients",01/09/2010 00:00:00,"6420869",640,"REDACTED PERSONAL DATA"
"Bracknell Forest Council","http://opendatacommunities.org/id/unitary-authority/bracknell-forest","Bracknell Forest Council","00MA","Recreation, Sports and Leisure","Indoor Sports & Recreation Facilities","Leisure DSO - Leisure Centre","Other Fees for Bought-in Services",26/08/2010 00:00:00,"6423322",792,"ACESTARS LTD"
"Bracknell Forest Council","http://opendatacommunities.org/id/unitary-authority/bracknell-forest","Bracknell Forest Council","00MA","Older People (Aged 65 or Over)","Nursing Home Placements","Nursing Home Placements-Elderly","Contracted Services",06/09/2010 00:00:00,"30160451",2203.88,"ACORN HEALTHCARE LTD T/A ACORN LODGE NURSING CARE"
"Bracknell Forest Council","http://opendatacommunities.org/id/unitary-authority/bracknell-forest","Bracknell Forest Council","00MA","Older People (Aged 65 or Over)","Nursing Home Placements","Nursing Home Placements-Elderly","Contracted Services",28/09/2010 00:00:00,"30161409",2203.88,"ACORN HEALTHCARE LTD T/A ACORN LODGE NURSING CARE"
"Bracknell Forest Council","http://opendatacommunities.org/id/unitary-authority/bracknell-forest","Bracknell Forest Council","00MA","Children Looked After (CLA)","Children's Homes","Children's Home Placements","Contracted Services",06/09/2010 00:00:00,"6421735",11571.3,"ACTIVE8 CARE LTD"
"Bracknell Forest Council","http://opendatacommunities.org/id/unitary-authority/bracknell-forest","Bracknell Forest Council","00MA","Recreation, Sports and Leisure","Golf Courses","Leisure DSO - Downshire Golf Shop","Cost of Goods Sold",14/04/2010 00:00:00,"6421342",1597.59,"ACUSHNET LIMITED"
"Bracknell Forest Council","http://opendatacommunities.org/id/unitary-authority/bracknell-forest","Bracknell Forest Council","00MA","Recreation, Sports and Leisure","Golf Courses","Leisure DSO - Downshire Golf Shop","Cost of Goods Sold",06/05/2010 00:00:00,"6421344",873,"ACUSHNET LIMITED"
"Bracknell Forest Council","http://opendatacommunities.org/id/unitary-authority/bracknell-forest","Bracknell Forest Council","00MA","Recreation, Sports and Leisure","Golf Courses","Leisure DSO - Downshire Golf Shop","Cost of Goods Sold",07/07/2010 00:00:00,"6421347",1818.9,"ACUSHNET LIMITED"
"Bracknell Forest Council","http://opendatacommunities.org/id/unitary-authority/bracknell-forest","Bracknell Forest Council","00MA","Planning Policy","Structure & Local Planning","Local Development framework","Consultants Fees",30/07/2010 00:00:00,"6420839",2265.46,"ADAMS HENDRY CONSULTING LTD"
"Bracknell Forest Council","http://opendatacommunities.org/id/unitary-authority/bracknell-forest","Bracknell Forest Council","00MA","Planning Policy","Structure & Local Planning","Local Development framework","Consultants Fees",31/08/2010 00:00:00,"6422892",1287.91,"ADAMS HENDRY CONSULTING LTD"
"Bracknell Forest Council","http://opendatacommunities.org/id/unitary-authority/bracknell-forest","Bracknell Forest Council","00MA","Learning Disability (under 65)","Direct Payments - LD","Direct Payments - LD","Direct Payments to Clients",05/10/2010 00:00:00,"6422960",1001.19,"REDACTED PERSONAL DATA"
"Bracknell Forest Council","http://opendatacommunities.org/id/unitary-authority/bracknell-forest","Bracknell Forest Council","00MA","Central Support Services - COF","Construction and Property","Easthampstead & Seymour House","Security Systems",01/09/2010 00:00:00,"6421796",1001.61,"ADT FIRE AND SECURITY"
"Bracknell Forest Council","http://opendatacommunities.org/id/unitary-authority/bracknell-forest","Bracknell Forest Council","00MA","Central Support Services - COF","Construction and Property","Easthampstead & Seymour House","Security Systems",01/09/2010 00:00:00,"6421797",1309.68,"ADT FIRE AND SECURITY"
"Bracknell Forest Council","http://opendatacommunities.org/id/unitary-authority/bracknell-forest","Bracknell Forest Council","00MA","Central Support Services - COF","Construction and Property","Depot Facilities","Security Systems",01/09/2010 00:00:00,"6421798",1833.88,"ADT FIRE AND SECURITY"
"Bracknell Forest Council","http://opendatacommunities.org/id/unitary-authority/bracknell-forest","Bracknell Forest Council","00MA","Physical Disability/Sensory Impairment","Direct Payments","Direct Payments - PD","Direct Payments to Clients",05/10/2010 00:00:00,"6423038",1171.67,"REDACTED PERSONAL DATA"
"Bracknell Forest Council","http://opendatacommunities.org/id/unitary-authority/bracknell-forest","Bracknell Forest Council","00MA","Older People (Aged 65 or Over)","Assessment & Care Management","Emergency Duty Team (Out of Hours Serv)","Agency",31/08/2010 00:00:00,"6420821",1842.61,"REDACTED PERSONAL DATA"
"Bracknell Forest Council","http://opendatacommunities.org/id/unitary-authority/bracknell-forest","Bracknell Forest Council","00MA","Vehicles &  Plant","Vehicles and Plant Summary Account","Vehicles and Plant","Vehicle Repairs",26/08/2010 00:00:00,"6421638",1674.43,"MTF CAR BODY REPAIRS"
"Bracknell Forest Council","http://opendatacommunities.org/id/unitary-authority/bracknell-forest","Bracknell Forest Council","00MA","Non-School Funding","Youth Services","Prestwood Transitions","Youth & Community Activities",26/08/2010 00:00:00,"6421638",500,"MTF CAR BODY REPAIRS"
"Bracknell Forest Council","http://opendatacommunities.org/id/unitary-authority/bracknell-forest","Bracknell Forest Council","00MA","Children Looked After (CLA)","Fostering Services","Independent Fostering (Non BFBC)","Contracted Services",31/08/2010 00:00:00,"6421686",2425.71,"NATIONAL FOSTERING AGENCY"
"Bracknell Forest Council","http://opendatacommunities.org/id/unitary-authority/bracknell-forest","Bracknell Forest Council","00MA","Education Management & Support Service","School Related Expenditure","Consortium Support Grant (Diplomas)","Other Fees for Bought-in Services",09/09/2010 00:00:00,"6422250",777,"NATIONAL TRAINING RESOURCES LTD"
"Bracknell Forest Council","http://opendatacommunities.org/id/unitary-authority/bracknell-forest","Bracknell Forest Council","00MA","Service Management & Support Services","Service Management & Support Services","Departmental IT","Computer Software Maintenance",18/08/2010 00:00:00,"6421199",755,"NCC SERVICES LIMITED"
"Bracknell Forest Council","http://opendatacommunities.org/id/unitary-authority/bracknell-forest","Bracknell Forest Council","00MA","Central Support Services - COF","Information Technology","Business Services","Licences",01/09/2010 00:00:00,"6421728",3562.09,"NEDSTAT LTD"
"Bracknell Forest Council","http://opendatacommunities.org/id/unitary-authority/bracknell-forest","Bracknell Forest Council","00MA","Learning Disability (under 65)","Direct Payments - LD","Direct Payments - LD","Direct Payments to Clients",05/10/2010 00:00:00,"6423069",607.8,"REDACTED PERSONAL DATA"
"Bracknell Forest Council","http://opendatacommunities.org/id/unitary-authority/bracknell-forest","Bracknell Forest Council","00MA","Holding Accounts in Budget Book COF","Corporate Services - Office Services","Postal Services","Postage",16/09/2010 00:00:00,"6422239",7000,"NEOPOST  LTD RCB CREDIFON RCB ACCOUNT 239155"
"Bracknell Forest Council","http://opendatacommunities.org/id/unitary-authority/bracknell-forest","Bracknell Forest Council","00MA","Holding Accounts in Budget Book COF","Corporate Services - Office Services","Postal Services","Postage",28/09/2010 00:00:00,"6423675",7000,"NEOPOST  LTD RCB CREDIFON RCB ACCOUNT 239155"
"Bracknell Forest Council","http://opendatacommunities.org/id/unitary-authority/bracknell-forest","Bracknell Forest Council","00MA","Holding Accounts in Budget Book COF","Corporate Services - Office Services","Postal Services","Materials",06/09/2010 00:00:00,"6422095",511.96,"NEOPOST LTD"
"Bracknell Forest Council","http://opendatacommunities.org/id/unitary-authority/bracknell-forest","Bracknell Forest Council","00MA","-","-","ICT Maint Prog - Photocopiers","Office Equipment",06/08/2010 00:00:00,"6421313",8768,"NEW RICOH UK"
"Bracknell Forest Council","http://opendatacommunities.org/id/unitary-authority/bracknell-forest","Bracknell Forest Council","00MA","Service Management & Support Services","Service Management & Support Services","Departmental Administration","Staff Public Transport Fares",29/09/2010 00:00:00,"70005162",2500,"REDACTED PERSONAL DATA"
"Bracknell Forest Council","http://opendatacommunities.org/id/unitary-authority/bracknell-forest","Bracknell Forest Council","00MA","Waste Disposal","Disposal of Waste","London Road Tip","Consultants Fees",01/09/2010 00:00:00,"6420992",1219,"AEA TECHNOLOGY ENVIRONMENT"
"Bracknell Forest Council","http://opendatacommunities.org/id/unitary-authority/bracknell-forest","Bracknell Forest Council","00MA","Waste Disposal","Disposal of Waste","London Road Tip","Consultants Fees",01/09/2010 00:00:00,"6420993",2155,"AEA TECHNOLOGY ENVIRONMENT"
"Bracknell Forest Council","http://opendatacommunities.org/id/unitary-authority/bracknell-forest","Bracknell Forest Council","00MA","-","-","London Road Gas Migration Controls","Construction - Other Direct Expenses",01/09/2010 00:00:00,"6420994",6907,"AEA TECHNOLOGY ENVIRONMENT"
"Bracknell Forest Council","http://opendatacommunities.org/id/unitary-authority/bracknell-forest","Bracknell Forest Council","00MA","Open Spaces","Countryside Recreation & Management","Longhill Gas Monitoring","Consultants Fees",01/09/2010 00:00:00,"6421039",2234,"AEA TECHNOLOGY ENVIRONMENT"
"Bracknell Forest Council","http://opendatacommunities.org/id/unitary-authority/bracknell-forest","Bracknell Forest Council","00MA","-","-","14-19 Diplomas Wick Hill","Consultant Fees",25/08/2010 00:00:00,"6421225",5000,"AECOM"
"Bracknell Forest Council","http://opendatacommunities.org/id/unitary-authority/bracknell-forest","Bracknell Forest Council","00MA","-","-","Garth Hill - Client Fees","Consultant Fees",23/08/2010 00:00:00,"6421768",8000,"AECOM"
"Bracknell Forest Council","http://opendatacommunities.org/id/unitary-authority/bracknell-forest","Bracknell Forest Council","00MA","-","-","Garth Hill - Client Fees","Consultant Fees",08/09/2010 00:00:00,"6422080",7000,"AECOM"
"Bracknell Forest Council","http://opendatacommunities.org/id/unitary-authority/bracknell-forest","Bracknell Forest Council","00MA","-","-","14-19 Diplomas Wick Hill","Consultant Fees",08/09/2010 00:00:00,"6422189",5000,"AECOM"
"Bracknell Forest Council","http://opendatacommunities.org/id/unitary-authority/bracknell-forest","Bracknell Forest Council","00MA","-","-","14-19 Diplomas Wick Hill","Consultant Fees",09/07/2010 00:00:00,"6422876",4800,"AECOM"
"Bracknell Forest Council","http://opendatacommunities.org/id/unitary-authority/bracknell-forest","Bracknell Forest Council","00MA","Learning Disability (under 65)","Residential Care Home Placements","Residential Placements-Lrng Disab","Contracted Services",06/09/2010 00:00:00,"30160451",4760,"AFFINITY TRUST"
"Bracknell Forest Council","http://opendatacommunities.org/id/unitary-authority/bracknell-forest","Bracknell Forest Council","00MA","Learning Disability (under 65)","Residential Care Home Placements","Residential Placements-Lrng Disab","Contracted Services",28/09/2010 00:00:00,"30161409",4760,"AFFINITY TRUST"
"Bracknell Forest Council","http://opendatacommunities.org/id/unitary-authority/bracknell-forest","Bracknell Forest Council","00MA","Recreation, Sports and Leisure","Indoor Sports & Recreation Facilities","Leisure DSO - Leisure Centre Maintenance","Swimming Pool Chemicals",30/08/2010 00:00:00,"6421842",1993.23,"AIR PRODUCTS PLC"
"Bracknell Forest Council","http://opendatacommunities.org/id/unitary-authority/bracknell-forest","Bracknell Forest Council","00MA","Learning Disability (under 65)","Residential Care Home Placements","Residential Placements-Lrng Disab","Contracted Services",06/09/2010 00:00:00,"30160451",8679.29,"AITCH CARE HOMES (LONDON) LTD"
"Bracknell Forest Council","http://opendatacommunities.org/id/unitary-authority/bracknell-forest","Bracknell Forest Council","00MA","Learning Disability (under 65)","Residential Care Home Placements","Residential Placements-Lrng Disab","Contracted Services",28/09/2010 00:00:00,"30161409",8380,"AITCH CARE HOMES (LONDON) LTD"
"Bracknell Forest Council","http://opendatacommunities.org/id/unitary-authority/bracknell-forest","Bracknell Forest Council","00MA","Central Support Services - COF","Finance","Technical Accountancy","Computer Software Maintenance",20/08/2010 00:00:00,"6421152",2490,"ALBANY SOFTWARE LIMITED"
"Bracknell Forest Council","http://opendatacommunities.org/id/unitary-authority/bracknell-forest","Bracknell Forest Council","00MA","-","-","Financial Systems Version Upgrade","IT Software",20/08/2010 00:00:00,"6421152",995,"ALBANY SOFTWARE LIMITED"
"Bracknell Forest Council","http://opendatacommunities.org/id/unitary-authority/bracknell-forest","Bracknell Forest Council","00MA","Service Management & Support Services","Service Management & Support Services","Departmental Administration","Staff Public Transport Fares",29/09/2010 00:00:00,"70005165",-2500,"REDACTED PERSONAL DATA"
"Bracknell Forest Council","http://opendatacommunities.org/id/unitary-authority/bracknell-forest","Bracknell Forest Council","00MA","Recreation, Sports and Leisure","Golf Courses","Leisure DSO - Downshire Golf Shop","Cost of Goods Sold",26/02/2010 00:00:00,"6421080",511.2,"NIKE EUROPEAN OPERATIONS NETHERLANDS B.V."
"Bracknell Forest Council","http://opendatacommunities.org/id/unitary-authority/bracknell-forest","Bracknell Forest Council","00MA","Recreation, Sports and Leisure","Golf Courses","Leisure DSO - Downshire Golf Shop","Cost of Goods Sold",20/08/2010 00:00:00,"6423203",1277.04,"NIKE EUROPEAN OPERATIONS NETHERLANDS B.V."
"Bracknell Forest Council","http://opendatacommunities.org/id/unitary-authority/bracknell-forest","Bracknell Forest Council","00MA","Recreation, Sports and Leisure","Golf Courses","Leisure DSO - Downshire Golf Shop","Cost of Goods Sold",20/08/2010 00:00:00,"6423204",1037.7,"NIKE EUROPEAN OPERATIONS NETHERLANDS B.V."
"Bracknell Forest Council","http://opendatacommunities.org/id/unitary-authority/bracknell-forest","Bracknell Forest Council","00MA","-","-","Easthampstead Park Replacement Telephone System","IT Hardware",23/08/2010 00:00:00,"6420588",945.69,"NIMANS LTD"
"Bracknell Forest Council","http://opendatacommunities.org/id/unitary-authority/bracknell-forest","Bracknell Forest Council","00MA","-","-","Replacement Revenue & Benefits System","Other Direct Expenses",06/09/2010 00:00:00,"6421627",4000,"NORTHGATE {USE 507074}"
"Bracknell Forest Council","http://opendatacommunities.org/id/unitary-authority/bracknell-forest","Bracknell Forest Council","00MA","-","-","Replacement Revenue & Benefits System","IT Software",15/09/2010 00:00:00,"6422720",1150,"NORTHGATE {USE 507074}"
"Bracknell Forest Council","http://opendatacommunities.org/id/unitary-authority/bracknell-forest","Bracknell Forest Council","00MA","Mental Health Needs (Under 65)","Nursing Home Placements","Nursing Home Placements-Mental Illness","Contracted Services",06/09/2010 00:00:00,"30160451",2600,"NORTHWOOD NURSING HOME"
"Bracknell Forest Council","http://opendatacommunities.org/id/unitary-authority/bracknell-forest","Bracknell Forest Council","00MA","Mental Health Needs (Under 65)","Nursing Home Placements","Nursing Home Placements-Mental Illness","Contracted Services",28/09/2010 00:00:00,"30161409",2600,"NORTHWOOD NURSING HOME"
"Bracknell Forest Council","http://opendatacommunities.org/id/unitary-authority/bracknell-forest","Bracknell Forest Council","00MA","Family Support Services","Other Family Support Services","Children's Disabilities Care Needs","Voluntary Sector Service Providers",08/09/2010 00:00:00,"6422332",1532.85,"NURSERY STAFF LTD"
"Bracknell Forest Council","http://opendatacommunities.org/id/unitary-authority/bracknell-forest","Bracknell Forest Council","00MA","Family Support Services","Other Family Support Services","Children's Disabilities Care Needs","Voluntary Sector Service Providers",08/09/2010 00:00:00,"6422333",1042.93,"NURSERY STAFF LTD"
"Bracknell Forest Council","http://opendatacommunities.org/id/unitary-authority/bracknell-forest","Bracknell Forest Council","00MA","Older People (Aged 65 or Over)","Residential Care Home Placements","Elderly  Respite Care","Contracted Services",07/09/2010 00:00:00,"30160470",1819.12,"OAK HOUSE"
"Bracknell Forest Council","http://opendatacommunities.org/id/unitary-authority/bracknell-forest","Bracknell Forest Council","00MA","Physical Disability/Sensory Impairment","Residential Care Home Placements","Residential Placements-Phys Disab","Contracted Services",06/09/2010 00:00:00,"30160451",2345.08,"OAKFOIL LTD"
"Bracknell Forest Council","http://opendatacommunities.org/id/unitary-authority/bracknell-forest","Bracknell Forest Council","00MA","Physical Disability/Sensory Impairment","Residential Care Home Placements","Residential Placements-Phys Disab","Contracted Services",28/09/2010 00:00:00,"30161409",2345.08,"OAKFOIL LTD"
"Bracknell Forest Council","http://opendatacommunities.org/id/unitary-authority/bracknell-forest","Bracknell Forest Council","00MA","Holding Accounts in Budget Book COF","Corporate Serv - Reprographics & Printing","Reprographics & Printing","Equipment - R&M",20/08/2010 00:00:00,"6422098",3170.04,"OCE (UK) LTD"
"Bracknell Forest Council","http://opendatacommunities.org/id/unitary-authority/bracknell-forest","Bracknell Forest Council","00MA","-","-","Balance Sheet","Flexible Benefits Control Account",23/08/2010 00:00:00,"6420601",5000,"OCTAGON MOTOR COMPANY"
"Bracknell Forest Council","http://opendatacommunities.org/id/unitary-authority/bracknell-forest","Bracknell Forest Council","00MA","Central Support Services - COF","Legal","Legal Services","Legal Fees",04/08/2010 00:00:00,"6421009",4275,"OLIVER HYAMS"
"Bracknell Forest Council","http://opendatacommunities.org/id/unitary-authority/bracknell-forest","Bracknell Forest Council","00MA","Older People (Aged 65 or Over)","Home Care","Home Care-Elderly","Contracted Services",07/09/2010 00:00:00,"30160470",3937,"OM CARE T/A CAREMARK WOKINGHAM"
"Bracknell Forest Council","http://opendatacommunities.org/id/unitary-authority/bracknell-forest","Bracknell Forest Council","00MA","Older People (Aged 65 or Over)","Home Care","Home Care-Elderly","Contracted Services",07/09/2010 00:00:00,"30160470",6711.8,"OM CARE T/A CAREMARK WOKINGHAM"
"Bracknell Forest Council","http://opendatacommunities.org/id/unitary-authority/bracknell-forest","Bracknell Forest Council","00MA","Older People (Aged 65 or Over)","Home Care","Home Care-Elderly","Contracted Services",07/09/2010 00:00:00,"30160470",3394,"OM CARE T/A CAREMARK WOKINGHAM"
"Bracknell Forest Council","http://opendatacommunities.org/id/unitary-authority/bracknell-forest","Bracknell Forest Council","00MA","Older People (Aged 65 or Over)","Home Care","Home Care-Elderly","Contracted Services",07/09/2010 00:00:00,"30160470",1116,"OM CARE T/A CAREMARK WOKINGHAM"
"Bracknell Forest Council","http://opendatacommunities.org/id/unitary-authority/bracknell-forest","Bracknell Forest Council","00MA","Older People (Aged 65 or Over)","Home Care","Home Care-Elderly","Contracted Services",07/09/2010 00:00:00,"30160470",2426.4,"OM CARE T/A CAREMARK WOKINGHAM"
"Bracknell Forest Council","http://opendatacommunities.org/id/unitary-authority/bracknell-forest","Bracknell Forest Council","00MA","Older People (Aged 65 or Over)","Home Care","Home Care-Elderly","Contracted Services",07/09/2010 00:00:00,"30160470",2410.2,"OM CARE T/A CAREMARK WOKINGHAM"
"Bracknell Forest Council","http://opendatacommunities.org/id/unitary-authority/bracknell-forest","Bracknell Forest Council","00MA","Older People (Aged 65 or Over)","Home Care","Home Care-Elderly","Contracted Services",07/09/2010 00:00:00,"30160470",2512.8,"OM CARE T/A CAREMARK WOKINGHAM"
"Bracknell Forest Council","http://opendatacommunities.org/id/unitary-authority/bracknell-forest","Bracknell Forest Council","00MA","Physical Disability/Sensory Impairment","Homecare","Home Care-Phys Disab","Contracted Services",07/09/2010 00:00:00,"30160470",5385.6,"OM CARE T/A CAREMARK WOKINGHAM"
"Bracknell Forest Council","http://opendatacommunities.org/id/unitary-authority/bracknell-forest","Bracknell Forest Council","00MA","Supporting People","Supporting People","Supporting People Payments","Transfer Payments - Supporting People",06/09/2010 00:00:00,"6421101",36650.32,"ONE SUPPORT"
"Bracknell Forest Council","http://opendatacommunities.org/id/unitary-authority/bracknell-forest","Bracknell Forest Council","00MA","Central Support Services - COF","Information Technology","Technical  Services","Contracted Services",23/08/2010 00:00:00,"6420841",933.95,"OPEN TEXT UK LTD"
"Bracknell Forest Council","http://opendatacommunities.org/id/unitary-authority/bracknell-forest","Bracknell Forest Council","00MA","Education Management & Support Service","Standards Fund","SF1.10 Early Years - Extension of Free Entitlement","Grants and Donations",09/09/2010 00:00:00,"6421647",819,"OWLSMOOR PRE-SCHOOL"
"Bracknell Forest Council","http://opendatacommunities.org/id/unitary-authority/bracknell-forest","Bracknell Forest Council","00MA","Service Management & Support Services","Service Management & Support Services","Training - Housing","Training Costs",25/08/2010 00:00:00,"6420691",891,"OXFORD COMPUTER CONSULTANTS LTD"
"Bracknell Forest Council","http://opendatacommunities.org/id/unitary-authority/bracknell-forest","Bracknell Forest Council","00MA","Open Spaces","Countryside Recreation & Management","Countryside Sites - Maintenance","R&M - Planned",17/09/2010 00:00:00,"6423237",550,"P A TREE CARE LTD"
"Bracknell Forest Council","http://opendatacommunities.org/id/unitary-authority/bracknell-forest","Bracknell Forest Council","00MA","Holding Accounts","Landscape Services","Landscape Services Operational","Gas Oil",16/07/2010 00:00:00,"6420819",878.04,"PACE FUELCARE LTD"
"Bracknell Forest Council","http://opendatacommunities.org/id/unitary-authority/bracknell-forest","Bracknell Forest Council","00MA","Older People (Aged 65 or Over)","Residential Care Home Placements","Heathlands EPH","Oil",25/08/2010 00:00:00,"6422221",510.9,"PACE FUELCARE LTD"
"Bracknell Forest Council","http://opendatacommunities.org/id/unitary-authority/bracknell-forest","Bracknell Forest Council","00MA","-","-","Network Refresh","IT Hardware",13/08/2010 00:00:00,"6420705",996.47,"PADCO"
"Bracknell Forest Council","http://opendatacommunities.org/id/unitary-authority/bracknell-forest","Bracknell Forest Council","00MA","Learning Disability (under 65)","Residential Care Home Placements","Sec 28A - Rsdntl Plcmnts - Learning Disa","Contracted Services",06/09/2010 00:00:00,"30160451",5637.64,"PALM CARE LIMITED"
"Bracknell Forest Council","http://opendatacommunities.org/id/unitary-authority/bracknell-forest","Bracknell Forest Council","00MA","Learning Disability (under 65)","Residential Care Home Placements","Sec 28A - Rsdntl Plcmnts - Learning Disa","Contracted Services",28/09/2010 00:00:00,"30161409",5637.64,"PALM CARE LIMITED"
"Bracknell Forest Council","http://opendatacommunities.org/id/unitary-authority/bracknell-forest","Bracknell Forest Council","00MA","Recreation, Sports and Leisure","Indoor Sports & Recreation Facilities","Coral Reef - Catering & Bar","Cost of Goods Sold",17/09/2010 00:00:00,"6423359",501.58,"PALMER & HARVEY MCLANE LTD"
"Bracknell Forest Council","http://opendatacommunities.org/id/unitary-authority/bracknell-forest","Bracknell Forest Council","00MA","Holding Accounts not in Budget Book - COF","General Holding Accounts","TO GO Invoices","Refreshments",31/08/2010 00:00:00,"6422092",623.45,"PANINIS (ASCOT) LTD"
"Bracknell Forest Council","http://opendatacommunities.org/id/unitary-authority/bracknell-forest","Bracknell Forest Council","00MA","Non-School Funding","Youth Services","Youth & Community Administration","Youth & Community Activities",13/09/2010 00:00:00,"6421938",823.01,"PANNONE LLP"
"Bracknell Forest Council","http://opendatacommunities.org/id/unitary-authority/bracknell-forest","Bracknell Forest Council","00MA","Physical Disability/Sensory Impairment","Day Care","Day Centre Placements-Phys Disab","Contracted Services",21/09/2010 00:00:00,"30161149",2287.6,"PARITY FOR DISABILITY"
"Bracknell Forest Council","http://opendatacommunities.org/id/unitary-authority/bracknell-forest","Bracknell Forest Council","00MA","Learning Disability (under 65)","Residential Care Home Placements","Residential Placements-Lrng Disab","Contracted Services",06/09/2010 00:00:00,"30160451",6298.52,"PARKCARE HOMES LIMITED-CRAEGMOOR HEALTHCARE"
"Bracknell Forest Council","http://opendatacommunities.org/id/unitary-authority/bracknell-forest","Bracknell Forest Council","00MA","Learning Disability (under 65)","Residential Care Home Placements","Residential Placements-Lrng Disab","Contracted Services",28/09/2010 00:00:00,"30161409",6298.52,"PARKCARE HOMES LIMITED-CRAEGMOOR HEALTHCARE"
"Bracknell Forest Council","http://opendatacommunities.org/id/unitary-authority/bracknell-forest","Bracknell Forest Council","00MA","Support Services & Management Costs","Quality Assurance","Performance Management","Consultants Fees",08/05/2010 00:00:00,"6422893",2700,"PERMANENT FUTURES LTD"
"Bracknell Forest Council","http://opendatacommunities.org/id/unitary-authority/bracknell-forest","Bracknell Forest Council","00MA","Education Management & Support Service","Education Department - Other","Education Library Service - Resources","Audio/Visual materials",10/08/2010 00:00:00,"6420583",887.23,"PETERS LIMITED"
"Bracknell Forest Council","http://opendatacommunities.org/id/unitary-authority/bracknell-forest","Bracknell Forest Council","00MA","Libraries","Stock Ordering, Cataloguing & Distribution","Library Book Fund","Audio/Visual materials",07/09/2010 00:00:00,"6421710",584.94,"PETERS LIMITED"
"Bracknell Forest Council","http://opendatacommunities.org/id/unitary-authority/bracknell-forest","Bracknell Forest Council","00MA","Education Management & Support Service","Education Department - Other","Education Library Service - Resources","Audio/Visual materials",03/09/2010 00:00:00,"6422491",926.05,"PETERS LIMITED"
"Bracknell Forest Council","http://opendatacommunities.org/id/unitary-authority/bracknell-forest","Bracknell Forest Council","00MA","Support Services & Management Costs","Central Advisory, Policy & Devmnt Units","Joint Commissioning Team","Agency",05/09/2010 00:00:00,"6421098",4500,"PEWSEY VALE CONSULTING LTD"
"Bracknell Forest Council","http://opendatacommunities.org/id/unitary-authority/bracknell-forest","Bracknell Forest Council","00MA","-","-","Edgbarrow Post 16","Consultant Fees",23/08/2010 00:00:00,"6421230",975,"PFB CONSTRUCTION MANAGEMENT SERVICES LTD"
"Bracknell Forest Council","http://opendatacommunities.org/id/unitary-authority/bracknell-forest","Bracknell Forest Council","00MA","Recreation, Sports and Leisure","Indoor Sports & Recreation Facilities","Leisure DSO - Leisure Centre","R&M - Service Contracts",15/08/2010 00:00:00,"6420417",614.28,"PHS GROUP PLC"
"Bracknell Forest Council","http://opendatacommunities.org/id/unitary-authority/bracknell-forest","Bracknell Forest Council","00MA","Recreation, Sports and Leisure","Indoor Sports & Recreation Facilities","Leisure DSO - Coral Reef","R&M - Service Contracts",12/08/2010 00:00:00,"6420782",1483.31,"PHS GROUP PLC"
"Bracknell Forest Council","http://opendatacommunities.org/id/unitary-authority/bracknell-forest","Bracknell Forest Council","00MA","Older People (Aged 65 or Over)","Residential Care Home Placements","Residential Placements-Elderly","Contracted Services",06/09/2010 00:00:00,"30160451",2143.97,"PINEHURST CARE LIMITED"
"Bracknell Forest Council","http://opendatacommunities.org/id/unitary-authority/bracknell-forest","Bracknell Forest Council","00MA","Older People (Aged 65 or Over)","Residential Care Home Placements","Residential Placements-Elderly","Contracted Services",06/09/2010 00:00:00,"30160451",1819.12,"PINEHURST CARE LIMITED"
"Bracknell Forest Council","http://opendatacommunities.org/id/unitary-authority/bracknell-forest","Bracknell Forest Council","00MA","Older People (Aged 65 or Over)","Residential Care Home Placements","Residential Placements-Elderly","Contracted Services",06/09/2010 00:00:00,"30160451",1819.12,"PINEHURST CARE LIMITED"
"Bracknell Forest Council","http://opendatacommunities.org/id/unitary-authority/bracknell-forest","Bracknell Forest Council","00MA","Older People (Aged 65 or Over)","Residential Care Home Placements","Residential Placements-Elderly","Contracted Services",06/09/2010 00:00:00,"30160451",1819.12,"PINEHURST CARE LIMITED"
"Bracknell Forest Council","http://opendatacommunities.org/id/unitary-authority/bracknell-forest","Bracknell Forest Council","00MA","Older People (Aged 65 or Over)","Residential Care Home Placements","Residential Placements-Elderly","Contracted Services",06/09/2010 00:00:00,"30160451",1819.12,"PINEHURST CARE LIMITED"
"Bracknell Forest Council","http://opendatacommunities.org/id/unitary-authority/bracknell-forest","Bracknell Forest Council","00MA","Older People (Aged 65 or Over)","Residential Care Home Placements","Residential Placements-Elderly","Contracted Services",06/09/2010 00:00:00,"30160451",1819.12,"PINEHURST CARE LIMITED"
"Bracknell Forest Council","http://opendatacommunities.org/id/unitary-authority/bracknell-forest","Bracknell Forest Council","00MA","Older People (Aged 65 or Over)","Residential Care Home Placements","Residential Placements-Elderly","Contracted Services",06/09/2010 00:00:00,"30160451",2000,"PINEHURST CARE LIMITED"
"Bracknell Forest Council","http://opendatacommunities.org/id/unitary-authority/bracknell-forest","Bracknell Forest Council","00MA","Older People (Aged 65 or Over)","Residential Care Home Placements","Residential Placements-Elderly","Contracted Services",28/09/2010 00:00:00,"30161409",2000,"PINEHURST CARE LIMITED"
"Bracknell Forest Council","http://opendatacommunities.org/id/unitary-authority/bracknell-forest","Bracknell Forest Council","00MA","Older People (Aged 65 or Over)","Residential Care Home Placements","Residential Placements-Elderly","Contracted Services",28/09/2010 00:00:00,"30161409",1819.12,"PINEHURST CARE LIMITED"
"Bracknell Forest Council","http://opendatacommunities.org/id/unitary-authority/bracknell-forest","Bracknell Forest Council","00MA","Older People (Aged 65 or Over)","Residential Care Home Placements","Residential Placements-Elderly","Contracted Services",28/09/2010 00:00:00,"30161409",1819.12,"PINEHURST CARE LIMITED"
"Bracknell Forest Council","http://opendatacommunities.org/id/unitary-authority/bracknell-forest","Bracknell Forest Council","00MA","Older People (Aged 65 or Over)","Residential Care Home Placements","Residential Placements-Elderly","Contracted Services",28/09/2010 00:00:00,"30161409",1819.12,"PINEHURST CARE LIMITED"
"Bracknell Forest Council","http://opendatacommunities.org/id/unitary-authority/bracknell-forest","Bracknell Forest Council","00MA","Older People (Aged 65 or Over)","Residential Care Home Placements","Residential Placements-Elderly","Contracted Services",28/09/2010 00:00:00,"30161409",1819.12,"PINEHURST CARE LIMITED"
"Bracknell Forest Council","http://opendatacommunities.org/id/unitary-authority/bracknell-forest","Bracknell Forest Council","00MA","Older People (Aged 65 or Over)","Residential Care Home Placements","Residential Placements-Elderly","Contracted Services",28/09/2010 00:00:00,"30161409",3053.52,"PINEHURST CARE LIMITED"
"Bracknell Forest Council","http://opendatacommunities.org/id/unitary-authority/bracknell-forest","Bracknell Forest Council","00MA","Service Management & Support Services","Service Management & Support Services","Departmental IT","Computer Software Maintenance",20/08/2010 00:00:00,"6420692",43676.03,"PITNEY BOWES SOFTWARE"
"Bracknell Forest Council","http://opendatacommunities.org/id/unitary-authority/bracknell-forest","Bracknell Forest Council","00MA","Non-School Funding","Pre-School Education","The Rowans Children's Centre","Other Expenses",03/08/2010 00:00:00,"6420199",550,"PONIES4PARTIES"
"Bracknell Forest Council","http://opendatacommunities.org/id/unitary-authority/bracknell-forest","Bracknell Forest Council","00MA","Recreation, Sports and Leisure","Retail Services, Catering & Licenced","Easthampstead Park Conference Centre","Minor Improvement Schemes",12/08/2010 00:00:00,"6420348",1200,"PORTER AND SON"
"Bracknell Forest Council","http://opendatacommunities.org/id/unitary-authority/bracknell-forest","Bracknell Forest Council","00MA","Children Looked After (CLA)","Children's Homes","Children's Home Placements","Contracted Services",01/09/2010 00:00:00,"6421670",13133,"PRECIOUS HOMES LTD"
"Bracknell Forest Council","http://opendatacommunities.org/id/unitary-authority/bracknell-forest","Bracknell Forest Council","00MA","-","-","Bullbrook Comm Centre Refurb & Extension","Construction - Other Direct Expenses",10/09/2010 00:00:00,"6422129",1030,"PRINCIPAL FURNITURE LTD"
"Bracknell Forest Council","http://opendatacommunities.org/id/unitary-authority/bracknell-forest","Bracknell Forest Council","00MA","Learning Disability (under 65)","Residential Care Home Placements","Residential Placements-Lrng Disab","Contracted Services",06/09/2010 00:00:00,"30160451",6571.64,"PRINCIPLE CARE LTD"
"Bracknell Forest Council","http://opendatacommunities.org/id/unitary-authority/bracknell-forest","Bracknell Forest Council","00MA","Learning Disability (under 65)","Residential Care Home Placements","Residential Placements-Lrng Disab","Contracted Services",28/09/2010 00:00:00,"30161409",6571.64,"PRINCIPLE CARE LTD"
"Bracknell Forest Council","http://opendatacommunities.org/id/unitary-authority/bracknell-forest","Bracknell Forest Council","00MA","Learning Disability (under 65)","Residential Care Home Placements","Residential Placements-Lrng Disab","Contracted Services",06/09/2010 00:00:00,"30160451",3407.32,"PROSPECTS"
"Bracknell Forest Council","http://opendatacommunities.org/id/unitary-authority/bracknell-forest","Bracknell Forest Council","00MA","Learning Disability (under 65)","Residential Care Home Placements","Residential Placements-Lrng Disab","Contracted Services",28/09/2010 00:00:00,"30161409",3407.32,"PROSPECTS"
"Bracknell Forest Council","http://opendatacommunities.org/id/unitary-authority/bracknell-forest","Bracknell Forest Council","00MA","Older People (Aged 65 or Over)","Other Services To Older People","Carers Respite Services","Contracted Services",01/09/2010 00:00:00,"6423134",15750,"PRT CARERS SERVICE"
"Bracknell Forest Council","http://opendatacommunities.org/id/unitary-authority/bracknell-forest","Bracknell Forest Council","00MA","Learning Disability (under 65)","Residential Care Home Placements","Residential Placements-Lrng Disab","Contracted Services",06/09/2010 00:00:00,"30160451",2262.32,"PURLEY PARK TRUST LTD"
"Bracknell Forest Council","http://opendatacommunities.org/id/unitary-authority/bracknell-forest","Bracknell Forest Council","00MA","Learning Disability (under 65)","Residential Care Home Placements","Residential Placements-Lrng Disab","Contracted Services",28/09/2010 00:00:00,"30161409",2262.32,"PURLEY PARK TRUST LTD"
"Bracknell Forest Council","http://opendatacommunities.org/id/unitary-authority/bracknell-forest","Bracknell Forest Council","00MA","Family Support Services","Family Centres","Sec 28A - Day Centre Purchases","Voluntary Sector Service Providers",20/08/2010 00:00:00,"6420538",2267.7,"QUALITY CARE HOMES (UK) LTD"
"Bracknell Forest Council","http://opendatacommunities.org/id/unitary-authority/bracknell-forest","Bracknell Forest Council","00MA","Children Looked After (CLA)","Children's Homes","C&F Learning Disability Placements","Voluntary Sector Service Providers",20/08/2010 00:00:00,"6420969",1702.05,"QUALITY CARE HOMES (UK) LTD"
"Bracknell Forest Council","http://opendatacommunities.org/id/unitary-authority/bracknell-forest","Bracknell Forest Council","00MA","Family Support Services","Family Centres","Sec 28A - Day Centre Purchases","Voluntary Sector Service Providers",20/08/2010 00:00:00,"6420969",1134.7,"QUALITY CARE HOMES (UK) LTD"
"Bracknell Forest Council","http://opendatacommunities.org/id/unitary-authority/bracknell-forest","Bracknell Forest Council","00MA","Non-School Funding","Youth Services","Youth Positive Activities Grant","Youth & Community Activities",09/06/2010 00:00:00,"6413484",2500,"QUALITY EDUCATION SOLUTIONS"
"Bracknell Forest Council","http://opendatacommunities.org/id/unitary-authority/bracknell-forest","Bracknell Forest Council","00MA","Learning Disability (under 65)","Assessment & Care Management","Learning Disability Team","Consultants Fees",20/08/2010 00:00:00,"6421600",1087.5,"QUINTESSENTIAL SUPPORT BROKERS LTD"
"Bracknell Forest Council","http://opendatacommunities.org/id/unitary-authority/bracknell-forest","Bracknell Forest Council","00MA","Learning Disability (under 65)","Assessment & Care Management","Learning Disability Team","Consultants Fees",27/08/2010 00:00:00,"6421601",1087.5,"QUINTESSENTIAL SUPPORT BROKERS LTD"
"Bracknell Forest Council","http://opendatacommunities.org/id/unitary-authority/bracknell-forest","Bracknell Forest Council","00MA","Learning Disability (under 65)","Assessment & Care Management","Learning Disability Team","Consultants Fees",03/09/2010 00:00:00,"6421602",1087.5,"QUINTESSENTIAL SUPPORT BROKERS LTD"
"Bracknell Forest Council","http://opendatacommunities.org/id/unitary-authority/bracknell-forest","Bracknell Forest Council","00MA","-","-","Brakenhale Science Block","Other Direct Expenses",13/09/2010 00:00:00,"6422733",37914.21,"QUOIN CONTRACTS LTD"
"Bracknell Forest Council","http://opendatacommunities.org/id/unitary-authority/bracknell-forest","Bracknell Forest Council","00MA","Learning Disability (under 65)","Residential Care Home Placements","Residential Placements-Lrng Disab","Contracted Services",06/09/2010 00:00:00,"30160451",4776.68,"R E A C H LTD"
"Bracknell Forest Council","http://opendatacommunities.org/id/unitary-authority/bracknell-forest","Bracknell Forest Council","00MA","Learning Disability (under 65)","Residential Care Home Placements","Residential Placements-Lrng Disab","Contracted Services",28/09/2010 00:00:00,"30161409",4776.68,"R E A C H LTD"
"Bracknell Forest Council","http://opendatacommunities.org/id/unitary-authority/bracknell-forest","Bracknell Forest Council","00MA","Holding Accounts in Budget Book COF","Corporate Serv - Reprographics & Printing","Reprographics & Printing","Equipment - R&M",08/09/2010 00:00:00,"6422544",1247,"R ROSE ENGINEERING LTD"
"Bracknell Forest Council","http://opendatacommunities.org/id/unitary-authority/bracknell-forest","Bracknell Forest Council","00MA","Children Looked After (CLA)","Children's Homes","Children's Home Placements","Contracted Services",01/09/2010 00:00:00,"6420968",12734.4,"RAAC CARE LTD"
"Bracknell Forest Council","http://opendatacommunities.org/id/unitary-authority/bracknell-forest","Bracknell Forest Council","00MA","Recreation, Sports and Leisure","Golf Courses","Leisure DSO - Downshire Golf Course","R&M - Reactive",25/03/2010 00:00:00,"6421155",1170,"RAINBOW WATER SERVICES LTD"
"Bracknell Forest Council","http://opendatacommunities.org/id/unitary-authority/bracknell-forest","Bracknell Forest Council","00MA","Recreation, Sports and Leisure","Retail Services, Catering & Licenced","Easthampstead Park Conference Centre","R&M - Service Contracts",02/09/2010 00:00:00,"6421906",1602,"RAINBOW WATER SERVICES LTD"
"Bracknell Forest Council","http://opendatacommunities.org/id/unitary-authority/bracknell-forest","Bracknell Forest Council","00MA","Older People (Aged 65 or Over)","Assessment & Care Management","CMHTE","Agency",18/08/2010 00:00:00,"6420854",687.6,"RANDSTAD CARE"
"Bracknell Forest Council","http://opendatacommunities.org/id/unitary-authority/bracknell-forest","Bracknell Forest Council","00MA","Older People (Aged 65 or Over)","Assessment & Care Management","CMHTE","Agency",25/08/2010 00:00:00,"6421599",642.3,"RANDSTAD CARE"
"Bracknell Forest Council","http://opendatacommunities.org/id/unitary-authority/bracknell-forest","Bracknell Forest Council","00MA","Older People (Aged 65 or Over)","Assessment & Care Management","Short Term Services - Social Work","Agency",01/09/2010 00:00:00,"6421764",1095,"RANDSTAD CARE"
"Bracknell Forest Council","http://opendatacommunities.org/id/unitary-authority/bracknell-forest","Bracknell Forest Council","00MA","Older People (Aged 65 or Over)","Assessment & Care Management","Short Term Services - Social Work","Agency",01/09/2010 00:00:00,"6421766",1110,"RANDSTAD CARE"
"Bracknell Forest Council","http://opendatacommunities.org/id/unitary-authority/bracknell-forest","Bracknell Forest Council","00MA","Older People (Aged 65 or Over)","Assessment & Care Management","CMHTE","Agency",01/09/2010 00:00:00,"6422227",660,"RANDSTAD CARE"
"Bracknell Forest Council","http://opendatacommunities.org/id/unitary-authority/bracknell-forest","Bracknell Forest Council","00MA","Family Support Services","Family Centres","Sec 28A - Day Centre Purchases","Voluntary Sector Service Providers",25/08/2010 00:00:00,"6422387",653.15,"RANDSTAD CARE"
"Bracknell Forest Council","http://opendatacommunities.org/id/unitary-authority/bracknell-forest","Bracknell Forest Council","00MA","Older People (Aged 65 or Over)","Assessment & Care Management","Short Term Services - Social Work","Agency",08/09/2010 00:00:00,"6422399",1080,"RANDSTAD CARE"
"Bracknell Forest Council","http://opendatacommunities.org/id/unitary-authority/bracknell-forest","Bracknell Forest Council","00MA","Older People (Aged 65 or Over)","Assessment & Care Management","CMHTE","Agency",06/09/2010 00:00:00,"6422532",677.4,"RANDSTAD CARE"
"Bracknell Forest Council","http://opendatacommunities.org/id/unitary-authority/bracknell-forest","Bracknell Forest Council","00MA","Older People (Aged 65 or Over)","Assessment & Care Management","Short Term Services - Social Work","Agency",15/09/2010 00:00:00,"6423264",1080,"RANDSTAD CARE"
"Bracknell Forest Council","http://opendatacommunities.org/id/unitary-authority/bracknell-forest","Bracknell Forest Council","00MA","Learning Disability (under 65)","Homecare","Supported Living (Homecare) LD","Contracted Services",06/09/2010 00:00:00,"30160423",11039.47,"RANDSTAD CARE"
"Bracknell Forest Council","http://opendatacommunities.org/id/unitary-authority/bracknell-forest","Bracknell Forest Council","00MA","Older People (Aged 65 or Over)","Home Care","LD Live-In Carers","Contracted Services",06/09/2010 00:00:00,"30160423",5269.52,"RANDSTAD CARE"
"Bracknell Forest Council","http://opendatacommunities.org/id/unitary-authority/bracknell-forest","Bracknell Forest Council","00MA","Learning Disability (under 65)","Homecare","S28a Supported Living (Homecare) LD","Contracted Services",06/09/2010 00:00:00,"30160423",6068.44,"RANDSTAD CARE"
"Bracknell Forest Council","http://opendatacommunities.org/id/unitary-authority/bracknell-forest","Bracknell Forest Council","00MA","Learning Disability (under 65)","Day Care","Supported Living (Day Care) LD","Contracted Services",06/09/2010 00:00:00,"30160423",607.25,"RANDSTAD CARE"
"Bracknell Forest Council","http://opendatacommunities.org/id/unitary-authority/bracknell-forest","Bracknell Forest Council","00MA","Older People (Aged 65 or Over)","Home Care","Home Care-Elderly","Contracted Services",21/09/2010 00:00:00,"30161148",5813.2,"RANDSTAD CARE"
"Bracknell Forest Council","http://opendatacommunities.org/id/unitary-authority/bracknell-forest","Bracknell Forest Council","00MA","Older People (Aged 65 or Over)","Home Care","Home Care-Elderly","Contracted Services",21/09/2010 00:00:00,"30161148",12059.6,"RANDSTAD CARE"
"Bracknell Forest Council","http://opendatacommunities.org/id/unitary-authority/bracknell-forest","Bracknell Forest Council","00MA","Mental Health Needs (Under 65)","Homecare","Home Care Mental Illness","Contracted Services",21/09/2010 00:00:00,"30161148",532.8,"RANDSTAD CARE"
"Bracknell Forest Council","http://opendatacommunities.org/id/unitary-authority/bracknell-forest","Bracknell Forest Council","00MA","Physical Disability/Sensory Impairment","Homecare","Home Care-Phys Disab","Contracted Services",21/09/2010 00:00:00,"30161148",2993.6,"RANDSTAD CARE"
"Bracknell Forest Council","http://opendatacommunities.org/id/unitary-authority/bracknell-forest","Bracknell Forest Council","00MA","Recreation, Sports and Leisure","Dual Use Centres","Edgbarrow/Sandhurst Joint Expenses","Publicity & Marketing",09/08/2010 00:00:00,"6420575",916,"RARING2GO"
"Bracknell Forest Council","http://opendatacommunities.org/id/unitary-authority/bracknell-forest","Bracknell Forest Council","00MA","Housing Benefits Administration","Housing Benefits Administration","Benefits Administration","Consultants Fees",16/08/2010 00:00:00,"6419731",5150.25,"RB SOLUTIONS"
"Bracknell Forest Council","http://opendatacommunities.org/id/unitary-authority/bracknell-forest","Bracknell Forest Council","00MA","Housing Benefits Administration","Housing Benefits Administration","Benefits Administration","Consultants Fees",31/08/2010 00:00:00,"6421376",5008.5,"RB SOLUTIONS"
"Bracknell Forest Council","http://opendatacommunities.org/id/unitary-authority/bracknell-forest","Bracknell Forest Council","00MA","Housing Benefits Administration","Housing Benefits Administration","Benefits Administration","Consultants Fees",16/08/2010 00:00:00,"6421377",1352,"RB SOLUTIONS"
"Bracknell Forest Council","http://opendatacommunities.org/id/unitary-authority/bracknell-forest","Bracknell Forest Council","00MA","Planning Policy","Structure & Local Planning","Planning Policy","Consultants Fees",16/08/2010 00:00:00,"6420877",4438.35,"READING BOROUGH COUNCIL"
"Bracknell Forest Council","http://opendatacommunities.org/id/unitary-authority/bracknell-forest","Bracknell Forest Council","00MA","Waste Disposal","Disposal of Waste","Waste Disposal","Contracted Services",07/09/2010 00:00:00,"6421425",572138.72,"READING BOROUGH COUNCIL"
"Bracknell Forest Council","http://opendatacommunities.org/id/unitary-authority/bracknell-forest","Bracknell Forest Council","00MA","-","-","Balance Sheet","Flexible Benefits Control Account",08/09/2010 00:00:00,"6421761",6800,"RED LODGE AUTOS"
"Bracknell Forest Council","http://opendatacommunities.org/id/unitary-authority/bracknell-forest","Bracknell Forest Council","00MA","-","-","Edgbarrow Post 16","Furniture & Fittings",18/06/2010 00:00:00,"6419444",1693.44,"REMPLOY LTD"
"Bracknell Forest Council","http://opendatacommunities.org/id/unitary-authority/bracknell-forest","Bracknell Forest Council","00MA","-","-","Edgbarrow Post 16","Furniture & Fittings",16/06/2010 00:00:00,"6422158",16097.58,"REMPLOY LTD"
"Bracknell Forest Council","http://opendatacommunities.org/id/unitary-authority/bracknell-forest","Bracknell Forest Council","00MA","-","-","Edgbarrow Post 16","Furniture & Fittings",21/09/2010 00:00:00,"6423361",9585.89,"REMPLOY LTD"
"Bracknell Forest Council","http://opendatacommunities.org/id/unitary-authority/bracknell-forest","Bracknell Forest Council","00MA","Mental Health Needs (Under 65)","Other Services to Adults with a MH","Mental Health Grant","Grants and Donations",24/08/2010 00:00:00,"6420865",100500,"RETHINK"
"Bracknell Forest Council","http://opendatacommunities.org/id/unitary-authority/bracknell-forest","Bracknell Forest Council","00MA","Children Looked After (CLA)","Other Children Looked After Services","Family Placement","Agency",06/09/2010 00:00:00,"6422335",2100,"RGB CONSULTING"
"Bracknell Forest Council","http://opendatacommunities.org/id/unitary-authority/bracknell-forest","Bracknell Forest Council","00MA","-","-","Great Hollands Primary - Maint","Construction - Other Direct Expenses",16/08/2010 00:00:00,"6420309",8298.48,"RGC GENERAL BUILDERS LTD"
"Bracknell Forest Council","http://opendatacommunities.org/id/unitary-authority/bracknell-forest","Bracknell Forest Council","00MA","-","-","Great Hollands Primary - Maint","Construction - Other Direct Expenses",13/09/2010 00:00:00,"6422039",20140.59,"RGC GENERAL BUILDERS LTD"
"Bracknell Forest Council","http://opendatacommunities.org/id/unitary-authority/bracknell-forest","Bracknell Forest Council","00MA","Learning Disability (under 65)","Direct Payments - LD","Direct Payments - LD","Direct Payments to Clients",05/10/2010 00:00:00,"6422981",652.75,"REDACTED PERSONAL DATA"
"Bracknell Forest Council","http://opendatacommunities.org/id/unitary-authority/bracknell-forest","Bracknell Forest Council","00MA","Economic Development","Economic Development","Economic Development","Consultants Fees",31/08/2010 00:00:00,"6423270",2331,"RICHARD TYNDALL LIMITED"
"Bracknell Forest Council","http://opendatacommunities.org/id/unitary-authority/bracknell-forest","Bracknell Forest Council","00MA","Economic Development","Economic Development","Hub - Project Management","Consultants Fees",29/07/2010 00:00:00,"6420774",2167.5,"RIDGE & PARTNERS LLP"
"Bracknell Forest Council","http://opendatacommunities.org/id/unitary-authority/bracknell-forest","Bracknell Forest Council","00MA","Economic Development","Economic Development","Hub - Spatial Planning","Consultants Fees",31/08/2010 00:00:00,"6421590",1997.5,"RIDGE & PARTNERS LLP"
"Bracknell Forest Council","http://opendatacommunities.org/id/unitary-authority/bracknell-forest","Bracknell Forest Council","00MA","Older People (Aged 65 or Over)","Assessment & Care Management","Short Term Services - Therapy","Agency",23/08/2010 00:00:00,"6420609",786.6,"RIG O/T RECRUIT LIMITED"
"Bracknell Forest Council","http://opendatacommunities.org/id/unitary-authority/bracknell-forest","Bracknell Forest Council","00MA","Older People (Aged 65 or Over)","Assessment & Care Management","Short Term Services - Therapy","Agency",22/08/2010 00:00:00,"6420610",1184,"RIG O/T RECRUIT LIMITED"
"Bracknell Forest Council","http://opendatacommunities.org/id/unitary-authority/bracknell-forest","Bracknell Forest Council","00MA","Older People (Aged 65 or Over)","Assessment & Care Management","Short Term Services - Therapy","Agency",31/08/2010 00:00:00,"6421235",774.76,"RIG O/T RECRUIT LIMITED"
"Bracknell Forest Council","http://opendatacommunities.org/id/unitary-authority/bracknell-forest","Bracknell Forest Council","00MA","Older People (Aged 65 or Over)","Assessment & Care Management","Short Term Services - Therapy","Agency",31/08/2010 00:00:00,"6421236",1184,"RIG O/T RECRUIT LIMITED"
"Bracknell Forest Council","http://opendatacommunities.org/id/unitary-authority/bracknell-forest","Bracknell Forest Council","00MA","Older People (Aged 65 or Over)","Assessment & Care Management","Short Term Services - Therapy","Agency",07/09/2010 00:00:00,"6422199",830.76,"RIG O/T RECRUIT LIMITED"
"Bracknell Forest Council","http://opendatacommunities.org/id/unitary-authority/bracknell-forest","Bracknell Forest Council","00MA","Older People (Aged 65 or Over)","Assessment & Care Management","Short Term Services - Therapy","Agency",05/09/2010 00:00:00,"6422200",960,"RIG O/T RECRUIT LIMITED"
"Bracknell Forest Council","http://opendatacommunities.org/id/unitary-authority/bracknell-forest","Bracknell Forest Council","00MA","Recreation, Sports and Leisure","Golf Courses","Leisure DSO - Downshire Golf Course","Materials",07/09/2010 00:00:00,"6421944",626.76,"RIGBY TAYLOR LIMITED"
"Bracknell Forest Council","http://opendatacommunities.org/id/unitary-authority/bracknell-forest","Bracknell Forest Council","00MA","Holding Accounts","Landscape Services","Landscape Services Operational","Materials",07/09/2010 00:00:00,"6422736",1008,"RIGBY TAYLOR LIMITED"
"Bracknell Forest Council","http://opendatacommunities.org/id/unitary-authority/bracknell-forest","Bracknell Forest Council","00MA","Environment, Safety & Routine Maintenance","Routine Repairs (Other Roads)","Patching & Minor Repairs - Other Roads","Contracted Services",02/09/2010 00:00:00,"6422556",700894,"RINGWAY HIGHWAY SERVICES LTD"
"Bracknell Forest Council","http://opendatacommunities.org/id/unitary-authority/bracknell-forest","Bracknell Forest Council","00MA","-","-","Waste Performance & Efficiency Schemes","Other Equipment",11/08/2010 00:00:00,"6419983",2641.89,"RINGWAY INFRASTRUCTURE SERVICES LTD"
"Bracknell Forest Council","http://opendatacommunities.org/id/unitary-authority/bracknell-forest","Bracknell Forest Council","00MA","-","-","Edgbarrow Post 16","IT Software",09/07/2010 00:00:00,"6421806",45571.75,"RM EDUCATION PLC"
"Bracknell Forest Council","http://opendatacommunities.org/id/unitary-authority/bracknell-forest","Bracknell Forest Council","00MA","-","-","Edgbarrow Post 16","IT Software",16/07/2010 00:00:00,"6421807",127580.82,"RM EDUCATION PLC"
"Bracknell Forest Council","http://opendatacommunities.org/id/unitary-authority/bracknell-forest","Bracknell Forest Council","00MA","Older People (Aged 65 or Over)","Residential Care Home Placements","Residential Placements-Elderly","Contracted Services",06/09/2010 00:00:00,"30160451",1181.48,"RMBI"
"Bracknell Forest Council","http://opendatacommunities.org/id/unitary-authority/bracknell-forest","Bracknell Forest Council","00MA","Older People (Aged 65 or Over)","Residential Care Home Placements","Residential Placements-Elderly","Contracted Services",28/09/2010 00:00:00,"30161409",1181.48,"RMBI"
"Bracknell Forest Council","http://opendatacommunities.org/id/unitary-authority/bracknell-forest","Bracknell Forest Council","00MA","-","-","St Lighting Cable Networks - Bagshot Rd","Construction - Other Direct Expenses",27/08/2010 00:00:00,"6421211",5400,"ROCH NDT SERVICES"
"Bracknell Forest Council","http://opendatacommunities.org/id/unitary-authority/bracknell-forest","Bracknell Forest Council","00MA","-","-","St Lighting Cable Networks - Bagshot Rd","Construction - Other Direct Expenses",20/08/2010 00:00:00,"6421985",6600,"ROCH NDT SERVICES"
"Bracknell Forest Council","http://opendatacommunities.org/id/unitary-authority/bracknell-forest","Bracknell Forest Council","00MA","Holding Accounts not in Budget Book - COF","General Holding Accounts","Certificated Contract Payments","Contracted Services",27/07/2010 00:00:00,"6420712",38047.87,"ROK BUILDING LTD"
"Bracknell Forest Council","http://opendatacommunities.org/id/unitary-authority/bracknell-forest","Bracknell Forest Council","00MA","-","-","General Building Maintenance","Other Direct Expenses",27/08/2010 00:00:00,"6421603",7372.74,"ROK BUILDING LTD"
"Bracknell Forest Council","http://opendatacommunities.org/id/unitary-authority/bracknell-forest","Bracknell Forest Council","00MA","Mental Health Needs (Under 65)","Residential Care Home Placements","Residential Placements-Mental Illness","Contracted Services",06/09/2010 00:00:00,"30160451",1253.56,"ALDWICK RESIDENTIAL CARE HOME"
"Bracknell Forest Council","http://opendatacommunities.org/id/unitary-authority/bracknell-forest","Bracknell Forest Council","00MA","Mental Health Needs (Under 65)","Residential Care Home Placements","Residential Placements-Mental Illness","Contracted Services",28/09/2010 00:00:00,"30161409",1253.56,"ALDWICK RESIDENTIAL CARE HOME"
"Bracknell Forest Council","http://opendatacommunities.org/id/unitary-authority/bracknell-forest","Bracknell Forest Council","00MA","Traffic Management & Road Safety","Traffic Management","Traffic Management","Contracted Services",20/08/2010 00:00:00,"6420301",506.33,"ALEXANDER ADVERTISING(INT)LTD"
"Bracknell Forest Council","http://opendatacommunities.org/id/unitary-authority/bracknell-forest","Bracknell Forest Council","00MA","Traffic Management & Road Safety","Traffic Management","Traffic Management","Contracted Services",20/08/2010 00:00:00,"6420302",506.33,"ALEXANDER ADVERTISING(INT)LTD"
"Bracknell Forest Council","http://opendatacommunities.org/id/unitary-authority/bracknell-forest","Bracknell Forest Council","00MA","-","-","Mortgages for Low Cost Home Ownership Properties","Loans  Advanced",16/09/2010 00:00:00,"6422763",49875,"ALLENS SOLICITORS"
"Bracknell Forest Council","http://opendatacommunities.org/id/unitary-authority/bracknell-forest","Bracknell Forest Council","00MA","Physical Disability/Sensory Impairment","Assessment & Care Management","Older People & Long Term Conditions Team","Agency",02/09/2010 00:00:00,"6421324",1507.36,"ALLIED GLOBAL LTD"
"Bracknell Forest Council","http://opendatacommunities.org/id/unitary-authority/bracknell-forest","Bracknell Forest Council","00MA","Older People (Aged 65 or Over)","Home Care","LD Live-In Carers","Contracted Services",21/09/2010 00:00:00,"30161147",3185.28,"ALLIED HEALTHCARE GROUP LTD"
"Bracknell Forest Council","http://opendatacommunities.org/id/unitary-authority/bracknell-forest","Bracknell Forest Council","00MA","Other Children's & Family Services","Other Children Services","Asylum Seekers (UASC)","Contracted Services",01/09/2010 00:00:00,"6423121",1798,"ALMA SUPPORTED LODGINGS"
"Bracknell Forest Council","http://opendatacommunities.org/id/unitary-authority/bracknell-forest","Bracknell Forest Council","00MA","Other Children's & Family Services","Other Children Services","Asylum Seekers (UASC)","Contracted Services",01/09/2010 00:00:00,"6423122",1798,"ALMA SUPPORTED LODGINGS"
"Bracknell Forest Council","http://opendatacommunities.org/id/unitary-authority/bracknell-forest","Bracknell Forest Council","00MA","Other Children's & Family Services","Other Children Services","Asylum Seekers (UASC)","Contracted Services",01/09/2010 00:00:00,"6423123",1798,"ALMA SUPPORTED LODGINGS"
"Bracknell Forest Council","http://opendatacommunities.org/id/unitary-authority/bracknell-forest","Bracknell Forest Council","00MA","Vehicles &  Plant","Vehicles and Plant Summary Account","Vehicles and Plant","Operating Lease Charge",01/09/2010 00:00:00,"6422760",534.99,"ALPHABET (GB) LTD"
"Bracknell Forest Council","http://opendatacommunities.org/id/unitary-authority/bracknell-forest","Bracknell Forest Council","00MA","Older People (Aged 65 or Over)","Residential Care Home Placements","Residential Placements-Elderly","Contracted Services",01/09/2010 00:00:00,"6421911",844.61,"AMBERBROOK MANAGEMENT LTD"
"Bracknell Forest Council","http://opendatacommunities.org/id/unitary-authority/bracknell-forest","Bracknell Forest Council","00MA","Older People (Aged 65 or Over)","Residential Care Home Placements","Residential Placements-Elderly","Contracted Services",06/09/2010 00:00:00,"30160451",1699.12,"AMBERBROOK MANAGEMENT LTD"
"Bracknell Forest Council","http://opendatacommunities.org/id/unitary-authority/bracknell-forest","Bracknell Forest Council","00MA","Older People (Aged 65 or Over)","Residential Care Home Placements","Residential Placements-Elderly","Contracted Services",06/09/2010 00:00:00,"30160451",1923.68,"AMBERBROOK MANAGEMENT LTD"
"Bracknell Forest Council","http://opendatacommunities.org/id/unitary-authority/bracknell-forest","Bracknell Forest Council","00MA","Older People (Aged 65 or Over)","Nursing Home Placements","Nursing Home Placements-Elderly","Contracted Services",06/09/2010 00:00:00,"30160451",2358.48,"AMBERBROOK MANAGEMENT LTD"
"Bracknell Forest Council","http://opendatacommunities.org/id/unitary-authority/bracknell-forest","Bracknell Forest Council","00MA","Older People (Aged 65 or Over)","Residential Care Home Placements","Residential Placements-Elderly","Contracted Services",06/09/2010 00:00:00,"30160451",1923.68,"AMBERBROOK MANAGEMENT LTD"
"Bracknell Forest Council","http://opendatacommunities.org/id/unitary-authority/bracknell-forest","Bracknell Forest Council","00MA","Older People (Aged 65 or Over)","Residential Care Home Placements","Residential Placements-Elderly","Contracted Services",06/09/2010 00:00:00,"30160451",1819.12,"AMBERBROOK MANAGEMENT LTD"
"Bracknell Forest Council","http://opendatacommunities.org/id/unitary-authority/bracknell-forest","Bracknell Forest Council","00MA","Older People (Aged 65 or Over)","Residential Care Home Placements","Residential Placements-Elderly","Contracted Services",06/09/2010 00:00:00,"30160451",1923.68,"AMBERBROOK MANAGEMENT LTD"
"Bracknell Forest Council","http://opendatacommunities.org/id/unitary-authority/bracknell-forest","Bracknell Forest Council","00MA","Older People (Aged 65 or Over)","Residential Care Home Placements","Residential Placements-Elderly","Contracted Services",06/09/2010 00:00:00,"30160451",1819.12,"AMBERBROOK MANAGEMENT LTD"
"Bracknell Forest Council","http://opendatacommunities.org/id/unitary-authority/bracknell-forest","Bracknell Forest Council","00MA","Older People (Aged 65 or Over)","Residential Care Home Placements","Residential Placements-Elderly","Contracted Services",06/09/2010 00:00:00,"30160451",1923.68,"AMBERBROOK MANAGEMENT LTD"
"Bracknell Forest Council","http://opendatacommunities.org/id/unitary-authority/bracknell-forest","Bracknell Forest Council","00MA","Older People (Aged 65 or Over)","Nursing Home Placements","Nursing Home Placements-Elderly","Contracted Services",06/09/2010 00:00:00,"30160451",2358.48,"AMBERBROOK MANAGEMENT LTD"
"Bracknell Forest Council","http://opendatacommunities.org/id/unitary-authority/bracknell-forest","Bracknell Forest Council","00MA","Older People (Aged 65 or Over)","Nursing Home Placements","Nursing Home Placements-Elderly","Contracted Services",06/09/2010 00:00:00,"30160451",2402.32,"AMBERBROOK MANAGEMENT LTD"
"Bracknell Forest Council","http://opendatacommunities.org/id/unitary-authority/bracknell-forest","Bracknell Forest Council","00MA","Older People (Aged 65 or Over)","Nursing Home Placements","Nursing Home Placements-Elderly","Contracted Services",06/09/2010 00:00:00,"30160451",2564.8,"AMBERBROOK MANAGEMENT LTD"
"Bracknell Forest Council","http://opendatacommunities.org/id/unitary-authority/bracknell-forest","Bracknell Forest Council","00MA","Older People (Aged 65 or Over)","Nursing Home Placements","Nursing Home Placements-Elderly","Contracted Services",06/09/2010 00:00:00,"30160451",7635.84,"AMBERBROOK MANAGEMENT LTD"
"Bracknell Forest Council","http://opendatacommunities.org/id/unitary-authority/bracknell-forest","Bracknell Forest Council","00MA","Older People (Aged 65 or Over)","Nursing Home Placements","Nursing Home Placements-Elderly","Contracted Services",06/09/2010 00:00:00,"30160451",2638.68,"AMBERBROOK MANAGEMENT LTD"
"Bracknell Forest Council","http://opendatacommunities.org/id/unitary-authority/bracknell-forest","Bracknell Forest Council","00MA","Older People (Aged 65 or Over)","Nursing Home Placements","Nursing Home Placements-Elderly","Contracted Services",06/09/2010 00:00:00,"30160451",5277.36,"AMBERBROOK MANAGEMENT LTD"
"Bracknell Forest Council","http://opendatacommunities.org/id/unitary-authority/bracknell-forest","Bracknell Forest Council","00MA","Holding Accounts not in Budget Book - COF","General Holding Accounts","Certificated Contract Payments","Contracted Services",01/09/2010 00:00:00,"6422035",18215.66,"ROK BUILDING LTD"
"Bracknell Forest Council","http://opendatacommunities.org/id/unitary-authority/bracknell-forest","Bracknell Forest Council","00MA","-","-","14-19 Diplomas Wick Hill","Other Direct Expenses",31/08/2010 00:00:00,"6421821",3720,"ROLTON GROUP"
"Bracknell Forest Council","http://opendatacommunities.org/id/unitary-authority/bracknell-forest","Bracknell Forest Council","00MA","Service Management & Support Services","Service Management & Support Services","Departmental Personnel","Recruitment Expenses",15/09/2010 00:00:00,"70005121",640,"REDACTED PERSONAL DATA"
"Bracknell Forest Council","http://opendatacommunities.org/id/unitary-authority/bracknell-forest","Bracknell Forest Council","00MA","Older People (Aged 65 or Over)","Day Care","Supported Living (Day Care) LD Over 65","RB of Windsor & Maidenhead",25/06/2010 00:00:00,"6420924",2021,"ROYAL BOROUGH OF WINDSOR &  MAIDENHEAD"
"Bracknell Forest Council","http://opendatacommunities.org/id/unitary-authority/bracknell-forest","Bracknell Forest Council","00MA","Learning Disability (under 65)","Day Care","Day Centre Placements-Lrng Disab","RB of Windsor & Maidenhead",24/06/2010 00:00:00,"6420925",1692.75,"ROYAL BOROUGH OF WINDSOR &  MAIDENHEAD"
"Bracknell Forest Council","http://opendatacommunities.org/id/unitary-authority/bracknell-forest","Bracknell Forest Council","00MA","Learning Disability (under 65)","Day Care","Day Centre Placements-Lrng Disab","RB of Windsor & Maidenhead",24/06/2010 00:00:00,"6420926",7278,"ROYAL BOROUGH OF WINDSOR &  MAIDENHEAD"
"Bracknell Forest Council","http://opendatacommunities.org/id/unitary-authority/bracknell-forest","Bracknell Forest Council","00MA","Older People (Aged 65 or Over)","Residential Care Home Placements","Residential Placements LD 65 and Over","RB of Windsor & Maidenhead",06/09/2010 00:00:00,"30160451",5646.2,"ROYAL BOROUGH OF WINDSOR &  MAIDENHEAD"
"Bracknell Forest Council","http://opendatacommunities.org/id/unitary-authority/bracknell-forest","Bracknell Forest Council","00MA","Learning Disability (under 65)","Residential Care Home Placements","Residential Placements-Lrng Disab","RB of Windsor & Maidenhead",06/09/2010 00:00:00,"30160451",5646.2,"ROYAL BOROUGH OF WINDSOR &  MAIDENHEAD"
"Bracknell Forest Council","http://opendatacommunities.org/id/unitary-authority/bracknell-forest","Bracknell Forest Council","00MA","Older People (Aged 65 or Over)","Residential Care Home Placements","Residential Placements LD 65 and Over","RB of Windsor & Maidenhead",28/09/2010 00:00:00,"30161409",5646.2,"ROYAL BOROUGH OF WINDSOR &  MAIDENHEAD"
"Bracknell Forest Council","http://opendatacommunities.org/id/unitary-authority/bracknell-forest","Bracknell Forest Council","00MA","Learning Disability (under 65)","Residential Care Home Placements","Residential Placements-Lrng Disab","RB of Windsor & Maidenhead",28/09/2010 00:00:00,"30161409",5646.2,"ROYAL BOROUGH OF WINDSOR &  MAIDENHEAD"
"Bracknell Forest Council","http://opendatacommunities.org/id/unitary-authority/bracknell-forest","Bracknell Forest Council","00MA","Local Tax Collection","Council Tax Collection","Council Tax","Postage",30/08/2010 00:00:00,"6421760",1106.36,"ROYAL MAIL GROUP LTD"
"Bracknell Forest Council","http://opendatacommunities.org/id/unitary-authority/bracknell-forest","Bracknell Forest Council","00MA","-","-","Garth Hill - Client Fees","Consultant Fees",27/08/2010 00:00:00,"6422190",1000,"RPS GROUP PLC"
"Bracknell Forest Council","http://opendatacommunities.org/id/unitary-authority/bracknell-forest","Bracknell Forest Council","00MA","-","-","Holly Spring Infant and Junior","Consultant Fees",27/08/2010 00:00:00,"6422549",3500,"RPS GROUP PLC"
"Bracknell Forest Council","http://opendatacommunities.org/id/unitary-authority/bracknell-forest","Bracknell Forest Council","00MA","-","-","Owlsmoor Suitability","Consultant Fees",27/07/2010 00:00:00,"6423394",500,"RPS GROUP PLC"
"Bracknell Forest Council","http://opendatacommunities.org/id/unitary-authority/bracknell-forest","Bracknell Forest Council","00MA","-","-","Crown Wood Primary","Consultant Fees",29/07/2010 00:00:00,"6423395",500,"RPS GROUP PLC"
"Bracknell Forest Council","http://opendatacommunities.org/id/unitary-authority/bracknell-forest","Bracknell Forest Council","00MA","-","-","Sandy Lane Primary","Consultant Fees",29/07/2010 00:00:00,"6423396",500,"RPS GROUP PLC"
"Bracknell Forest Council","http://opendatacommunities.org/id/unitary-authority/bracknell-forest","Bracknell Forest Council","00MA","Public Transport","Concessionary Fares","Concessionary Fares","Contracted Services",20/08/2010 00:00:00,"6420327",994.5,"RSP LTD"
"Bracknell Forest Council","http://opendatacommunities.org/id/unitary-authority/bracknell-forest","Bracknell Forest Council","00MA","Support Services & Management Costs","Management and Administration","Social Services Finance","Staff Public Transport Fares",23/07/2010 00:00:00,"6421565",644.15,"RSP LTD"
"Bracknell Forest Council","http://opendatacommunities.org/id/unitary-authority/bracknell-forest","Bracknell Forest Council","00MA","Support Services & Management Costs","Management and Administration","Social Services Finance","Staff Public Transport Fares",20/08/2010 00:00:00,"6422512",1176.3,"RSP LTD"
"Bracknell Forest Council","http://opendatacommunities.org/id/unitary-authority/bracknell-forest","Bracknell Forest Council","00MA","Older People (Aged 65 or Over)","Residential Care Home Placements","Residential Placements-Elderly","Contracted Services",06/09/2010 00:00:00,"30160451",1936.24,"RUKBA"
"Bracknell Forest Council","http://opendatacommunities.org/id/unitary-authority/bracknell-forest","Bracknell Forest Council","00MA","Older People (Aged 65 or Over)","Residential Care Home Placements","Residential Placements-Elderly","Contracted Services",28/09/2010 00:00:00,"30161409",1936.24,"RUKBA"
"Bracknell Forest Council","http://opendatacommunities.org/id/unitary-authority/bracknell-forest","Bracknell Forest Council","00MA","Local Tax Collection","Council Tax Collection","Council Tax","Other Fees for Bought-in Services",01/09/2010 00:00:00,"6420803",536,"RUNDLE & CO LTD"
"Bracknell Forest Council","http://opendatacommunities.org/id/unitary-authority/bracknell-forest","Bracknell Forest Council","00MA","Local Tax Collection","Council Tax Collection","Council Tax","Other Fees for Bought-in Services",01/09/2010 00:00:00,"6420803",-536,"RUNDLE & CO LTD"
"Bracknell Forest Council","http://opendatacommunities.org/id/unitary-authority/bracknell-forest","Bracknell Forest Council","00MA","Local Tax Collection","Council Tax Collection","Council Tax","Other Fees for Bought-in Services",01/09/2010 00:00:00,"6420804",736.03,"RUNDLE & CO LTD"
"Bracknell Forest Council","http://opendatacommunities.org/id/unitary-authority/bracknell-forest","Bracknell Forest Council","00MA","Local Tax Collection","Council Tax Collection","Council Tax","Other Fees for Bought-in Services",01/09/2010 00:00:00,"6420804",-736.03,"RUNDLE & CO LTD"
"Bracknell Forest Council","http://opendatacommunities.org/id/unitary-authority/bracknell-forest","Bracknell Forest Council","00MA","Local Tax Collection","Council Tax Collection","Council Tax","Other Fees for Bought-in Services",08/09/2010 00:00:00,"6421799",1386.5,"RUNDLE & CO LTD"
"Bracknell Forest Council","http://opendatacommunities.org/id/unitary-authority/bracknell-forest","Bracknell Forest Council","00MA","Local Tax Collection","Council Tax Collection","Council Tax","Other Fees for Bought-in Services",08/09/2010 00:00:00,"6421799",-1386.5,"RUNDLE & CO LTD"
"Bracknell Forest Council","http://opendatacommunities.org/id/unitary-authority/bracknell-forest","Bracknell Forest Council","00MA","Local Tax Collection","Council Tax Collection","Council Tax","Consultants Fees",15/09/2010 00:00:00,"6422809",858,"RUNDLE & CO LTD"
"Bracknell Forest Council","http://opendatacommunities.org/id/unitary-authority/bracknell-forest","Bracknell Forest Council","00MA","Local Tax Collection","Council Tax Collection","Council Tax","Consultants Fees",15/09/2010 00:00:00,"6422809",-858,"RUNDLE & CO LTD"
"Bracknell Forest Council","http://opendatacommunities.org/id/unitary-authority/bracknell-forest","Bracknell Forest Council","00MA","Local Tax Collection","Council Tax Collection","Council Tax","Other Fees for Bought-in Services",15/09/2010 00:00:00,"6422810",1705.48,"RUNDLE & CO LTD"
"Bracknell Forest Council","http://opendatacommunities.org/id/unitary-authority/bracknell-forest","Bracknell Forest Council","00MA","Local Tax Collection","Council Tax Collection","Council Tax","Other Fees for Bought-in Services",15/09/2010 00:00:00,"6422810",-1705.48,"RUNDLE & CO LTD"
"Bracknell Forest Council","http://opendatacommunities.org/id/unitary-authority/bracknell-forest","Bracknell Forest Council","00MA","Recreation, Sports and Leisure","Indoor Sports & Recreation Facilities","Recreation Staff Accommodation","R&M - Reactive",21/08/2010 00:00:00,"6420702",565,"S & S CARPENTRY"
"Bracknell Forest Council","http://opendatacommunities.org/id/unitary-authority/bracknell-forest","Bracknell Forest Council","00MA","Recreation, Sports and Leisure","Indoor Sports & Recreation Facilities","Leisure DSO - Coral Reef Maintenance","Grounds Maintenance Costs",02/09/2010 00:00:00,"6421573",734.5,"S&S GARDEN SERVICES"
"Bracknell Forest Council","http://opendatacommunities.org/id/unitary-authority/bracknell-forest","Bracknell Forest Council","00MA","Recreation, Sports and Leisure","Dual Use Centres","Edgbarrow/Sandhurst Joint Expenses","Clothing & Uniform - Staff",26/08/2010 00:00:00,"6420303",1413.3,"SAFEWEAR WESSEX"
"Bracknell Forest Council","http://opendatacommunities.org/id/unitary-authority/bracknell-forest","Bracknell Forest Council","00MA","Learning Disability (under 65)","Direct Payments - LD","Direct Payments - LD","Direct Payments to Clients",05/10/2010 00:00:00,"6422979",799,"REDACTED PERSONAL DATA"
"Bracknell Forest Council","http://opendatacommunities.org/id/unitary-authority/bracknell-forest","Bracknell Forest Council","00MA","Other Adult Services","Substance Abuse (Addictions)","TA Running Costs","Electricity",13/08/2010 00:00:00,"6421803",572.83,"SCOTTISHPOWER"
"Bracknell Forest Council","http://opendatacommunities.org/id/unitary-authority/bracknell-forest","Bracknell Forest Council","00MA","Environmental Health","Public Health","Dog Control","Contracted Services",31/08/2010 00:00:00,"6421393",604.16,"SDK ENVIRONMENTAL LTD"
"Bracknell Forest Council","http://opendatacommunities.org/id/unitary-authority/bracknell-forest","Bracknell Forest Council","00MA","Central Support Services - COF","Construction and Property","Schools Service Contracts","R&M - Reactive",31/08/2010 00:00:00,"6423719",554,"SERVIO LTD"
"Bracknell Forest Council","http://opendatacommunities.org/id/unitary-authority/bracknell-forest","Bracknell Forest Council","00MA","Recreation, Sports and Leisure","Dual Use Centres","Edgbarrow Sports Centre","R&M - Reactive",31/08/2010 00:00:00,"6423720",611.28,"SERVIO LTD"
"Bracknell Forest Council","http://opendatacommunities.org/id/unitary-authority/bracknell-forest","Bracknell Forest Council","00MA","Central Support Services - COF","Construction and Property","Schools Service Contracts","R&M - Reactive",31/08/2010 00:00:00,"6423722",557,"SERVIO LTD"
"Bracknell Forest Council","http://opendatacommunities.org/id/unitary-authority/bracknell-forest","Bracknell Forest Council","00MA","Central Support Services - COF","Construction and Property","Schools Service Contracts","R&M - Reactive",31/08/2010 00:00:00,"6423725",570,"SERVIO LTD"
"Bracknell Forest Council","http://opendatacommunities.org/id/unitary-authority/bracknell-forest","Bracknell Forest Council","00MA","Older People (Aged 65 or Over)","Residential Care Home Placements","Residential Placements-Elderly","Contracted Services",06/09/2010 00:00:00,"30160451",1819.12,"SES CARE HOMES LTD"
"Bracknell Forest Council","http://opendatacommunities.org/id/unitary-authority/bracknell-forest","Bracknell Forest Council","00MA","Older People (Aged 65 or Over)","Residential Care Home Placements","Residential Placements-Elderly","Contracted Services",06/09/2010 00:00:00,"30160451",1817.04,"SES CARE HOMES LTD"
"Bracknell Forest Council","http://opendatacommunities.org/id/unitary-authority/bracknell-forest","Bracknell Forest Council","00MA","Older People (Aged 65 or Over)","Residential Care Home Placements","Residential Placements-Elderly","Contracted Services",06/09/2010 00:00:00,"30160451",1819.12,"SES CARE HOMES LTD"
"Bracknell Forest Council","http://opendatacommunities.org/id/unitary-authority/bracknell-forest","Bracknell Forest Council","00MA","Older People (Aged 65 or Over)","Residential Care Home Placements","Residential Placements-Elderly","Contracted Services",06/09/2010 00:00:00,"30160451",1819.12,"SES CARE HOMES LTD"
"Bracknell Forest Council","http://opendatacommunities.org/id/unitary-authority/bracknell-forest","Bracknell Forest Council","00MA","Older People (Aged 65 or Over)","Residential Care Home Placements","Residential Placements-Elderly","Contracted Services",28/09/2010 00:00:00,"30161409",1819.12,"SES CARE HOMES LTD"
"Bracknell Forest Council","http://opendatacommunities.org/id/unitary-authority/bracknell-forest","Bracknell Forest Council","00MA","Older People (Aged 65 or Over)","Residential Care Home Placements","Residential Placements-Elderly","Contracted Services",28/09/2010 00:00:00,"30161409",1817.04,"SES CARE HOMES LTD"
"Bracknell Forest Council","http://opendatacommunities.org/id/unitary-authority/bracknell-forest","Bracknell Forest Council","00MA","Older People (Aged 65 or Over)","Residential Care Home Placements","Residential Placements-Elderly","Contracted Services",28/09/2010 00:00:00,"30161409",1819.12,"SES CARE HOMES LTD"
"Bracknell Forest Council","http://opendatacommunities.org/id/unitary-authority/bracknell-forest","Bracknell Forest Council","00MA","Older People (Aged 65 or Over)","Residential Care Home Placements","Residential Placements-Elderly","Contracted Services",28/09/2010 00:00:00,"30161409",1819.12,"SES CARE HOMES LTD"
"Bracknell Forest Council","http://opendatacommunities.org/id/unitary-authority/bracknell-forest","Bracknell Forest Council","00MA","Older People (Aged 65 or Over)","Residential Care Home Placements","Residential Placements-Elderly","Contracted Services",06/09/2010 00:00:00,"30160451",1488.72,"SHANNON COURT"
"Bracknell Forest Council","http://opendatacommunities.org/id/unitary-authority/bracknell-forest","Bracknell Forest Council","00MA","Older People (Aged 65 or Over)","Residential Care Home Placements","Residential Placements-Elderly","Contracted Services",06/09/2010 00:00:00,"30160451",1923.68,"SHANNON COURT"
"Bracknell Forest Council","http://opendatacommunities.org/id/unitary-authority/bracknell-forest","Bracknell Forest Council","00MA","Older People (Aged 65 or Over)","Residential Care Home Placements","Residential Placements-Elderly","Contracted Services",28/09/2010 00:00:00,"30161409",1923.68,"SHANNON COURT"
"Bracknell Forest Council","http://opendatacommunities.org/id/unitary-authority/bracknell-forest","Bracknell Forest Council","00MA","Open Spaces","Countryside Recreation & Management","Countryside Sites - Maintenance","R&M - Planned",14/09/2010 00:00:00,"6423168",1400,"SHORTS AGRICULTURAL"
"Bracknell Forest Council","http://opendatacommunities.org/id/unitary-authority/bracknell-forest","Bracknell Forest Council","00MA","-","-","Easthampstead Park Replacement Telephone System","IT Hardware",07/09/2010 00:00:00,"6422566",905,"SHORTS ELECTRICAL LTD"
"Bracknell Forest Council","http://opendatacommunities.org/id/unitary-authority/bracknell-forest","Bracknell Forest Council","00MA","Building Control","Building Regulations","Naming & Numbering","R&M - Reactive",31/08/2010 00:00:00,"6422545",2494.72,"SIGNWAY SUPPLIES (DATCHET) LTD"
"Bracknell Forest Council","http://opendatacommunities.org/id/unitary-authority/bracknell-forest","Bracknell Forest Council","00MA","Building Control","Building Regulations","Naming & Numbering","R&M - Reactive",31/08/2010 00:00:00,"6422685",2048.5,"SIGNWAY SUPPLIES (DATCHET) LTD"
"Bracknell Forest Council","http://opendatacommunities.org/id/unitary-authority/bracknell-forest","Bracknell Forest Council","00MA","Traffic Management & Road Safety","Traffic Management","Traffic Monitoring","Contracted Services",20/09/2010 00:00:00,"6423304",2300,"SIMONE SURVEYS LTD"
"Bracknell Forest Council","http://opendatacommunities.org/id/unitary-authority/bracknell-forest","Bracknell Forest Council","00MA","Recycling","Collection","Waste Collection Recycling","Cost of Goods Sold",18/08/2010 00:00:00,"6420289",1026.27,"SITA"
"Bracknell Forest Council","http://opendatacommunities.org/id/unitary-authority/bracknell-forest","Bracknell Forest Council","00MA","Recycling","Collection","Recycling Promotions","Publicity & Marketing",18/08/2010 00:00:00,"6420290",730.86,"SITA"
"Bracknell Forest Council","http://opendatacommunities.org/id/unitary-authority/bracknell-forest","Bracknell Forest Council","00MA","Waste Collection","Household Waste Collection","Household Waste Collection","Contracted Services",18/08/2010 00:00:00,"6420291",187744.73,"SITA"
"Bracknell Forest Council","http://opendatacommunities.org/id/unitary-authority/bracknell-forest","Bracknell Forest Council","00MA","-","-","Waste Performance & Efficiency Schemes","Construction - Other Direct Expenses",18/08/2010 00:00:00,"6420292",948.55,"SITA"
"Bracknell Forest Council","http://opendatacommunities.org/id/unitary-authority/bracknell-forest","Bracknell Forest Council","00MA","Waste Collection","Household Waste Collection","Household Waste Collection","Contracted Services",16/09/2010 00:00:00,"6422821",188075.4,"SITA"
"Bracknell Forest Council","http://opendatacommunities.org/id/unitary-authority/bracknell-forest","Bracknell Forest Council","00MA","Recycling","Collection","Waste Collection Recycling","Cost of Goods Sold",16/09/2010 00:00:00,"6422822",585.35,"SITA"
"Bracknell Forest Council","http://opendatacommunities.org/id/unitary-authority/bracknell-forest","Bracknell Forest Council","00MA","-","-","Waste Performance & Efficiency Schemes","Construction - Other Direct Expenses",16/09/2010 00:00:00,"6422823",978.74,"SITA"
"Bracknell Forest Council","http://opendatacommunities.org/id/unitary-authority/bracknell-forest","Bracknell Forest Council","00MA","Support Services & Management Costs","Training","Social Care Training","Training Costs",09/09/2010 00:00:00,"6422891",1000,"SKILLS FOR CARE SOUTH EAST"
"Bracknell Forest Council","http://opendatacommunities.org/id/unitary-authority/bracknell-forest","Bracknell Forest Council","00MA","Older People (Aged 65 or Over)","Residential Care Home Placements","Residential Placements-Elderly","Contracted Services",06/09/2010 00:00:00,"30160451",1923.68,"SLATE HOUSE RESIDENTIAL HOME"
"Bracknell Forest Council","http://opendatacommunities.org/id/unitary-authority/bracknell-forest","Bracknell Forest Council","00MA","Older People (Aged 65 or Over)","Residential Care Home Placements","Residential Placements-Elderly","Contracted Services",06/09/2010 00:00:00,"30160451",1996.8,"SLATE HOUSE RESIDENTIAL HOME"
"Bracknell Forest Council","http://opendatacommunities.org/id/unitary-authority/bracknell-forest","Bracknell Forest Council","00MA","Older People (Aged 65 or Over)","Residential Care Home Placements","Residential Placements-Elderly","Contracted Services",06/09/2010 00:00:00,"30160451",1923.68,"SLATE HOUSE RESIDENTIAL HOME"
"Bracknell Forest Council","http://opendatacommunities.org/id/unitary-authority/bracknell-forest","Bracknell Forest Council","00MA","Older People (Aged 65 or Over)","Residential Care Home Placements","Residential Placements-Elderly","Contracted Services",06/09/2010 00:00:00,"30160451",2100,"SLATE HOUSE RESIDENTIAL HOME"
"Bracknell Forest Council","http://opendatacommunities.org/id/unitary-authority/bracknell-forest","Bracknell Forest Council","00MA","Older People (Aged 65 or Over)","Residential Care Home Placements","Residential Placements-Elderly","Contracted Services",06/09/2010 00:00:00,"30160451",1900.2,"SLATE HOUSE RESIDENTIAL HOME"
"Bracknell Forest Council","http://opendatacommunities.org/id/unitary-authority/bracknell-forest","Bracknell Forest Council","00MA","Older People (Aged 65 or Over)","Residential Care Home Placements","Residential Placements-Elderly","Contracted Services",28/09/2010 00:00:00,"30161409",1160.71,"SLATE HOUSE RESIDENTIAL HOME"
"Bracknell Forest Council","http://opendatacommunities.org/id/unitary-authority/bracknell-forest","Bracknell Forest Council","00MA","Older People (Aged 65 or Over)","Residential Care Home Placements","Residential Placements-Elderly","Contracted Services",28/09/2010 00:00:00,"30161409",1923.68,"SLATE HOUSE RESIDENTIAL HOME"
"Bracknell Forest Council","http://opendatacommunities.org/id/unitary-authority/bracknell-forest","Bracknell Forest Council","00MA","Older People (Aged 65 or Over)","Residential Care Home Placements","Residential Placements-Elderly","Contracted Services",28/09/2010 00:00:00,"30161409",2100,"SLATE HOUSE RESIDENTIAL HOME"
"Bracknell Forest Council","http://opendatacommunities.org/id/unitary-authority/bracknell-forest","Bracknell Forest Council","00MA","Older People (Aged 65 or Over)","Residential Care Home Placements","Residential Placements-Elderly","Contracted Services",28/09/2010 00:00:00,"30161409",1923.68,"SLATE HOUSE RESIDENTIAL HOME"
"Bracknell Forest Council","http://opendatacommunities.org/id/unitary-authority/bracknell-forest","Bracknell Forest Council","00MA","Older People (Aged 65 or Over)","Residential Care Home Placements","Residential Placements-Elderly","Contracted Services",28/09/2010 00:00:00,"30161409",1996.8,"SLATE HOUSE RESIDENTIAL HOME"
"Bracknell Forest Council","http://opendatacommunities.org/id/unitary-authority/bracknell-forest","Bracknell Forest Council","00MA","Older People (Aged 65 or Over)","Residential Care Home Placements","Residential Placements-Elderly","Contracted Services",28/09/2010 00:00:00,"30161409",1900.2,"SLATE HOUSE RESIDENTIAL HOME"
"Bracknell Forest Council","http://opendatacommunities.org/id/unitary-authority/bracknell-forest","Bracknell Forest Council","00MA","Older People (Aged 65 or Over)","Residential Care Home Placements","Elderly  Respite Care","Contracted Services",30/09/2010 00:00:00,"30161559",11928.57,"SLATE HOUSE RESIDENTIAL HOME"
"Bracknell Forest Council","http://opendatacommunities.org/id/unitary-authority/bracknell-forest","Bracknell Forest Council","00MA","-","-","Garth Hill - BFBC Authorised Costs","Furniture & Fittings",31/08/2010 00:00:00,"6421850",59400,"SLINGCO LIMITED"
"Bracknell Forest Council","http://opendatacommunities.org/id/unitary-authority/bracknell-forest","Bracknell Forest Council","00MA","Other Adult Services","Substance Abuse (Addictions)","TA Arrest Referral Post","Voluntary Sector Service Providers",22/07/2010 00:00:00,"6420337",28141,"SMART CRIMINAL JUSTICE SERVICES"
"Bracknell Forest Council","http://opendatacommunities.org/id/unitary-authority/bracknell-forest","Bracknell Forest Council","00MA","Other Adult Services","Substance Abuse (Addictions)","PTB Smart Group","Voluntary Sector Service Providers",22/07/2010 00:00:00,"6420337",4683,"SMART CRIMINAL JUSTICE SERVICES"
"Bracknell Forest Council","http://opendatacommunities.org/id/unitary-authority/bracknell-forest","Bracknell Forest Council","00MA","Other Adult Services","Substance Abuse (Addictions)","PT Structured Day Care","Voluntary Sector Service Providers",22/07/2010 00:00:00,"6420337",32060.13,"SMART CRIMINAL JUSTICE SERVICES"
"Bracknell Forest Council","http://opendatacommunities.org/id/unitary-authority/bracknell-forest","Bracknell Forest Council","00MA","Other Adult Services","Substance Abuse (Addictions)","TA Arrest Referral Post","Voluntary Sector Service Providers",09/07/2010 00:00:00,"6420338",28141,"SMART CRIMINAL JUSTICE SERVICES"
"Bracknell Forest Council","http://opendatacommunities.org/id/unitary-authority/bracknell-forest","Bracknell Forest Council","00MA","Other Adult Services","Substance Abuse (Addictions)","PTB Smart Group","Voluntary Sector Service Providers",09/07/2010 00:00:00,"6420338",4683,"SMART CRIMINAL JUSTICE SERVICES"
"Bracknell Forest Council","http://opendatacommunities.org/id/unitary-authority/bracknell-forest","Bracknell Forest Council","00MA","Other Adult Services","Substance Abuse (Addictions)","PT Structured Day Care","Voluntary Sector Service Providers",09/07/2010 00:00:00,"6420338",32060.13,"SMART CRIMINAL JUSTICE SERVICES"
"Bracknell Forest Council","http://opendatacommunities.org/id/unitary-authority/bracknell-forest","Bracknell Forest Council","00MA","Other Adult Services","Substance Abuse (Addictions)","PTB Smart Group","Voluntary Sector Service Providers",22/07/2010 00:00:00,"6420340",64448.5,"SMART CRIMINAL JUSTICE SERVICES"
"Bracknell Forest Council","http://opendatacommunities.org/id/unitary-authority/bracknell-forest","Bracknell Forest Council","00MA","Other Trading Surpluses & Deficits","Smartcard","Smartconnect","Contracted Services",31/08/2010 00:00:00,"6421729",2550,"SMARTCITIZEN LIMITED"
"Bracknell Forest Council","http://opendatacommunities.org/id/unitary-authority/bracknell-forest","Bracknell Forest Council","00MA","Unapportionable Central Overheads","Unapportionable Central Overheads","e+Card","Contracted Services",31/08/2010 00:00:00,"6421730",3999.25,"SMARTCITIZEN LIMITED"
"Bracknell Forest Council","http://opendatacommunities.org/id/unitary-authority/bracknell-forest","Bracknell Forest Council","00MA","-","-","Smartcard e+card Purchase & Fulfilment","IT Software",31/08/2010 00:00:00,"6421730",1837.17,"SMARTCITIZEN LIMITED"
"Bracknell Forest Council","http://opendatacommunities.org/id/unitary-authority/bracknell-forest","Bracknell Forest Council","00MA","Other Trading Surpluses & Deficits","Smartcard","Smartconnect","Sale of Services",31/08/2010 00:00:00,"6421734",1020,"SMARTCITIZEN LIMITED"
"Bracknell Forest Council","http://opendatacommunities.org/id/unitary-authority/bracknell-forest","Bracknell Forest Council","00MA","Economic Development","Premises Development","Longshot Lane Industrial Estate","R&M - Reactive",21/08/2010 00:00:00,"6420703",660,"SMITH & HOWARD LTD"
"Bracknell Forest Council","http://opendatacommunities.org/id/unitary-authority/bracknell-forest","Bracknell Forest Council","00MA","Economic Development","Premises Development","Liscombe","R&M - Reactive",20/08/2010 00:00:00,"6420704",561,"SMITH & HOWARD LTD"
"Bracknell Forest Council","http://opendatacommunities.org/id/unitary-authority/bracknell-forest","Bracknell Forest Council","00MA","-","-","Balance Sheet","Flexible Benefits Control Account",08/09/2010 00:00:00,"6421544",18828.81,"SODEXO PASS LTD"
"Bracknell Forest Council","http://opendatacommunities.org/id/unitary-authority/bracknell-forest","Bracknell Forest Council","00MA","-","-","Balance Sheet","Flexible Benefits Control Account",08/09/2010 00:00:00,"6421545",1082.65,"SODEXO PASS LTD"
"Bracknell Forest Council","http://opendatacommunities.org/id/unitary-authority/bracknell-forest","Bracknell Forest Council","00MA","Education Management & Support Service","Education Department - Other","Education Library Service - Resources","Computer Software",16/08/2010 00:00:00,"6421536",9375,"SOFTLINK EUROPE LTD"
"Bracknell Forest Council","http://opendatacommunities.org/id/unitary-authority/bracknell-forest","Bracknell Forest Council","00MA","Learning Disability (under 65)","Direct Payments - LD","Direct Payments - LD","Direct Payments to Clients",05/10/2010 00:00:00,"6422967",819.62,"REDACTED PERSONAL DATA"
"Bracknell Forest Council","http://opendatacommunities.org/id/unitary-authority/bracknell-forest","Bracknell Forest Council","00MA","Education Management & Support Service","Standards Fund","SF 1.6 Extended Schools Sustainability","Training Costs",12/08/2010 00:00:00,"6420913",1899.26,"SOLIHULL NHS CARE TRUST"
"Bracknell Forest Council","http://opendatacommunities.org/id/unitary-authority/bracknell-forest","Bracknell Forest Council","00MA","Learning Disability (under 65)","Residential Care Home Placements","Residential Placements-Lrng Disab","Contracted Services",06/09/2010 00:00:00,"30160451",3974.2,"SOLOR CARE GROUP"
"Bracknell Forest Council","http://opendatacommunities.org/id/unitary-authority/bracknell-forest","Bracknell Forest Council","00MA","Learning Disability (under 65)","Nursing Home Placements","Nursing Home Placements LD","Contracted Services",06/09/2010 00:00:00,"30160451",7500.92,"SOLOR CARE GROUP"
"Bracknell Forest Council","http://opendatacommunities.org/id/unitary-authority/bracknell-forest","Bracknell Forest Council","00MA","Learning Disability (under 65)","Day Care","Day Centre Placements-Lrng Disab","Contracted Services",21/09/2010 00:00:00,"30161149",907.84,"SOLOR CARE GROUP"
"Bracknell Forest Council","http://opendatacommunities.org/id/unitary-authority/bracknell-forest","Bracknell Forest Council","00MA","Learning Disability (under 65)","Nursing Home Placements","Nursing Home Placements LD","Contracted Services",28/09/2010 00:00:00,"30161409",7500.92,"SOLOR CARE GROUP"
"Bracknell Forest Council","http://opendatacommunities.org/id/unitary-authority/bracknell-forest","Bracknell Forest Council","00MA","Learning Disability (under 65)","Residential Care Home Placements","Residential Placements-Lrng Disab","Contracted Services",28/09/2010 00:00:00,"30161409",3974.2,"SOLOR CARE GROUP"
"Bracknell Forest Council","http://opendatacommunities.org/id/unitary-authority/bracknell-forest","Bracknell Forest Council","00MA","Youth Justice","Youth Offender Teams","Parenting Grant","Agency",31/08/2010 00:00:00,"6421540",2212.5,"SOLUTIONS TOGETHER UK"
"Bracknell Forest Council","http://opendatacommunities.org/id/unitary-authority/bracknell-forest","Bracknell Forest Council","00MA","Older People (Aged 65 or Over)","Equipment and Adaptations","Aids & Adaptations-Elderly","Equipment - Rental",05/08/2010 00:00:00,"6420274",1466.03,"SOUTH CENTRAL AMBULANCE SERVICE NHS TRUST"
"Bracknell Forest Council","http://opendatacommunities.org/id/unitary-authority/bracknell-forest","Bracknell Forest Council","00MA","Recreation, Sports and Leisure","Golf Courses","Leisure DSO - Downshire Golf Course","Water & Sewerage",27/08/2010 00:00:00,"6421097",1301.24,"SOUTH EAST WATER"
"Bracknell Forest Council","http://opendatacommunities.org/id/unitary-authority/bracknell-forest","Bracknell Forest Council","00MA","Recreation, Sports and Leisure","Indoor Sports & Recreation Facilities","Leisure DSO - Leisure Centre","Water & Sewerage",27/08/2010 00:00:00,"6422014",1502.71,"SOUTH EAST WATER"
"Bracknell Forest Council","http://opendatacommunities.org/id/unitary-authority/bracknell-forest","Bracknell Forest Council","00MA","Recreation, Sports and Leisure","Indoor Sports & Recreation Facilities","Leisure DSO - Coral Reef","Water & Sewerage",27/08/2010 00:00:00,"6422161",3103.89,"SOUTH EAST WATER"
"Bracknell Forest Council","http://opendatacommunities.org/id/unitary-authority/bracknell-forest","Bracknell Forest Council","00MA","Non-School Funding","Pre-School Education","Early Years and Childcare","Voluntary Sector Service Providers",17/09/2010 00:00:00,"6422444",604.8,"SOUTH HILL PARK PRE-SCHOOL"
"Bracknell Forest Council","http://opendatacommunities.org/id/unitary-authority/bracknell-forest","Bracknell Forest Council","00MA","Culture and Heritage","Arts Development and Support","South Hill Park","Grants and Donations",19/08/2010 00:00:00,"6420173",40000,"SOUTH HILL PARK TRUST LTD"
"Bracknell Forest Council","http://opendatacommunities.org/id/unitary-authority/bracknell-forest","Bracknell Forest Council","00MA","Culture and Heritage","Arts Development and Support","South Hill Park","Grants and Donations",16/08/2010 00:00:00,"6420174",50000,"SOUTH HILL PARK TRUST LTD"
"Bracknell Forest Council","http://opendatacommunities.org/id/unitary-authority/bracknell-forest","Bracknell Forest Council","00MA","Culture and Heritage","Arts Development and Support","South Hill Park","Grants and Donations",16/09/2010 00:00:00,"6422507",50000,"SOUTH HILL PARK TRUST LTD"
"Bracknell Forest Council","http://opendatacommunities.org/id/unitary-authority/bracknell-forest","Bracknell Forest Council","00MA","Older People (Aged 65 or Over)","Residential Care Home Placements","Elderly  Respite Care","Contracted Services",16/09/2010 00:00:00,"6422423",1258.33,"SOUTHERN COUNTIES CARE LTD"
"Bracknell Forest Council","http://opendatacommunities.org/id/unitary-authority/bracknell-forest","Bracknell Forest Council","00MA","Older People (Aged 65 or Over)","Nursing Home Placements","Nursing Home Placements PD 65 & Over","Contracted Services",06/09/2010 00:00:00,"30160451",3769.54,"SOUTHERN COUNTIES CARE LTD"
"Bracknell Forest Council","http://opendatacommunities.org/id/unitary-authority/bracknell-forest","Bracknell Forest Council","00MA","Older People (Aged 65 or Over)","Nursing Home Placements","Nursing Home Placements-Elderly","Contracted Services",06/09/2010 00:00:00,"30160451",2358.48,"SOUTHERN COUNTIES CARE LTD"
"Bracknell Forest Council","http://opendatacommunities.org/id/unitary-authority/bracknell-forest","Bracknell Forest Council","00MA","Older People (Aged 65 or Over)","Nursing Home Placements","Nursing Home Placements-Elderly","Contracted Services",06/09/2010 00:00:00,"30160451",3706.18,"SOUTHERN COUNTIES CARE LTD"
"Bracknell Forest Council","http://opendatacommunities.org/id/unitary-authority/bracknell-forest","Bracknell Forest Council","00MA","Older People (Aged 65 or Over)","Nursing Home Placements","Nursing Home Placements-Elderly","Contracted Services",06/09/2010 00:00:00,"30160451",7507.68,"SOUTHERN COUNTIES CARE LTD"
"Bracknell Forest Council","http://opendatacommunities.org/id/unitary-authority/bracknell-forest","Bracknell Forest Council","00MA","Older People (Aged 65 or Over)","Nursing Home Placements","Nursing Home Placements-Elderly","Contracted Services",06/09/2010 00:00:00,"30160451",2360.04,"SOUTHERN COUNTIES CARE LTD"
"Bracknell Forest Council","http://opendatacommunities.org/id/unitary-authority/bracknell-forest","Bracknell Forest Council","00MA","Older People (Aged 65 or Over)","Nursing Home Placements","Nursing Home Placements-Elderly","Contracted Services",06/09/2010 00:00:00,"30160451",2358.48,"SOUTHERN COUNTIES CARE LTD"
"Bracknell Forest Council","http://opendatacommunities.org/id/unitary-authority/bracknell-forest","Bracknell Forest Council","00MA","Older People (Aged 65 or Over)","Nursing Home Placements","Nursing Home Placements-Elderly","Contracted Services",06/09/2010 00:00:00,"30160451",2358.48,"SOUTHERN COUNTIES CARE LTD"
"Bracknell Forest Council","http://opendatacommunities.org/id/unitary-authority/bracknell-forest","Bracknell Forest Council","00MA","Older People (Aged 65 or Over)","Nursing Home Placements","Nursing Home Placements-Elderly","Contracted Services",06/09/2010 00:00:00,"30160451",4997.16,"SOUTHERN COUNTIES CARE LTD"
"Bracknell Forest Council","http://opendatacommunities.org/id/unitary-authority/bracknell-forest","Bracknell Forest Council","00MA","Older People (Aged 65 or Over)","Nursing Home Placements","Nursing Home Placements-Elderly","Contracted Services",06/09/2010 00:00:00,"30160451",7357.2,"SOUTHERN COUNTIES CARE LTD"
"Bracknell Forest Council","http://opendatacommunities.org/id/unitary-authority/bracknell-forest","Bracknell Forest Council","00MA","Older People (Aged 65 or Over)","Nursing Home Placements","Nursing Home Placements-Elderly","Contracted Services",06/09/2010 00:00:00,"30160451",4718.52,"SOUTHERN COUNTIES CARE LTD"
"Bracknell Forest Council","http://opendatacommunities.org/id/unitary-authority/bracknell-forest","Bracknell Forest Council","00MA","Older People (Aged 65 or Over)","Nursing Home Placements","Nursing Home Placements-Elderly","Contracted Services",06/09/2010 00:00:00,"30160451",2222.32,"SOUTHERN COUNTIES CARE LTD"
"Bracknell Forest Council","http://opendatacommunities.org/id/unitary-authority/bracknell-forest","Bracknell Forest Council","00MA","Older People (Aged 65 or Over)","Nursing Home Placements","Nursing Home Placements-Elderly","Contracted Services",06/09/2010 00:00:00,"30160451",4716.96,"SOUTHERN COUNTIES CARE LTD"
"Bracknell Forest Council","http://opendatacommunities.org/id/unitary-authority/bracknell-forest","Bracknell Forest Council","00MA","Older People (Aged 65 or Over)","Nursing Home Placements","Nursing Home Placements-Elderly","Contracted Services",06/09/2010 00:00:00,"30160451",2358.48,"SOUTHERN COUNTIES CARE LTD"
"Bracknell Forest Council","http://opendatacommunities.org/id/unitary-authority/bracknell-forest","Bracknell Forest Council","00MA","Older People (Aged 65 or Over)","Nursing Home Placements","Nursing Home Placements-Elderly","Contracted Services",06/09/2010 00:00:00,"30160451",2638.68,"SOUTHERN COUNTIES CARE LTD"
"Bracknell Forest Council","http://opendatacommunities.org/id/unitary-authority/bracknell-forest","Bracknell Forest Council","00MA","Older People (Aged 65 or Over)","Nursing Home Placements","Nursing Home Placements-Elderly","Contracted Services",06/09/2010 00:00:00,"30160451",2358.48,"SOUTHERN COUNTIES CARE LTD"
"Bracknell Forest Council","http://opendatacommunities.org/id/unitary-authority/bracknell-forest","Bracknell Forest Council","00MA","Older People (Aged 65 or Over)","Nursing Home Placements","Nursing Home Placements-Elderly","Contracted Services",06/09/2010 00:00:00,"30160451",2285.04,"SOUTHERN COUNTIES CARE LTD"
"Bracknell Forest Council","http://opendatacommunities.org/id/unitary-authority/bracknell-forest","Bracknell Forest Council","00MA","Older People (Aged 65 or Over)","Nursing Home Placements","Nursing Home Placements-Elderly","Contracted Services",06/09/2010 00:00:00,"30160451",11792.4,"SOUTHERN COUNTIES CARE LTD"
"Bracknell Forest Council","http://opendatacommunities.org/id/unitary-authority/bracknell-forest","Bracknell Forest Council","00MA","Older People (Aged 65 or Over)","Nursing Home Placements","Nursing Home Placements-Elderly","Contracted Services",06/09/2010 00:00:00,"30160451",2358.48,"SOUTHERN COUNTIES CARE LTD"
"Bracknell Forest Council","http://opendatacommunities.org/id/unitary-authority/bracknell-forest","Bracknell Forest Council","00MA","Older People (Aged 65 or Over)","Nursing Home Placements","Nursing Home Placements-Elderly","Contracted Services",06/09/2010 00:00:00,"30160451",2358.48,"SOUTHERN COUNTIES CARE LTD"
"Bracknell Forest Council","http://opendatacommunities.org/id/unitary-authority/bracknell-forest","Bracknell Forest Council","00MA","Older People (Aged 65 or Over)","Nursing Home Placements","Nursing Home Placements-Elderly","Contracted Services",06/09/2010 00:00:00,"30160451",7075.44,"SOUTHERN COUNTIES CARE LTD"
"Bracknell Forest Council","http://opendatacommunities.org/id/unitary-authority/bracknell-forest","Bracknell Forest Council","00MA","Older People (Aged 65 or Over)","Nursing Home Placements","Nursing Home Placements-Elderly","Contracted Services",06/09/2010 00:00:00,"30160451",2358.48,"SOUTHERN COUNTIES CARE LTD"
"Bracknell Forest Council","http://opendatacommunities.org/id/unitary-authority/bracknell-forest","Bracknell Forest Council","00MA","Older People (Aged 65 or Over)","Nursing Home Placements","Nursing Home Placements-Elderly","Contracted Services",06/09/2010 00:00:00,"30160451",7357.2,"SOUTHERN COUNTIES CARE LTD"
"Bracknell Forest Council","http://opendatacommunities.org/id/unitary-authority/bracknell-forest","Bracknell Forest Council","00MA","Older People (Aged 65 or Over)","Nursing Home Placements","Nursing Home Placements-Elderly","Contracted Services",06/09/2010 00:00:00,"30160451",2360.04,"SOUTHERN COUNTIES CARE LTD"
"Bracknell Forest Council","http://opendatacommunities.org/id/unitary-authority/bracknell-forest","Bracknell Forest Council","00MA","Older People (Aged 65 or Over)","Nursing Home Placements","Nursing Home Placements-Elderly","Contracted Services",06/09/2010 00:00:00,"30160451",2358.48,"SOUTHERN COUNTIES CARE LTD"
"Bracknell Forest Council","http://opendatacommunities.org/id/unitary-authority/bracknell-forest","Bracknell Forest Council","00MA","Older People (Aged 65 or Over)","Nursing Home Placements","Nursing Home Placements-Elderly","Contracted Services",28/09/2010 00:00:00,"30161409",10613.16,"SOUTHERN COUNTIES CARE LTD"
"Bracknell Forest Council","http://opendatacommunities.org/id/unitary-authority/bracknell-forest","Bracknell Forest Council","00MA","Older People (Aged 65 or Over)","Nursing Home Placements","Nursing Home Placements-Elderly","Contracted Services",28/09/2010 00:00:00,"30161409",2358.48,"SOUTHERN COUNTIES CARE LTD"
"Bracknell Forest Council","http://opendatacommunities.org/id/unitary-authority/bracknell-forest","Bracknell Forest Council","00MA","Older People (Aged 65 or Over)","Nursing Home Placements","Nursing Home Placements-Elderly","Contracted Services",28/09/2010 00:00:00,"30161409",2358.48,"SOUTHERN COUNTIES CARE LTD"
"Bracknell Forest Council","http://opendatacommunities.org/id/unitary-authority/bracknell-forest","Bracknell Forest Council","00MA","Older People (Aged 65 or Over)","Nursing Home Placements","Nursing Home Placements-Elderly","Contracted Services",28/09/2010 00:00:00,"30161409",2075.76,"SOUTHERN COUNTIES CARE LTD"
"Bracknell Forest Council","http://opendatacommunities.org/id/unitary-authority/bracknell-forest","Bracknell Forest Council","00MA","Older People (Aged 65 or Over)","Nursing Home Placements","Nursing Home Placements-Elderly","Contracted Services",28/09/2010 00:00:00,"30161409",2360.04,"SOUTHERN COUNTIES CARE LTD"
"Bracknell Forest Council","http://opendatacommunities.org/id/unitary-authority/bracknell-forest","Bracknell Forest Council","00MA","Older People (Aged 65 or Over)","Nursing Home Placements","Nursing Home Placements-Elderly","Contracted Services",28/09/2010 00:00:00,"30161409",4718.52,"SOUTHERN COUNTIES CARE LTD"
"Bracknell Forest Council","http://opendatacommunities.org/id/unitary-authority/bracknell-forest","Bracknell Forest Council","00MA","Older People (Aged 65 or Over)","Nursing Home Placements","Nursing Home Placements-Elderly","Contracted Services",28/09/2010 00:00:00,"30161409",14857.03,"SOUTHERN COUNTIES CARE LTD"
"Bracknell Forest Council","http://opendatacommunities.org/id/unitary-authority/bracknell-forest","Bracknell Forest Council","00MA","Older People (Aged 65 or Over)","Nursing Home Placements","Nursing Home Placements-Elderly","Contracted Services",28/09/2010 00:00:00,"30161409",2790.72,"SOUTHERN COUNTIES CARE LTD"
"Bracknell Forest Council","http://opendatacommunities.org/id/unitary-authority/bracknell-forest","Bracknell Forest Council","00MA","Older People (Aged 65 or Over)","Nursing Home Placements","Nursing Home Placements-Elderly","Contracted Services",28/09/2010 00:00:00,"30161409",2358.48,"SOUTHERN COUNTIES CARE LTD"
"Bracknell Forest Council","http://opendatacommunities.org/id/unitary-authority/bracknell-forest","Bracknell Forest Council","00MA","Older People (Aged 65 or Over)","Nursing Home Placements","Nursing Home Placements-Elderly","Contracted Services",28/09/2010 00:00:00,"30161409",2638.68,"SOUTHERN COUNTIES CARE LTD"
"Bracknell Forest Council","http://opendatacommunities.org/id/unitary-authority/bracknell-forest","Bracknell Forest Council","00MA","Older People (Aged 65 or Over)","Nursing Home Placements","Nursing Home Placements-Elderly","Contracted Services",28/09/2010 00:00:00,"30161409",2360.04,"SOUTHERN COUNTIES CARE LTD"
"Bracknell Forest Council","http://opendatacommunities.org/id/unitary-authority/bracknell-forest","Bracknell Forest Council","00MA","Older People (Aged 65 or Over)","Nursing Home Placements","Nursing Home Placements-Elderly","Contracted Services",28/09/2010 00:00:00,"30161409",4548.5,"SOUTHERN COUNTIES CARE LTD"
"Bracknell Forest Council","http://opendatacommunities.org/id/unitary-authority/bracknell-forest","Bracknell Forest Council","00MA","Older People (Aged 65 or Over)","Nursing Home Placements","Nursing Home Placements-Elderly","Contracted Services",28/09/2010 00:00:00,"30161409",1979.01,"SOUTHERN COUNTIES CARE LTD"
"Bracknell Forest Council","http://opendatacommunities.org/id/unitary-authority/bracknell-forest","Bracknell Forest Council","00MA","Older People (Aged 65 or Over)","Nursing Home Placements","Nursing Home Placements-Elderly","Contracted Services",28/09/2010 00:00:00,"30161409",3183.25,"SOUTHERN COUNTIES CARE LTD"
"Bracknell Forest Council","http://opendatacommunities.org/id/unitary-authority/bracknell-forest","Bracknell Forest Council","00MA","Older People (Aged 65 or Over)","Nursing Home Placements","Nursing Home Placements-Elderly","Contracted Services",28/09/2010 00:00:00,"30161409",2358.48,"SOUTHERN COUNTIES CARE LTD"
"Bracknell Forest Council","http://opendatacommunities.org/id/unitary-authority/bracknell-forest","Bracknell Forest Council","00MA","Older People (Aged 65 or Over)","Nursing Home Placements","Nursing Home Placements-Elderly","Contracted Services",28/09/2010 00:00:00,"30161409",2285.04,"SOUTHERN COUNTIES CARE LTD"
"Bracknell Forest Council","http://opendatacommunities.org/id/unitary-authority/bracknell-forest","Bracknell Forest Council","00MA","Older People (Aged 65 or Over)","Nursing Home Placements","Nursing Home Placements-Elderly","Contracted Services",28/09/2010 00:00:00,"30161409",4716.96,"SOUTHERN COUNTIES CARE LTD"
"Bracknell Forest Council","http://opendatacommunities.org/id/unitary-authority/bracknell-forest","Bracknell Forest Council","00MA","Older People (Aged 65 or Over)","Nursing Home Placements","Nursing Home Placements-Elderly","Contracted Services",28/09/2010 00:00:00,"30161409",2358.48,"SOUTHERN COUNTIES CARE LTD"
"Bracknell Forest Council","http://opendatacommunities.org/id/unitary-authority/bracknell-forest","Bracknell Forest Council","00MA","Older People (Aged 65 or Over)","Nursing Home Placements","Nursing Home Placements-Elderly","Contracted Services",06/09/2010 00:00:00,"30160451",2348.88,"AMBERBROOK MANAGEMENT LTD"
"Bracknell Forest Council","http://opendatacommunities.org/id/unitary-authority/bracknell-forest","Bracknell Forest Council","00MA","Older People (Aged 65 or Over)","Nursing Home Placements","Nursing Home Placements-Elderly","Contracted Services",06/09/2010 00:00:00,"30160451",5160.24,"AMBERBROOK MANAGEMENT LTD"
"Bracknell Forest Council","http://opendatacommunities.org/id/unitary-authority/bracknell-forest","Bracknell Forest Council","00MA","Older People (Aged 65 or Over)","Residential Care Home Placements","Residential Placements-Elderly","Contracted Services",06/09/2010 00:00:00,"30160451",1923.68,"AMBERBROOK MANAGEMENT LTD"
"Bracknell Forest Council","http://opendatacommunities.org/id/unitary-authority/bracknell-forest","Bracknell Forest Council","00MA","Older People (Aged 65 or Over)","Residential Care Home Placements","Residential Placements-Elderly","Contracted Services",06/09/2010 00:00:00,"30160451",1923.68,"AMBERBROOK MANAGEMENT LTD"
"Bracknell Forest Council","http://opendatacommunities.org/id/unitary-authority/bracknell-forest","Bracknell Forest Council","00MA","Older People (Aged 65 or Over)","Nursing Home Placements","Nursing Home Placements-Elderly","Contracted Services",28/09/2010 00:00:00,"30161409",5277.36,"AMBERBROOK MANAGEMENT LTD"
"Bracknell Forest Council","http://opendatacommunities.org/id/unitary-authority/bracknell-forest","Bracknell Forest Council","00MA","Older People (Aged 65 or Over)","Residential Care Home Placements","Residential Placements-Elderly","Contracted Services",28/09/2010 00:00:00,"30161409",1699.12,"AMBERBROOK MANAGEMENT LTD"
"Bracknell Forest Council","http://opendatacommunities.org/id/unitary-authority/bracknell-forest","Bracknell Forest Council","00MA","Older People (Aged 65 or Over)","Residential Care Home Placements","Residential Placements-Elderly","Contracted Services",28/09/2010 00:00:00,"30161409",1819.12,"AMBERBROOK MANAGEMENT LTD"
"Bracknell Forest Council","http://opendatacommunities.org/id/unitary-authority/bracknell-forest","Bracknell Forest Council","00MA","Older People (Aged 65 or Over)","Residential Care Home Placements","Residential Placements-Elderly","Contracted Services",28/09/2010 00:00:00,"30161409",1923.68,"AMBERBROOK MANAGEMENT LTD"
"Bracknell Forest Council","http://opendatacommunities.org/id/unitary-authority/bracknell-forest","Bracknell Forest Council","00MA","Older People (Aged 65 or Over)","Residential Care Home Placements","Residential Placements-Elderly","Contracted Services",28/09/2010 00:00:00,"30161409",1923.68,"AMBERBROOK MANAGEMENT LTD"
"Bracknell Forest Council","http://opendatacommunities.org/id/unitary-authority/bracknell-forest","Bracknell Forest Council","00MA","Older People (Aged 65 or Over)","Residential Care Home Placements","Residential Placements-Elderly","Contracted Services",28/09/2010 00:00:00,"30161409",1923.68,"AMBERBROOK MANAGEMENT LTD"
"Bracknell Forest Council","http://opendatacommunities.org/id/unitary-authority/bracknell-forest","Bracknell Forest Council","00MA","Older People (Aged 65 or Over)","Nursing Home Placements","Nursing Home Placements-Elderly","Contracted Services",28/09/2010 00:00:00,"30161409",2358.48,"AMBERBROOK MANAGEMENT LTD"
"Bracknell Forest Council","http://opendatacommunities.org/id/unitary-authority/bracknell-forest","Bracknell Forest Council","00MA","Older People (Aged 65 or Over)","Nursing Home Placements","Nursing Home Placements-Elderly","Contracted Services",28/09/2010 00:00:00,"30161409",2402.32,"AMBERBROOK MANAGEMENT LTD"
"Bracknell Forest Council","http://opendatacommunities.org/id/unitary-authority/bracknell-forest","Bracknell Forest Council","00MA","Older People (Aged 65 or Over)","Nursing Home Placements","Nursing Home Placements-Elderly","Contracted Services",28/09/2010 00:00:00,"30161409",2564.8,"AMBERBROOK MANAGEMENT LTD"
"Bracknell Forest Council","http://opendatacommunities.org/id/unitary-authority/bracknell-forest","Bracknell Forest Council","00MA","Older People (Aged 65 or Over)","Nursing Home Placements","Nursing Home Placements-Elderly","Contracted Services",28/09/2010 00:00:00,"30161409",2358.48,"SOUTHERN COUNTIES CARE LTD"
"Bracknell Forest Council","http://opendatacommunities.org/id/unitary-authority/bracknell-forest","Bracknell Forest Council","00MA","Older People (Aged 65 or Over)","Nursing Home Placements","Nursing Home Placements-Elderly","Contracted Services",28/09/2010 00:00:00,"30161409",20811.79,"SOUTHERN COUNTIES CARE LTD"
"Bracknell Forest Council","http://opendatacommunities.org/id/unitary-authority/bracknell-forest","Bracknell Forest Council","00MA","Older People (Aged 65 or Over)","Nursing Home Placements","Nursing Home Placements-Elderly","Contracted Services",28/09/2010 00:00:00,"30161409",7357.2,"SOUTHERN COUNTIES CARE LTD"
"Bracknell Forest Council","http://opendatacommunities.org/id/unitary-authority/bracknell-forest","Bracknell Forest Council","00MA","Older People (Aged 65 or Over)","Nursing Home Placements","Nursing Home Placements-Elderly","Contracted Services",28/09/2010 00:00:00,"30161409",11744.97,"SOUTHERN COUNTIES CARE LTD"
"Bracknell Forest Council","http://opendatacommunities.org/id/unitary-authority/bracknell-forest","Bracknell Forest Council","00MA","Older People (Aged 65 or Over)","Nursing Home Placements","Nursing Home Placements-Elderly","Contracted Services",28/09/2010 00:00:00,"30161409",2360.04,"SOUTHERN COUNTIES CARE LTD"
"Bracknell Forest Council","http://opendatacommunities.org/id/unitary-authority/bracknell-forest","Bracknell Forest Council","00MA","Older People (Aged 65 or Over)","Nursing Home Placements","Nursing Home Placements-Elderly","Contracted Services",28/09/2010 00:00:00,"30161409",2358.48,"SOUTHERN COUNTIES CARE LTD"
"Bracknell Forest Council","http://opendatacommunities.org/id/unitary-authority/bracknell-forest","Bracknell Forest Council","00MA","Older People (Aged 65 or Over)","Nursing Home Placements","Nursing Home Placements-Elderly","Contracted Services",28/09/2010 00:00:00,"30161409",2358.48,"SOUTHERN COUNTIES CARE LTD"
"Bracknell Forest Council","http://opendatacommunities.org/id/unitary-authority/bracknell-forest","Bracknell Forest Council","00MA","Older People (Aged 65 or Over)","Nursing Home Placements","Nursing Home Placements-Elderly","Contracted Services",28/09/2010 00:00:00,"30161409",2358.48,"SOUTHERN COUNTIES CARE LTD"
"Bracknell Forest Council","http://opendatacommunities.org/id/unitary-authority/bracknell-forest","Bracknell Forest Council","00MA","Older People (Aged 65 or Over)","Nursing Home Placements","Nursing Home Placements-Elderly","Contracted Services",28/09/2010 00:00:00,"30161409",4997.16,"SOUTHERN COUNTIES CARE LTD"
"Bracknell Forest Council","http://opendatacommunities.org/id/unitary-authority/bracknell-forest","Bracknell Forest Council","00MA","Street Lighting (including Energy Costs)","Street Lighting","Lighting","Electricity",06/09/2010 00:00:00,"6421754",33448.59,"SOUTHERN ELECTRIC PLC         PO BOX 17"
"Bracknell Forest Council","http://opendatacommunities.org/id/unitary-authority/bracknell-forest","Bracknell Forest Council","00MA","Secondary Schools","Delegated Secondary School Budgets","Brakenhale - Secondary","Electricity",30/09/2010 00:00:00,"30161562",1375.01,"SOUTHERN ELECTRICITY"
"Bracknell Forest Council","http://opendatacommunities.org/id/unitary-authority/bracknell-forest","Bracknell Forest Council","00MA","Secondary Schools","Delegated Secondary School Budgets","Easthampstead Park Community - Secondary","Electricity",30/09/2010 00:00:00,"30161562",1862.36,"SOUTHERN ELECTRICITY"
"Bracknell Forest Council","http://opendatacommunities.org/id/unitary-authority/bracknell-forest","Bracknell Forest Council","00MA","Secondary Schools","Delegated Secondary School Budgets","Garth Hill - Secondary","Electricity",30/09/2010 00:00:00,"30161562",8263.59,"SOUTHERN ELECTRICITY"
"Bracknell Forest Council","http://opendatacommunities.org/id/unitary-authority/bracknell-forest","Bracknell Forest Council","00MA","Older People (Aged 65 or Over)","Residential Care Home Placements","Residential Placements-Elderly","Contracted Services",28/09/2010 00:00:00,"30161409",1923.68,"AMBERBROOK MANAGEMENT LTD"
"Bracknell Forest Council","http://opendatacommunities.org/id/unitary-authority/bracknell-forest","Bracknell Forest Council","00MA","Older People (Aged 65 or Over)","Residential Care Home Placements","Residential Placements-Elderly","Contracted Services",28/09/2010 00:00:00,"30161409",1923.68,"AMBERBROOK MANAGEMENT LTD"
"Bracknell Forest Council","http://opendatacommunities.org/id/unitary-authority/bracknell-forest","Bracknell Forest Council","00MA","Older People (Aged 65 or Over)","Nursing Home Placements","Nursing Home Placements-Elderly","Contracted Services",28/09/2010 00:00:00,"30161409",7635.84,"AMBERBROOK MANAGEMENT LTD"
"Bracknell Forest Council","http://opendatacommunities.org/id/unitary-authority/bracknell-forest","Bracknell Forest Council","00MA","Older People (Aged 65 or Over)","Nursing Home Placements","Nursing Home Placements-Elderly","Contracted Services",28/09/2010 00:00:00,"30161409",2638.68,"AMBERBROOK MANAGEMENT LTD"
"Bracknell Forest Council","http://opendatacommunities.org/id/unitary-authority/bracknell-forest","Bracknell Forest Council","00MA","Older People (Aged 65 or Over)","Residential Care Home Placements","Residential Placements-Elderly","Contracted Services",28/09/2010 00:00:00,"30161409",1923.68,"AMBERBROOK MANAGEMENT LTD"
"Bracknell Forest Council","http://opendatacommunities.org/id/unitary-authority/bracknell-forest","Bracknell Forest Council","00MA","Older People (Aged 65 or Over)","Nursing Home Placements","Nursing Home Placements-Elderly","Contracted Services",28/09/2010 00:00:00,"30161409",2358.48,"AMBERBROOK MANAGEMENT LTD"
"Bracknell Forest Council","http://opendatacommunities.org/id/unitary-authority/bracknell-forest","Bracknell Forest Council","00MA","Older People (Aged 65 or Over)","Nursing Home Placements","Nursing Home Placements-Elderly","Contracted Services",28/09/2010 00:00:00,"30161409",5160.24,"AMBERBROOK MANAGEMENT LTD"
"Bracknell Forest Council","http://opendatacommunities.org/id/unitary-authority/bracknell-forest","Bracknell Forest Council","00MA","Older People (Aged 65 or Over)","Nursing Home Placements","Nursing Home Placements-Elderly","Contracted Services",28/09/2010 00:00:00,"30161409",2348.88,"AMBERBROOK MANAGEMENT LTD"
"Bracknell Forest Council","http://opendatacommunities.org/id/unitary-authority/bracknell-forest","Bracknell Forest Council","00MA","Recreation, Sports and Leisure","Retail Services, Catering & Licenced","Easthampstead Park Conference Centre","Grounds Maintenance Costs",14/08/2010 00:00:00,"6420418",1480.83,"AMBIUS"
"Bracknell Forest Council","http://opendatacommunities.org/id/unitary-authority/bracknell-forest","Bracknell Forest Council","00MA","Education Management & Support Service","Performance & Resources","Information Technology - Section","Computer Software",29/07/2010 00:00:00,"6421747",1240,"AMI EDUCATION SOLUTIONS LTD"
"Bracknell Forest Council","http://opendatacommunities.org/id/unitary-authority/bracknell-forest","Bracknell Forest Council","00MA","Recreation, Sports and Leisure","Retail Services, Catering & Licenced","Easthampstead Park Centre - Catering","Cost of Goods Sold",21/08/2010 00:00:00,"6421036",719.34,"AMS WHOLESALE"
"Bracknell Forest Council","http://opendatacommunities.org/id/unitary-authority/bracknell-forest","Bracknell Forest Council","00MA","Recreation, Sports and Leisure","Retail Services, Catering & Licenced","Easthampstead Park Centre - Catering","Cost of Goods Sold",04/09/2010 00:00:00,"6421880",744.65,"AMS WHOLESALE"
"Bracknell Forest Council","http://opendatacommunities.org/id/unitary-authority/bracknell-forest","Bracknell Forest Council","00MA","Recreation, Sports and Leisure","Retail Services, Catering & Licenced","Easthampstead Park Centre - Catering","Cost of Goods Sold",11/09/2010 00:00:00,"6422832",1106.33,"AMS WHOLESALE"
"Bracknell Forest Council","http://opendatacommunities.org/id/unitary-authority/bracknell-forest","Bracknell Forest Council","00MA","Secondary Schools","Delegated Secondary School Budgets","Sandhurst - Secondary","Electricity",30/09/2010 00:00:00,"30161562",1502.25,"SOUTHERN ELECTRICITY"
"Bracknell Forest Council","http://opendatacommunities.org/id/unitary-authority/bracknell-forest","Bracknell Forest Council","00MA","Secondary Schools","Delegated Secondary School Budgets","Ranelagh - Secondary","Electricity",30/09/2010 00:00:00,"30161562",887.13,"SOUTHERN ELECTRICITY"
"Bracknell Forest Council","http://opendatacommunities.org/id/unitary-authority/bracknell-forest","Bracknell Forest Council","00MA","Secondary Schools","Delegated Secondary School Budgets","Garth Hill - Secondary","Electricity",30/09/2010 00:00:00,"30161562",691.33,"SOUTHERN ELECTRICITY"
"Bracknell Forest Council","http://opendatacommunities.org/id/unitary-authority/bracknell-forest","Bracknell Forest Council","00MA","Secondary Schools","Delegated Secondary School Budgets","Edgbarrow - Secondary","Electricity",30/09/2010 00:00:00,"30161562",1095.51,"SOUTHERN ELECTRICITY"
"Bracknell Forest Council","http://opendatacommunities.org/id/unitary-authority/bracknell-forest","Bracknell Forest Council","00MA","Recreation, Sports and Leisure","Dual Use Centres","Edgbarrow Sports Centre","Electricity",30/09/2010 00:00:00,"30161562",1435.87,"SOUTHERN ELECTRICITY"
"Bracknell Forest Council","http://opendatacommunities.org/id/unitary-authority/bracknell-forest","Bracknell Forest Council","00MA","Environmental Initiatives","Sustainable Development Strategies","South Hill Park Energy","Electricity",30/09/2010 00:00:00,"30161562",3514.89,"SOUTHERN ELECTRICITY"
"Bracknell Forest Council","http://opendatacommunities.org/id/unitary-authority/bracknell-forest","Bracknell Forest Council","00MA","Central Support Services - COF","Construction and Property","Easthampstead & Seymour House","Electricity",30/09/2010 00:00:00,"30161562",1936.11,"SOUTHERN ELECTRICITY"
"Bracknell Forest Council","http://opendatacommunities.org/id/unitary-authority/bracknell-forest","Bracknell Forest Council","00MA","Recreation, Sports and Leisure","Indoor Sports & Recreation Facilities","Leisure DSO - Coral Reef","Electricity",30/09/2010 00:00:00,"30161562",9189.95,"SOUTHERN ELECTRICITY"
"Bracknell Forest Council","http://opendatacommunities.org/id/unitary-authority/bracknell-forest","Bracknell Forest Council","00MA","Recreation, Sports and Leisure","Indoor Sports & Recreation Facilities","Leisure DSO - Leisure Centre","Electricity",30/09/2010 00:00:00,"30161562",8303.77,"SOUTHERN ELECTRICITY"
"Bracknell Forest Council","http://opendatacommunities.org/id/unitary-authority/bracknell-forest","Bracknell Forest Council","00MA","Central Support Services - COF","Construction and Property","Time Square Office","Electricity",30/09/2010 00:00:00,"30161562",7241.97,"SOUTHERN ELECTRICITY"
"Bracknell Forest Council","http://opendatacommunities.org/id/unitary-authority/bracknell-forest","Bracknell Forest Council","00MA","Recreation, Sports and Leisure","Retail Services, Catering & Licenced","Easthampstead Park Conference Centre","Electricity",30/09/2010 00:00:00,"30161562",2626.45,"SOUTHERN ELECTRICITY"
"Bracknell Forest Council","http://opendatacommunities.org/id/unitary-authority/bracknell-forest","Bracknell Forest Council","00MA","Older People (Aged 65 or Over)","Residential Care Home Placements","Heathlands EPH","Electricity",30/09/2010 00:00:00,"30161563",511.09,"SOUTHERN ELECTRICITY"
"Bracknell Forest Council","http://opendatacommunities.org/id/unitary-authority/bracknell-forest","Bracknell Forest Council","00MA","Physical Disability/Sensory Impairment","Day Care","Downside Resource Centre","Electricity",30/09/2010 00:00:00,"30161563",260.76,"SOUTHERN ELECTRICITY"
"Bracknell Forest Council","http://opendatacommunities.org/id/unitary-authority/bracknell-forest","Bracknell Forest Council","00MA","Primary Schools","Delegated Primary School Budgets","College Town - Junior","Electricity",30/09/2010 00:00:00,"30161563",181.13,"SOUTHERN ELECTRICITY"
"Bracknell Forest Council","http://opendatacommunities.org/id/unitary-authority/bracknell-forest","Bracknell Forest Council","00MA","Primary Schools","Delegated Primary School Budgets","Birch Hill - Primary","Electricity",30/09/2010 00:00:00,"30161563",827.34,"SOUTHERN ELECTRICITY"
"Bracknell Forest Council","http://opendatacommunities.org/id/unitary-authority/bracknell-forest","Bracknell Forest Council","00MA","Primary Schools","Delegated Primary School Budgets","New Scotland Hill - Primary","Electricity",30/09/2010 00:00:00,"30161563",1600.5,"SOUTHERN ELECTRICITY"
"Bracknell Forest Council","http://opendatacommunities.org/id/unitary-authority/bracknell-forest","Bracknell Forest Council","00MA","Primary Schools","Delegated Primary School Budgets","St Michael's (Sandhurst) - Primary","Electricity",30/09/2010 00:00:00,"30161563",59.6,"SOUTHERN ELECTRICITY"
"Bracknell Forest Council","http://opendatacommunities.org/id/unitary-authority/bracknell-forest","Bracknell Forest Council","00MA","Primary Schools","Delegated Primary School Budgets","Uplands - Primary","Electricity",30/09/2010 00:00:00,"30161563",511.96,"SOUTHERN ELECTRICITY"
"Bracknell Forest Council","http://opendatacommunities.org/id/unitary-authority/bracknell-forest","Bracknell Forest Council","00MA","Primary Schools","Delegated Primary School Budgets","Warfield CE - Primary","Electricity",30/09/2010 00:00:00,"30161563",353.89,"SOUTHERN ELECTRICITY"
"Bracknell Forest Council","http://opendatacommunities.org/id/unitary-authority/bracknell-forest","Bracknell Forest Council","00MA","Central Support Services - COF","Construction and Property","Easthampstead & Seymour House","Electricity",30/09/2010 00:00:00,"30161563",577.86,"SOUTHERN ELECTRICITY"
"Bracknell Forest Council","http://opendatacommunities.org/id/unitary-authority/bracknell-forest","Bracknell Forest Council","00MA","Non-School Funding","Adult & Community Learning","Open Learning Centre - Brakenhale","Electricity",30/09/2010 00:00:00,"30161563",353.17,"SOUTHERN ELECTRICITY"
"Bracknell Forest Council","http://opendatacommunities.org/id/unitary-authority/bracknell-forest","Bracknell Forest Council","00MA","Recreation, Sports and Leisure","Golf Courses","Golf Course Management & Administration","Electricity",30/09/2010 00:00:00,"30161563",1492.21,"SOUTHERN ELECTRICITY"
"Bracknell Forest Council","http://opendatacommunities.org/id/unitary-authority/bracknell-forest","Bracknell Forest Council","00MA","Other Trading Surpluses & Deficits","Bracknell Market","Bracknell Market","Electricity",30/09/2010 00:00:00,"30161563",234.12,"SOUTHERN ELECTRICITY"
"Bracknell Forest Council","http://opendatacommunities.org/id/unitary-authority/bracknell-forest","Bracknell Forest Council","00MA","Central Support Services - COF","Construction and Property","Depot Facilities","Electricity",30/09/2010 00:00:00,"30161563",707.43,"SOUTHERN ELECTRICITY"
"Bracknell Forest Council","http://opendatacommunities.org/id/unitary-authority/bracknell-forest","Bracknell Forest Council","00MA","Central Support Services - COF","Construction and Property","Depot Facilities","Electricity",30/09/2010 00:00:00,"30161563",619.08,"SOUTHERN ELECTRICITY"
"Bracknell Forest Council","http://opendatacommunities.org/id/unitary-authority/bracknell-forest","Bracknell Forest Council","00MA","Parking Services","Off Street Parking","Off Street Parking","Electricity",30/09/2010 00:00:00,"30161563",2304.94,"SOUTHERN ELECTRICITY"
"Bracknell Forest Council","http://opendatacommunities.org/id/unitary-authority/bracknell-forest","Bracknell Forest Council","00MA","Parking Services","Off Street Parking","Off Street Parking","Electricity",30/09/2010 00:00:00,"30161563",414.45,"SOUTHERN ELECTRICITY"
"Bracknell Forest Council","http://opendatacommunities.org/id/unitary-authority/bracknell-forest","Bracknell Forest Council","00MA","Parking Services","Off Street Parking","Off Street Parking","Electricity",30/09/2010 00:00:00,"30161563",1343.21,"SOUTHERN ELECTRICITY"
"Bracknell Forest Council","http://opendatacommunities.org/id/unitary-authority/bracknell-forest","Bracknell Forest Council","00MA","Cemeteries, Crematoria & Mortuary Services","Cemeteries & Crematorium","Easthampstead Park Cemetery &Crematorium","Electricity",30/09/2010 00:00:00,"30161563",574.79,"SOUTHERN ELECTRICITY"
"Bracknell Forest Council","http://opendatacommunities.org/id/unitary-authority/bracknell-forest","Bracknell Forest Council","00MA","Non-School Funding","Youth Services","North Ascot Youth Centre","Electricity",30/09/2010 00:00:00,"30161563",106.53,"SOUTHERN ELECTRICITY"
"Bracknell Forest Council","http://opendatacommunities.org/id/unitary-authority/bracknell-forest","Bracknell Forest Council","00MA","Libraries","Branch Libraries","Sandhurst Library","Electricity",30/09/2010 00:00:00,"30161563",332.78,"SOUTHERN ELECTRICITY"
"Bracknell Forest Council","http://opendatacommunities.org/id/unitary-authority/bracknell-forest","Bracknell Forest Council","00MA","Libraries","Branch Libraries","Ascot Library","Electricity",30/09/2010 00:00:00,"30161563",173.85,"SOUTHERN ELECTRICITY"
"Bracknell Forest Council","http://opendatacommunities.org/id/unitary-authority/bracknell-forest","Bracknell Forest Council","00MA","Culture and Heritage","Heritage Museums & Galleries","The Look Out","Electricity",30/09/2010 00:00:00,"30161563",1395.26,"SOUTHERN ELECTRICITY"
"Bracknell Forest Council","http://opendatacommunities.org/id/unitary-authority/bracknell-forest","Bracknell Forest Council","00MA","Secondary Schools","Delegated Secondary School Budgets","Ranelagh - Secondary","Electricity",30/09/2010 00:00:00,"30161563",212.46,"SOUTHERN ELECTRICITY"
"Bracknell Forest Council","http://opendatacommunities.org/id/unitary-authority/bracknell-forest","Bracknell Forest Council","00MA","Secondary Schools","Delegated Secondary School Budgets","Ranelagh - Secondary","Electricity",30/09/2010 00:00:00,"30161563",184.34,"SOUTHERN ELECTRICITY"
"Bracknell Forest Council","http://opendatacommunities.org/id/unitary-authority/bracknell-forest","Bracknell Forest Council","00MA","Secondary Schools","Delegated Secondary School Budgets","Ranelagh - Secondary","Electricity",30/09/2010 00:00:00,"30161563",-191.6,"SOUTHERN ELECTRICITY"
"Bracknell Forest Council","http://opendatacommunities.org/id/unitary-authority/bracknell-forest","Bracknell Forest Council","00MA","Secondary Schools","Delegated Secondary School Budgets","Brakenhale - Secondary","Electricity",30/09/2010 00:00:00,"30161563",21.81,"SOUTHERN ELECTRICITY"
"Bracknell Forest Council","http://opendatacommunities.org/id/unitary-authority/bracknell-forest","Bracknell Forest Council","00MA","Secondary Schools","Delegated Secondary School Budgets","Brakenhale - Secondary","Electricity",30/09/2010 00:00:00,"30161563",21.81,"SOUTHERN ELECTRICITY"
"Bracknell Forest Council","http://opendatacommunities.org/id/unitary-authority/bracknell-forest","Bracknell Forest Council","00MA","Primary Schools","Delegated Primary School Budgets","Whitegrove - Primary","Electricity",30/09/2010 00:00:00,"30161563",984.16,"SOUTHERN ELECTRICITY"
"Bracknell Forest Council","http://opendatacommunities.org/id/unitary-authority/bracknell-forest","Bracknell Forest Council","00MA","Primary Schools","Delegated Primary School Budgets","Uplands - Primary","Electricity",30/09/2010 00:00:00,"30161563",166.53,"SOUTHERN ELECTRICITY"
"Bracknell Forest Council","http://opendatacommunities.org/id/unitary-authority/bracknell-forest","Bracknell Forest Council","00MA","Primary Schools","Delegated Primary School Budgets","Uplands - Primary","Electricity",30/09/2010 00:00:00,"30161563",874.9,"SOUTHERN ELECTRICITY"
"Bracknell Forest Council","http://opendatacommunities.org/id/unitary-authority/bracknell-forest","Bracknell Forest Council","00MA","Primary Schools","Delegated Primary School Budgets","St Michael's (Sandhurst) - Primary","Electricity",30/09/2010 00:00:00,"30161563",847.42,"SOUTHERN ELECTRICITY"
"Bracknell Forest Council","http://opendatacommunities.org/id/unitary-authority/bracknell-forest","Bracknell Forest Council","00MA","Primary Schools","Delegated Primary School Budgets","New Scotland Hill - Primary","Electricity",30/09/2010 00:00:00,"30161563",23.94,"SOUTHERN ELECTRICITY"
"Bracknell Forest Council","http://opendatacommunities.org/id/unitary-authority/bracknell-forest","Bracknell Forest Council","00MA","Primary Schools","Delegated Primary School Budgets","Binfield CE - Primary","Electricity",30/09/2010 00:00:00,"30161563",515.87,"SOUTHERN ELECTRICITY"
"Bracknell Forest Council","http://opendatacommunities.org/id/unitary-authority/bracknell-forest","Bracknell Forest Council","00MA","Primary Schools","Delegated Primary School Budgets","Ascot Heath - Junior","Electricity",30/09/2010 00:00:00,"30161563",1553.85,"SOUTHERN ELECTRICITY"
"Bracknell Forest Council","http://opendatacommunities.org/id/unitary-authority/bracknell-forest","Bracknell Forest Council","00MA","Older People (Aged 65 or Over)","Residential Care Home Placements","Ladybank EPH","Electricity",30/09/2010 00:00:00,"30161563",987.59,"SOUTHERN ELECTRICITY"
"Bracknell Forest Council","http://opendatacommunities.org/id/unitary-authority/bracknell-forest","Bracknell Forest Council","00MA","Supporting People","Supporting People","Supporting People Payments","Transfer Payments - Supporting People",06/09/2010 00:00:00,"6421087",536.48,"SOUTHERN HOUSING GROUP"
"Bracknell Forest Council","http://opendatacommunities.org/id/unitary-authority/bracknell-forest","Bracknell Forest Council","00MA","Holding Accounts in Budget Book COF","Corporate Serv - Reprographics & Printing","Reprographics & Printing","Materials",02/09/2010 00:00:00,"6421954",732.96,"SOUTHERN PAPER"
"Bracknell Forest Council","http://opendatacommunities.org/id/unitary-authority/bracknell-forest","Bracknell Forest Council","00MA","Holding Accounts in Budget Book COF","Corporate Serv - Reprographics & Printing","Reprographics & Printing","Materials",02/09/2010 00:00:00,"6422381",586.37,"SOUTHERN PAPER"
"Bracknell Forest Council","http://opendatacommunities.org/id/unitary-authority/bracknell-forest","Bracknell Forest Council","00MA","Recreation, Sports and Leisure","Indoor Sports & Recreation Facilities","Leisure DSO - Leisure Centre","Cleaning materials",16/09/2010 00:00:00,"6423282",631.75,"SOUTHERN SUPPLIES"
"Bracknell Forest Council","http://opendatacommunities.org/id/unitary-authority/bracknell-forest","Bracknell Forest Council","00MA","Recreation, Sports and Leisure","Indoor Sports & Recreation Facilities","Leisure DSO - Leisure Centre","Cleaning materials",08/09/2010 00:00:00,"6423283",605,"SOUTHERN SUPPLIES"
"Bracknell Forest Council","http://opendatacommunities.org/id/unitary-authority/bracknell-forest","Bracknell Forest Council","00MA","-","-","Garth Hill - Temp works to Bull Lane","Other Direct Expenses",31/07/2010 00:00:00,"6420699",572.05,"SPEEDCUT CONTRACTORS LTD"
"Bracknell Forest Council","http://opendatacommunities.org/id/unitary-authority/bracknell-forest","Bracknell Forest Council","00MA","-","-","Garth Hill - Temp works to Bull Lane","Other Direct Expenses",31/07/2010 00:00:00,"6420699",1752,"SPEEDCUT CONTRACTORS LTD"
"Bracknell Forest Council","http://opendatacommunities.org/id/unitary-authority/bracknell-forest","Bracknell Forest Council","00MA","-","-","Garth Hill - Temp works to Bull Lane","Other Direct Expenses",31/07/2010 00:00:00,"6420699",6052,"SPEEDCUT CONTRACTORS LTD"
"Bracknell Forest Council","http://opendatacommunities.org/id/unitary-authority/bracknell-forest","Bracknell Forest Council","00MA","-","-","Garth Hill - Temp works to Bull Lane","Other Direct Expenses",31/07/2010 00:00:00,"6420699",1532,"SPEEDCUT CONTRACTORS LTD"
"Bracknell Forest Council","http://opendatacommunities.org/id/unitary-authority/bracknell-forest","Bracknell Forest Council","00MA","-","-","Garth Hill - Temp works to Bull Lane","Other Direct Expenses",31/07/2010 00:00:00,"6420700",5440,"SPEEDCUT CONTRACTORS LTD"
"Bracknell Forest Council","http://opendatacommunities.org/id/unitary-authority/bracknell-forest","Bracknell Forest Council","00MA","-","-","Garth Hill - Temp works to Bull Lane","Other Direct Expenses",30/08/2010 00:00:00,"6421240",3000,"SPEEDCUT CONTRACTORS LTD"
"Bracknell Forest Council","http://opendatacommunities.org/id/unitary-authority/bracknell-forest","Bracknell Forest Council","00MA","-","-","Garth Hill - Temp works to Bull Lane","Other Direct Expenses",25/08/2010 00:00:00,"6421245",560,"SPEEDCUT CONTRACTORS LTD"
"Bracknell Forest Council","http://opendatacommunities.org/id/unitary-authority/bracknell-forest","Bracknell Forest Council","00MA","-","-","Garth Hill - Client Fees","Other Direct Expenses",25/08/2010 00:00:00,"6421245",1287.6,"SPEEDCUT CONTRACTORS LTD"
"Bracknell Forest Council","http://opendatacommunities.org/id/unitary-authority/bracknell-forest","Bracknell Forest Council","00MA","-","-","Garth Hill - Temp works to Bull Lane","Other Direct Expenses",31/08/2010 00:00:00,"6421246",3586.17,"SPEEDCUT CONTRACTORS LTD"
"Bracknell Forest Council","http://opendatacommunities.org/id/unitary-authority/bracknell-forest","Bracknell Forest Council","00MA","-","-","Garth Hill - Temp works to Bull Lane","Other Direct Expenses",31/08/2010 00:00:00,"6421246",2114.83,"SPEEDCUT CONTRACTORS LTD"
"Bracknell Forest Council","http://opendatacommunities.org/id/unitary-authority/bracknell-forest","Bracknell Forest Council","00MA","-","-","Garth Hill - Temp works to Bull Lane","Other Direct Expenses",31/08/2010 00:00:00,"6421246",825,"SPEEDCUT CONTRACTORS LTD"
"Bracknell Forest Council","http://opendatacommunities.org/id/unitary-authority/bracknell-forest","Bracknell Forest Council","00MA","Recreation, Sports and Leisure","Indoor Sports & Recreation Facilities","Leisure DSO - Coral Reef","Cost of Goods Sold",01/09/2010 00:00:00,"6421819",1174.84,"SPEEDO INTERNATIONAL LTD"
"Bracknell Forest Council","http://opendatacommunities.org/id/unitary-authority/bracknell-forest","Bracknell Forest Council","00MA","Non-School Funding","Pre-School Education","Early Years and Childcare","Voluntary Sector Service Providers",17/09/2010 00:00:00,"6422450",504,"SPORTS  CENTRE PRE-SCHOOL"
"Bracknell Forest Council","http://opendatacommunities.org/id/unitary-authority/bracknell-forest","Bracknell Forest Council","00MA","-","-","Garth Hill - Temp works to Bull Lane","Other Direct Expenses",31/08/2010 00:00:00,"6421227",2048,"SPORTS TURF CONSULTANTS (UK) LTD"
"Bracknell Forest Council","http://opendatacommunities.org/id/unitary-authority/bracknell-forest","Bracknell Forest Council","00MA","-","-","Garth Hill - Client Fees","Other Direct Expenses",31/08/2010 00:00:00,"6421297",902,"SPORTS TURF CONSULTANTS (UK) LTD"
"Bracknell Forest Council","http://opendatacommunities.org/id/unitary-authority/bracknell-forest","Bracknell Forest Council","00MA","Economic Development","Economic Development","Town Centre Management","Grants and Donations",24/08/2010 00:00:00,"6420778",3000,"SPRINGFIELD DECORATIONS & DISPLAY LTD"
"Bracknell Forest Council","http://opendatacommunities.org/id/unitary-authority/bracknell-forest","Bracknell Forest Council","00MA","Older People (Aged 65 or Over)","Residential Care Home Placements","Residential Placements-Elderly","Contracted Services",06/09/2010 00:00:00,"30160451",1600,"ST ANNES RESIDENTIAL HOME"
"Bracknell Forest Council","http://opendatacommunities.org/id/unitary-authority/bracknell-forest","Bracknell Forest Council","00MA","Older People (Aged 65 or Over)","Residential Care Home Placements","Residential Placements-Elderly","Contracted Services",28/09/2010 00:00:00,"30161409",1600,"ST ANNES RESIDENTIAL HOME"
"Bracknell Forest Council","http://opendatacommunities.org/id/unitary-authority/bracknell-forest","Bracknell Forest Council","00MA","Older People (Aged 65 or Over)","Residential Care Home Placements","Residential Placements-Elderly","Contracted Services",06/09/2010 00:00:00,"30160451",1819.12,"ST CLAIR HOUSE CARE HOME"
"Bracknell Forest Council","http://opendatacommunities.org/id/unitary-authority/bracknell-forest","Bracknell Forest Council","00MA","Older People (Aged 65 or Over)","Residential Care Home Placements","Residential Placements-Elderly","Contracted Services",28/09/2010 00:00:00,"30161409",1819.12,"ST CLAIR HOUSE CARE HOME"
"Bracknell Forest Council","http://opendatacommunities.org/id/unitary-authority/bracknell-forest","Bracknell Forest Council","00MA","Recreation, Sports and Leisure","Indoor Sports & Recreation Facilities","Leisure DSO - Coral Reef","Materials",27/08/2010 00:00:00,"6421136",527.5,"ST JOHN AMBULANCE SUPPLIES"
"Bracknell Forest Council","http://opendatacommunities.org/id/unitary-authority/bracknell-forest","Bracknell Forest Council","00MA","Non-School Funding","Pre-School Education","Early Years and Childcare","Grants and Donations",17/09/2010 00:00:00,"6422494",1198.5,"ST MICHAELS CHILDCARE TRUST LTD"
"Bracknell Forest Council","http://opendatacommunities.org/id/unitary-authority/bracknell-forest","Bracknell Forest Council","00MA","Non-School Funding","Pre-School Education","Early Years and Childcare","Grants and Donations",17/09/2010 00:00:00,"6422498",604.8,"ST.MICHAEL'S SCHOOL HOUSE"
"Bracknell Forest Council","http://opendatacommunities.org/id/unitary-authority/bracknell-forest","Bracknell Forest Council","00MA","Open Spaces","Community Parks & Open Spaces","Pitches/Courts/Pavilion","Materials",08/09/2010 00:00:00,"6422285",2250,"STADIA SPORTS INTERNATIONAL"
"Bracknell Forest Council","http://opendatacommunities.org/id/unitary-authority/bracknell-forest","Bracknell Forest Council","00MA","-","-","14-19 Diplomas Garth Hill","Furniture & Fittings",26/08/2010 00:00:00,"6420837",31287.53,"STAGE ELECTRICS"
"Bracknell Forest Council","http://opendatacommunities.org/id/unitary-authority/bracknell-forest","Bracknell Forest Council","00MA","-","-","14-19 Diplomas Garth Hill","Furniture & Fittings",26/08/2010 00:00:00,"6420838",31058.97,"STAGE ELECTRICS"
"Bracknell Forest Council","http://opendatacommunities.org/id/unitary-authority/bracknell-forest","Bracknell Forest Council","00MA","-","-","Brakenhale Science Block","Other Direct Expenses",17/08/2010 00:00:00,"6423362",761,"STAGE SYSTEMS LTD"
"Bracknell Forest Council","http://opendatacommunities.org/id/unitary-authority/bracknell-forest","Bracknell Forest Council","00MA","-","-","Brakenhale Science Block","Other Direct Expenses",17/08/2010 00:00:00,"6423362",1237,"STAGE SYSTEMS LTD"
"Bracknell Forest Council","http://opendatacommunities.org/id/unitary-authority/bracknell-forest","Bracknell Forest Council","00MA","Public Transport","Concessionary Fares","Concessionary Fares","Contracted Services",07/09/2010 00:00:00,"6421274",6078.92,"STAGECOACH HANTS AND SURREY"
"Bracknell Forest Council","http://opendatacommunities.org/id/unitary-authority/bracknell-forest","Bracknell Forest Council","00MA","-","-","Disabled Facilities Grant","Grants Paid",28/09/2010 00:00:00,"6423524",2432,"STANNAH LIFT SERVICES LTD"
"Bracknell Forest Council","http://opendatacommunities.org/id/unitary-authority/bracknell-forest","Bracknell Forest Council","00MA","-","-","Disabled Facilities Grant","Grants Paid",27/09/2010 00:00:00,"6423527",4286.19,"STANNAH LIFT SERVICES LTD"
"Bracknell Forest Council","http://opendatacommunities.org/id/unitary-authority/bracknell-forest","Bracknell Forest Council","00MA","Learning Disability (under 65)","Residential Care Home Placements","Residential Placements-Lrng Disab","Contracted Services",28/09/2010 00:00:00,"30161409",29702.29,"STEPPING STONES RESETTLEMENT UNIT"
"Bracknell Forest Council","http://opendatacommunities.org/id/unitary-authority/bracknell-forest","Bracknell Forest Council","00MA","Learning Disability (under 65)","Residential Care Home Placements","Residential Placements-Lrng Disab","Contracted Services",29/09/2010 00:00:00,"30161513",7048,"STEPPING STONES RESETTLEMENT UNIT"
"Bracknell Forest Council","http://opendatacommunities.org/id/unitary-authority/bracknell-forest","Bracknell Forest Council","00MA","Central Support Services - COF","Personnel","Personnel Services","Consultants Fees",02/09/2010 00:00:00,"6421219",2950,"STEVE VALE - HR CONSULTANT"
"Bracknell Forest Council","http://opendatacommunities.org/id/unitary-authority/bracknell-forest","Bracknell Forest Council","00MA","Central Support Services - COF","Personnel","Personnel Services","Consultants Fees",02/09/2010 00:00:00,"6421220",700,"STEVE VALE - HR CONSULTANT"
"Bracknell Forest Council","http://opendatacommunities.org/id/unitary-authority/bracknell-forest","Bracknell Forest Council","00MA","Learning Disability (under 65)","Residential Care Home Placements","Residential Placements-Lrng Disab","Contracted Services",06/09/2010 00:00:00,"30160451",5295.68,"STROUD COURT COMMUNITY TRUST"
"Bracknell Forest Council","http://opendatacommunities.org/id/unitary-authority/bracknell-forest","Bracknell Forest Council","00MA","Learning Disability (under 65)","Residential Care Home Placements","Residential Placements-Lrng Disab","Contracted Services",28/09/2010 00:00:00,"30161409",5295.68,"STROUD COURT COMMUNITY TRUST"
"Bracknell Forest Council","http://opendatacommunities.org/id/unitary-authority/bracknell-forest","Bracknell Forest Council","00MA","Non-School Funding","Youth Services","Sandhurst Youth Centre","Youth & Community Activities",03/08/2010 00:00:00,"6422182",882,"STUDYTRIPS"
"Bracknell Forest Council","http://opendatacommunities.org/id/unitary-authority/bracknell-forest","Bracknell Forest Council","00MA","Older People (Aged 65 or Over)","Assessment & Care Management","Short Term Services - Therapy","Agency",31/08/2010 00:00:00,"6420980",1073,"SUGARMAN GROUP LTD"
"Bracknell Forest Council","http://opendatacommunities.org/id/unitary-authority/bracknell-forest","Bracknell Forest Council","00MA","Older People (Aged 65 or Over)","Assessment & Care Management","Short Term Services - Therapy","Agency",07/09/2010 00:00:00,"6421767",1029.25,"SUGARMAN GROUP LTD"
"Bracknell Forest Council","http://opendatacommunities.org/id/unitary-authority/bracknell-forest","Bracknell Forest Council","00MA","Older People (Aged 65 or Over)","Assessment & Care Management","Short Term Services - Therapy","Agency",14/09/2010 00:00:00,"6422398",1113.4,"SUGARMAN GROUP LTD"
"Bracknell Forest Council","http://opendatacommunities.org/id/unitary-authority/bracknell-forest","Bracknell Forest Council","00MA","Older People (Aged 65 or Over)","Assessment & Care Management","Short Term Services - Therapy","Agency",21/09/2010 00:00:00,"6423268",1115.8,"SUGARMAN GROUP LTD"
"Bracknell Forest Council","http://opendatacommunities.org/id/unitary-authority/bracknell-forest","Bracknell Forest Council","00MA","Other Children's & Family Services","Other Children Services","Asylum Seekers (UASC)","Contracted Services",26/08/2010 00:00:00,"6421671",3622.74,"SUNBEAM FOSTERING AGENCY LIMITED"
"Bracknell Forest Council","http://opendatacommunities.org/id/unitary-authority/bracknell-forest","Bracknell Forest Council","00MA","Winter Service","Winter Maintenance","Preliminaries - Other Roads","Agency",27/08/2010 00:00:00,"6421736",1160,"SUNHILL SURVEYING AND ENGINEERING"
"Bracknell Forest Council","http://opendatacommunities.org/id/unitary-authority/bracknell-forest","Bracknell Forest Council","00MA","-","-","Berks Way/Doncastle Rd Rbt Capacity Improvements","Construction - Other Direct Expenses",30/07/2010 00:00:00,"6422011",5650,"SUNHILL SURVEYING AND ENGINEERING"
"Bracknell Forest Council","http://opendatacommunities.org/id/unitary-authority/bracknell-forest","Bracknell Forest Council","00MA","Recreation, Sports and Leisure","Indoor Sports & Recreation Facilities","Leisure DSO - Coral Reef Maintenance","Grounds Maintenance Costs",31/08/2010 00:00:00,"6421574",766.11,"SUPERPLANTS LTD"
"Bracknell Forest Council","http://opendatacommunities.org/id/unitary-authority/bracknell-forest","Bracknell Forest Council","00MA","Primary Schools","Other Primary Related Expenditure","BST Team Training","Training Costs",18/08/2010 00:00:00,"6421390",600,"SURREY PCT"
"Bracknell Forest Council","http://opendatacommunities.org/id/unitary-authority/bracknell-forest","Bracknell Forest Council","00MA","Primary Schools","Other Primary Related Expenditure","BST Team Training","Training Costs",25/08/2010 00:00:00,"6421391",600,"SURREY PCT"
"Bracknell Forest Council","http://opendatacommunities.org/id/unitary-authority/bracknell-forest","Bracknell Forest Council","00MA","Physical Disability/Sensory Impairment","Assessment & Care Management","Older People & Long Term Conditions Team","Agency",06/09/2010 00:00:00,"6422833",1605.35,"SWANSTAFF RECRUITMENT LIMITED"
"Bracknell Forest Council","http://opendatacommunities.org/id/unitary-authority/bracknell-forest","Bracknell Forest Council","00MA","Holding Accounts","Landscape Services","Landscape Services Operational","Cost of Goods Sold",07/09/2010 00:00:00,"6422700",641.15,"SYNGENTA SEEDS LTD"
"Bracknell Forest Council","http://opendatacommunities.org/id/unitary-authority/bracknell-forest","Bracknell Forest Council","00MA","Recreation, Sports and Leisure","Golf Courses","Leisure DSO - Downshire Golf Course","Vehicle Repairs",16/08/2010 00:00:00,"6421441",548.17,"T H WHITE LTD"
"Bracknell Forest Council","http://opendatacommunities.org/id/unitary-authority/bracknell-forest","Bracknell Forest Council","00MA","Recreation, Sports and Leisure","Golf Courses","Leisure DSO - Downshire Golf Course","Vehicle Repairs",20/08/2010 00:00:00,"6421442",936.79,"T H WHITE LTD"
"Bracknell Forest Council","http://opendatacommunities.org/id/unitary-authority/bracknell-forest","Bracknell Forest Council","00MA","Physical Disability/Sensory Impairment","Direct Payments","Direct Payments - PD","Direct Payments to Clients",05/10/2010 00:00:00,"6423042",1536.75,"REDACTED PERSONAL DATA"
"Bracknell Forest Council","http://opendatacommunities.org/id/unitary-authority/bracknell-forest","Bracknell Forest Council","00MA","Older People (Aged 65 or Over)","Residential Care Home Placements","Bridgewell Unit","Agency",05/09/2010 00:00:00,"6422206",690.59,"TEAM SUPPORT SERVICES"
"Bracknell Forest Council","http://opendatacommunities.org/id/unitary-authority/bracknell-forest","Bracknell Forest Council","00MA","Older People (Aged 65 or Over)","Residential Care Home Placements","Heathlands EPH","Agency",22/08/2010 00:00:00,"6422363",776.25,"TEAM SUPPORT SERVICES"
"Bracknell Forest Council","http://opendatacommunities.org/id/unitary-authority/bracknell-forest","Bracknell Forest Council","00MA","Older People (Aged 65 or Over)","Residential Care Home Placements","Heathlands EPH","Agency",05/09/2010 00:00:00,"6422388",1369.25,"TEAM SUPPORT SERVICES"
"Bracknell Forest Council","http://opendatacommunities.org/id/unitary-authority/bracknell-forest","Bracknell Forest Council","00MA","Recreation, Sports and Leisure","Dual Use Centres","Edgbarrow Sports Centre","Equipment - R&M",02/08/2010 00:00:00,"6420304",585.25,"TECHNICAL SURFACES LTD"
"Bracknell Forest Council","http://opendatacommunities.org/id/unitary-authority/bracknell-forest","Bracknell Forest Council","00MA","Public Transport","Concessionary Fares","Concessionary Fares","Contracted Services",23/08/2010 00:00:00,"6420453",3751.54,"THAMES TRAVEL LTD"
"Bracknell Forest Council","http://opendatacommunities.org/id/unitary-authority/bracknell-forest","Bracknell Forest Council","00MA","Public Transport","Concessionary Fares","Concessionary Fares","Contracted Services",07/09/2010 00:00:00,"6421275",14422.07,"THAMES TRAVEL LTD"
"Bracknell Forest Council","http://opendatacommunities.org/id/unitary-authority/bracknell-forest","Bracknell Forest Council","00MA","Public Transport","Support To Operators","Public Transport Subsidy","Contracted Services",26/08/2010 00:00:00,"6421594",32803.17,"THAMES TRAVEL LTD"
"Bracknell Forest Council","http://opendatacommunities.org/id/unitary-authority/bracknell-forest","Bracknell Forest Council","00MA","Recreation, Sports and Leisure","Indoor Sports & Recreation Facilities","Leisure DSO - Leisure Centre","Water & Sewerage",18/08/2010 00:00:00,"6421864",1074.79,"THAMES WATER UTILITIES LTD"
"Bracknell Forest Council","http://opendatacommunities.org/id/unitary-authority/bracknell-forest","Bracknell Forest Council","00MA","Learning Disability (under 65)","Residential Care Home Placements","Residential Placements-Lrng Disab","Contracted Services",06/09/2010 00:00:00,"30160451",2463.12,"THE ANTHONY TOBY HOMES TRUST"
"Bracknell Forest Council","http://opendatacommunities.org/id/unitary-authority/bracknell-forest","Bracknell Forest Council","00MA","Learning Disability (under 65)","Residential Care Home Placements","Residential Placements-Lrng Disab","Contracted Services",06/09/2010 00:00:00,"30160451",4240.6,"THE ANTHONY TOBY HOMES TRUST"
"Bracknell Forest Council","http://opendatacommunities.org/id/unitary-authority/bracknell-forest","Bracknell Forest Council","00MA","Learning Disability (under 65)","Day Care","Day Centre Placements-Lrng Disab","Contracted Services",09/09/2010 00:00:00,"30160623",850.67,"THE ANTHONY TOBY HOMES TRUST"
"Bracknell Forest Council","http://opendatacommunities.org/id/unitary-authority/bracknell-forest","Bracknell Forest Council","00MA","Learning Disability (under 65)","Day Care","Day Centre Placements-Lrng Disab","Contracted Services",09/09/2010 00:00:00,"30160623",850.67,"THE ANTHONY TOBY HOMES TRUST"
"Bracknell Forest Council","http://opendatacommunities.org/id/unitary-authority/bracknell-forest","Bracknell Forest Council","00MA","Learning Disability (under 65)","Day Care","Day Centre Placements-Lrng Disab","Contracted Services",09/09/2010 00:00:00,"30160623",850.67,"THE ANTHONY TOBY HOMES TRUST"
"Bracknell Forest Council","http://opendatacommunities.org/id/unitary-authority/bracknell-forest","Bracknell Forest Council","00MA","Learning Disability (under 65)","Day Care","Day Centre Placements-Lrng Disab","Contracted Services",09/09/2010 00:00:00,"30160623",895.4,"THE ANTHONY TOBY HOMES TRUST"
"Bracknell Forest Council","http://opendatacommunities.org/id/unitary-authority/bracknell-forest","Bracknell Forest Council","00MA","Learning Disability (under 65)","Day Care","Day Centre Placements-Lrng Disab","Contracted Services",09/09/2010 00:00:00,"30160623",895.4,"THE ANTHONY TOBY HOMES TRUST"
"Bracknell Forest Council","http://opendatacommunities.org/id/unitary-authority/bracknell-forest","Bracknell Forest Council","00MA","Learning Disability (under 65)","Residential Care Home Placements","Residential Placements-Lrng Disab","Contracted Services",28/09/2010 00:00:00,"30161409",2463.12,"THE ANTHONY TOBY HOMES TRUST"
"Bracknell Forest Council","http://opendatacommunities.org/id/unitary-authority/bracknell-forest","Bracknell Forest Council","00MA","Learning Disability (under 65)","Residential Care Home Placements","Residential Placements-Lrng Disab","Contracted Services",28/09/2010 00:00:00,"30161409",4240.6,"THE ANTHONY TOBY HOMES TRUST"
"Bracknell Forest Council","http://opendatacommunities.org/id/unitary-authority/bracknell-forest","Bracknell Forest Council","00MA","Non-School Funding","Adult & Community Learning","Adult and Community Learning Plan","External Agency Services",01/01/2011 00:00:00,"6419973",2160,"THE ARK TRUST LTD"
"Bracknell Forest Council","http://opendatacommunities.org/id/unitary-authority/bracknell-forest","Bracknell Forest Council","00MA","Non-School Funding","Adult & Community Learning","Adult and Community Learning Plan","External Agency Services",01/02/2011 00:00:00,"6419974",2160,"THE ARK TRUST LTD"
"Bracknell Forest Council","http://opendatacommunities.org/id/unitary-authority/bracknell-forest","Bracknell Forest Council","00MA","Non-School Funding","Adult & Community Learning","Adult and Community Learning Plan","External Agency Services",01/03/2011 00:00:00,"6419975",2160,"THE ARK TRUST LTD"
"Bracknell Forest Council","http://opendatacommunities.org/id/unitary-authority/bracknell-forest","Bracknell Forest Council","00MA","Non-School Funding","Adult & Community Learning","Adult and Community Learning Plan","External Agency Services",01/11/2010 00:00:00,"6419976",2160,"THE ARK TRUST LTD"
"Bracknell Forest Council","http://opendatacommunities.org/id/unitary-authority/bracknell-forest","Bracknell Forest Council","00MA","Non-School Funding","Adult & Community Learning","Adult and Community Learning Plan","External Agency Services",01/12/2010 00:00:00,"6419977",2160,"THE ARK TRUST LTD"
"Bracknell Forest Council","http://opendatacommunities.org/id/unitary-authority/bracknell-forest","Bracknell Forest Council","00MA","Non-School Funding","Adult & Community Learning","Adult and Community Learning Plan","External Agency Services",01/10/2010 00:00:00,"6419978",2160,"THE ARK TRUST LTD"
"Bracknell Forest Council","http://opendatacommunities.org/id/unitary-authority/bracknell-forest","Bracknell Forest Council","00MA","Non-School Funding","Adult & Community Learning","Adult and Community Learning Plan","External Agency Services",31/07/2010 00:00:00,"6422540",2505,"THE ARK TRUST LTD"
"Bracknell Forest Council","http://opendatacommunities.org/id/unitary-authority/bracknell-forest","Bracknell Forest Council","00MA","Children Looked After (CLA)","Children's Homes","C&F Learning Disability Placements","Voluntary Sector Service Providers",30/07/2010 00:00:00,"6420970",1036.8,"THE CHILTERN CENTRE FOR DISABLED CHILDREN LTD"
"Bracknell Forest Council","http://opendatacommunities.org/id/unitary-authority/bracknell-forest","Bracknell Forest Council","00MA","Family Support Services","Family Centres","Sec 28A - Day Centre Purchases","Voluntary Sector Service Providers",30/07/2010 00:00:00,"6420970",1555.2,"THE CHILTERN CENTRE FOR DISABLED CHILDREN LTD"
"Bracknell Forest Council","http://opendatacommunities.org/id/unitary-authority/bracknell-forest","Bracknell Forest Council","00MA","Family Support Services","Family Centres","Sec 28A - Day Centre Purchases","Voluntary Sector Service Providers",31/07/2010 00:00:00,"6420971",2592,"THE CHILTERN CENTRE FOR DISABLED CHILDREN LTD"
"Bracknell Forest Council","http://opendatacommunities.org/id/unitary-authority/bracknell-forest","Bracknell Forest Council","00MA","Family Support Services","Family Centres","Sec 28A - Day Centre Purchases","Voluntary Sector Service Providers",31/08/2010 00:00:00,"6422623",2592,"THE CHILTERN CENTRE FOR DISABLED CHILDREN LTD"
"Bracknell Forest Council","http://opendatacommunities.org/id/unitary-authority/bracknell-forest","Bracknell Forest Council","00MA","Children Looked After (CLA)","Children's Homes","C&F Learning Disability Placements","Voluntary Sector Service Providers",31/08/2010 00:00:00,"6422624",1036.8,"THE CHILTERN CENTRE FOR DISABLED CHILDREN LTD"
"Bracknell Forest Council","http://opendatacommunities.org/id/unitary-authority/bracknell-forest","Bracknell Forest Council","00MA","Family Support Services","Family Centres","Sec 28A - Day Centre Purchases","Voluntary Sector Service Providers",31/08/2010 00:00:00,"6422624",1555.2,"THE CHILTERN CENTRE FOR DISABLED CHILDREN LTD"
"Bracknell Forest Council","http://opendatacommunities.org/id/unitary-authority/bracknell-forest","Bracknell Forest Council","00MA","Planning Policy","Structure & Local Planning","Planning Policy","Consultants Fees",31/12/2009 00:00:00,"6422799",1640,"THE CONSERVATION STUDIO"
"Bracknell Forest Council","http://opendatacommunities.org/id/unitary-authority/bracknell-forest","Bracknell Forest Council","00MA","Special Schools","Other Special Related Expenditure","Supporting Special Educational Needs","Voluntary Sector Service Providers",25/08/2010 00:00:00,"6420952",21738,"THE DISABILITIES TRUST"
"Bracknell Forest Council","http://opendatacommunities.org/id/unitary-authority/bracknell-forest","Bracknell Forest Council","00MA","Special Schools","Other Special Related Expenditure","Supporting Special Educational Needs","Voluntary Sector Service Providers",25/08/2010 00:00:00,"6420953",24395.29,"THE DISABILITIES TRUST"
"Bracknell Forest Council","http://opendatacommunities.org/id/unitary-authority/bracknell-forest","Bracknell Forest Council","00MA","Housing Benefits Administration","Housing Benefits Administration","Benefits Administration","Printing and Design",31/08/2010 00:00:00,"6421613",920,"THE FAIRWAY PRESS LIMITED"
"Bracknell Forest Council","http://opendatacommunities.org/id/unitary-authority/bracknell-forest","Bracknell Forest Council","00MA","Children Looked After (CLA)","Fostering Services","BFBC Fostering Allowances","Client Training & Support",01/04/2010 00:00:00,"6422348",627.9,"THE FOSTERING NETWORK"
"Bracknell Forest Council","http://opendatacommunities.org/id/unitary-authority/bracknell-forest","Bracknell Forest Council","00MA","Libraries","Stock Ordering, Cataloguing & Distribution","Library Book Fund","Audio/Visual materials",27/08/2010 00:00:00,"6421192",500.66,"THE HOLT JACKSON BOOK COMPANY LIMITED"
"Bracknell Forest Council","http://opendatacommunities.org/id/unitary-authority/bracknell-forest","Bracknell Forest Council","00MA","Libraries","Stock Ordering, Cataloguing & Distribution","Library Book Fund","Audio/Visual materials",17/09/2010 00:00:00,"6422924",615.58,"THE HOLT JACKSON BOOK COMPANY LIMITED"
"Bracknell Forest Council","http://opendatacommunities.org/id/unitary-authority/bracknell-forest","Bracknell Forest Council","00MA","Older People (Aged 65 or Over)","Residential Care Home Placements","Residential Placements-Elderly","Contracted Services",06/09/2010 00:00:00,"30160451",2474.28,"THE HOMESTEAD (CROWTHORNE) LTD"
"Bracknell Forest Council","http://opendatacommunities.org/id/unitary-authority/bracknell-forest","Bracknell Forest Council","00MA","Older People (Aged 65 or Over)","Residential Care Home Placements","Residential Placements-Elderly","Contracted Services",06/09/2010 00:00:00,"30160451",1819.12,"THE HOMESTEAD (CROWTHORNE) LTD"
"Bracknell Forest Council","http://opendatacommunities.org/id/unitary-authority/bracknell-forest","Bracknell Forest Council","00MA","Older People (Aged 65 or Over)","Residential Care Home Placements","Residential Placements MH 65 and Over","Contracted Services",06/09/2010 00:00:00,"30160451",2201.92,"THE HOMESTEAD (CROWTHORNE) LTD"
"Bracknell Forest Council","http://opendatacommunities.org/id/unitary-authority/bracknell-forest","Bracknell Forest Council","00MA","Older People (Aged 65 or Over)","Residential Care Home Placements","Residential Placements-Elderly","Contracted Services",28/09/2010 00:00:00,"30161409",2474.28,"THE HOMESTEAD (CROWTHORNE) LTD"
"Bracknell Forest Council","http://opendatacommunities.org/id/unitary-authority/bracknell-forest","Bracknell Forest Council","00MA","Older People (Aged 65 or Over)","Residential Care Home Placements","Residential Placements MH 65 and Over","Contracted Services",28/09/2010 00:00:00,"30161409",2201.92,"THE HOMESTEAD (CROWTHORNE) LTD"
"Bracknell Forest Council","http://opendatacommunities.org/id/unitary-authority/bracknell-forest","Bracknell Forest Council","00MA","Older People (Aged 65 or Over)","Residential Care Home Placements","Residential Placements-Elderly","Contracted Services",28/09/2010 00:00:00,"30161409",1819.12,"THE HOMESTEAD (CROWTHORNE) LTD"
"Bracknell Forest Council","http://opendatacommunities.org/id/unitary-authority/bracknell-forest","Bracknell Forest Council","00MA","Trading Standards","Weights & Measures","Trading Standards","Other Fees for Bought-in Services",24/08/2010 00:00:00,"6421403",600,"THE LIGHTING ASSOCIATION"
"Bracknell Forest Council","http://opendatacommunities.org/id/unitary-authority/bracknell-forest","Bracknell Forest Council","00MA","Learning Disability (under 65)","Homecare","Supported Living (Homecare) LD","Contracted Services",21/09/2010 00:00:00,"30161149",6288.52,"THE LINK NURSING & CARE AGENCY"
"Bracknell Forest Council","http://opendatacommunities.org/id/unitary-authority/bracknell-forest","Bracknell Forest Council","00MA","Learning Disability (under 65)","Homecare","Supported Living (Homecare) LD","Contracted Services",21/09/2010 00:00:00,"30161149",6292.16,"THE LINK NURSING & CARE AGENCY"
"Bracknell Forest Council","http://opendatacommunities.org/id/unitary-authority/bracknell-forest","Bracknell Forest Council","00MA","Learning Disability (under 65)","Homecare","Supported Living (Homecare) LD","Contracted Services",21/09/2010 00:00:00,"30161149",600,"THE LINK NURSING & CARE AGENCY"
"Bracknell Forest Council","http://opendatacommunities.org/id/unitary-authority/bracknell-forest","Bracknell Forest Council","00MA","Learning Disability (under 65)","Homecare","Supported Living (Homecare) LD","Contracted Services",30/09/2010 00:00:00,"30161559",1697.25,"THE LINK NURSING & CARE AGENCY"
"Bracknell Forest Council","http://opendatacommunities.org/id/unitary-authority/bracknell-forest","Bracknell Forest Council","00MA","Learning Disability (under 65)","Day Care","Supported Living (Day Care) LD","Contracted Services",30/09/2010 00:00:00,"30161559",5152.5,"THE LINK NURSING & CARE AGENCY"
"Bracknell Forest Council","http://opendatacommunities.org/id/unitary-authority/bracknell-forest","Bracknell Forest Council","00MA","Older People (Aged 65 or Over)","Nursing Home Placements","Nursing Home Placements-Elderly","Contracted Services",06/09/2010 00:00:00,"30160451",2358.48,"THE MANOR HOUSE"
"Bracknell Forest Council","http://opendatacommunities.org/id/unitary-authority/bracknell-forest","Bracknell Forest Council","00MA","Older People (Aged 65 or Over)","Nursing Home Placements","Nursing Home Placements-Elderly","Contracted Services",28/09/2010 00:00:00,"30161409",2358.48,"THE MANOR HOUSE"
"Bracknell Forest Council","http://opendatacommunities.org/id/unitary-authority/bracknell-forest","Bracknell Forest Council","00MA","Older People (Aged 65 or Over)","Residential Care Home Placements","Residential Placements-Elderly","Contracted Services",06/09/2010 00:00:00,"30160451",1587.12,"ANCHOR TRUST"
"Bracknell Forest Council","http://opendatacommunities.org/id/unitary-authority/bracknell-forest","Bracknell Forest Council","00MA","Older People (Aged 65 or Over)","Residential Care Home Placements","Residential Placements-Elderly","Contracted Services",28/09/2010 00:00:00,"30161409",1587.12,"ANCHOR TRUST"
"Bracknell Forest Council","http://opendatacommunities.org/id/unitary-authority/bracknell-forest","Bracknell Forest Council","00MA","Learning Disability (under 65)","Direct Payments - LD","Direct Payments - LD","Direct Payments to Clients",05/10/2010 00:00:00,"6422954",835.31,"REDACTED PERSONAL DATA"
"Bracknell Forest Council","http://opendatacommunities.org/id/unitary-authority/bracknell-forest","Bracknell Forest Council","00MA","Older People (Aged 65 or Over)","Home Care","Home Care-Elderly","Contracted Services",07/09/2010 00:00:00,"30160470",1195.2,"ANGELCARE NURSING AGENCY"
"Bracknell Forest Council","http://opendatacommunities.org/id/unitary-authority/bracknell-forest","Bracknell Forest Council","00MA","Older People (Aged 65 or Over)","Home Care","Home Care-Elderly","Contracted Services",07/09/2010 00:00:00,"30160470",1559.6,"ANGELCARE NURSING AGENCY"
"Bracknell Forest Council","http://opendatacommunities.org/id/unitary-authority/bracknell-forest","Bracknell Forest Council","00MA","Older People (Aged 65 or Over)","Home Care","Home Care-Elderly","Contracted Services",07/09/2010 00:00:00,"30160470",1612.8,"ANGELCARE NURSING AGENCY"
"Bracknell Forest Council","http://opendatacommunities.org/id/unitary-authority/bracknell-forest","Bracknell Forest Council","00MA","Older People (Aged 65 or Over)","Home Care","Home Care-Elderly","Contracted Services",07/09/2010 00:00:00,"30160470",547,"ANGELCARE NURSING AGENCY"
"Bracknell Forest Council","http://opendatacommunities.org/id/unitary-authority/bracknell-forest","Bracknell Forest Council","00MA","Older People (Aged 65 or Over)","Home Care","Home Care-Elderly","Contracted Services",07/09/2010 00:00:00,"30160470",1209.6,"ANGELCARE NURSING AGENCY"
"Bracknell Forest Council","http://opendatacommunities.org/id/unitary-authority/bracknell-forest","Bracknell Forest Council","00MA","Central Support Services - COF","Construction and Property","Depot Facilities","Materials",13/09/2010 00:00:00,"6422875",747.5,"ARCHWAY (TCS) LTD"
"Bracknell Forest Council","http://opendatacommunities.org/id/unitary-authority/bracknell-forest","Bracknell Forest Council","00MA","Holding Accounts in Budget Book COF","Corporate Serv - Reprographics & Printing","Reprographics & Printing","Printing and Design",21/09/2010 00:00:00,"6422839",957.63,"ARGON PROMOTIONS"
"Bracknell Forest Council","http://opendatacommunities.org/id/unitary-authority/bracknell-forest","Bracknell Forest Council","00MA","Recreation, Sports and Leisure","Retail Services, Catering & Licenced","Easthampstead Park Conference Centre","Minor Improvement Schemes",22/08/2010 00:00:00,"6420382",1675.43,"ARGOS BUSINESS SOLUTIONS"
"Bracknell Forest Council","http://opendatacommunities.org/id/unitary-authority/bracknell-forest","Bracknell Forest Council","00MA","Vehicles &  Plant","Vehicles and Plant Summary Account","Fuel Card Holding Account","Petrol",31/08/2010 00:00:00,"6420936",6383.35,"ARVAL UK LTD"
"Bracknell Forest Council","http://opendatacommunities.org/id/unitary-authority/bracknell-forest","Bracknell Forest Council","00MA","-","-","Asbestos Management","Construction - Other Direct Expenses",25/08/2010 00:00:00,"6421150",6289,"ASBESTECH LIMITED"
"Bracknell Forest Council","http://opendatacommunities.org/id/unitary-authority/bracknell-forest","Bracknell Forest Council","00MA","Non-School Funding","Pre-School Education","Early Years and Childcare","Grants and Donations",17/09/2010 00:00:00,"6422497",604.8,"ASCOT & CRANBOURNE PRE-SCHOOL"
"Bracknell Forest Council","http://opendatacommunities.org/id/unitary-authority/bracknell-forest","Bracknell Forest Council","00MA","Recreation, Sports and Leisure","Golf Courses","Leisure DSO - Downshire Golf Shop","Cost of Goods Sold",27/07/2010 00:00:00,"6420814",866.5,"THE MASTERS GOLF COMPANY"
"Bracknell Forest Council","http://opendatacommunities.org/id/unitary-authority/bracknell-forest","Bracknell Forest Council","00MA","Non-School Funding","Pre-School Education","Two year Old ELEC","Voluntary Sector Service Providers",17/09/2010 00:00:00,"6422449",907.2,"THE OAKS PRE SCHOOL"
"Bracknell Forest Council","http://opendatacommunities.org/id/unitary-authority/bracknell-forest","Bracknell Forest Council","00MA","Service Management & Support Services","Service Management & Support Services","Training - Planning & Transport","Training Costs",06/09/2010 00:00:00,"6423130",3900,"THE OFFICE OF PUBLIC MANAGEMENT"
"Bracknell Forest Council","http://opendatacommunities.org/id/unitary-authority/bracknell-forest","Bracknell Forest Council","00MA","-","-","Family Tree Children's Centre","Consultant Fees",31/08/2010 00:00:00,"6421783",3225,"THE PELLING WAITE PARTNERSHIP"
"Bracknell Forest Council","http://opendatacommunities.org/id/unitary-authority/bracknell-forest","Bracknell Forest Council","00MA","-","-","Family Tree Children's Centre","Consultant Fees",11/09/2010 00:00:00,"6422615",6606.75,"THE PELLING WAITE PARTNERSHIP"
"Bracknell Forest Council","http://opendatacommunities.org/id/unitary-authority/bracknell-forest","Bracknell Forest Council","00MA","Learning Disability (under 65)","Residential Care Home Placements","Residential Placements-Lrng Disab","Contracted Services",06/09/2010 00:00:00,"30160451",2756,"THE PINES"
"Bracknell Forest Council","http://opendatacommunities.org/id/unitary-authority/bracknell-forest","Bracknell Forest Council","00MA","Learning Disability (under 65)","Day Care","Day Centre Placements-Lrng Disab","Contracted Services",21/09/2010 00:00:00,"30161149",712.32,"THE PINES"
"Bracknell Forest Council","http://opendatacommunities.org/id/unitary-authority/bracknell-forest","Bracknell Forest Council","00MA","Learning Disability (under 65)","Residential Care Home Placements","Residential Placements-Lrng Disab","Contracted Services",28/09/2010 00:00:00,"30161409",2756,"THE PINES"
"Bracknell Forest Council","http://opendatacommunities.org/id/unitary-authority/bracknell-forest","Bracknell Forest Council","00MA","Recreation, Sports and Leisure","Retail Services, Catering & Licenced","Easthampstead Park Centre - Catering","Cost of Goods Sold",16/08/2010 00:00:00,"6421034",618.72,"THE QUALITY MEAT COMPANY"
"Bracknell Forest Council","http://opendatacommunities.org/id/unitary-authority/bracknell-forest","Bracknell Forest Council","00MA","Recreation, Sports and Leisure","Retail Services, Catering & Licenced","Easthampstead Park Centre - Catering","Cost of Goods Sold",23/08/2010 00:00:00,"6421035",769.75,"THE QUALITY MEAT COMPANY"
"Bracknell Forest Council","http://opendatacommunities.org/id/unitary-authority/bracknell-forest","Bracknell Forest Council","00MA","Recreation, Sports and Leisure","Retail Services, Catering & Licenced","Easthampstead Park Centre - Catering","Cost of Goods Sold",31/08/2010 00:00:00,"6421908",554.72,"THE QUALITY MEAT COMPANY"
"Bracknell Forest Council","http://opendatacommunities.org/id/unitary-authority/bracknell-forest","Bracknell Forest Council","00MA","Recreation, Sports and Leisure","Retail Services, Catering & Licenced","Easthampstead Park Centre - Catering","Cost of Goods Sold",04/09/2010 00:00:00,"6422589",882,"THE QUALITY MEAT COMPANY"
"Bracknell Forest Council","http://opendatacommunities.org/id/unitary-authority/bracknell-forest","Bracknell Forest Council","00MA","-","-","Improvements & Capitalised Repairs (Council Wide)","Consultant Fees",30/07/2010 00:00:00,"6420828",630,"THE QUOIN CONSULTANCY"
"Bracknell Forest Council","http://opendatacommunities.org/id/unitary-authority/bracknell-forest","Bracknell Forest Council","00MA","-","-","Planned Maintenance (Leisure)","Construction - Contract Payments",31/07/2010 00:00:00,"6420996",630,"THE QUOIN CONSULTANCY"
"Bracknell Forest Council","http://opendatacommunities.org/id/unitary-authority/bracknell-forest","Bracknell Forest Council","00MA","Older People (Aged 65 or Over)","Nursing Home Placements","Nursing Home Placements MH 65 and Over","Contracted Services",06/09/2010 00:00:00,"30160451",7687.32,"ASCOT NURSING HOME LTD"
"Bracknell Forest Council","http://opendatacommunities.org/id/unitary-authority/bracknell-forest","Bracknell Forest Council","00MA","Physical Disability/Sensory Impairment","Nursing Home Placements","Nursing Home Placements-Physical Disabty","Contracted Services",06/09/2010 00:00:00,"30160451",4246.48,"ASCOT NURSING HOME LTD"
"Bracknell Forest Council","http://opendatacommunities.org/id/unitary-authority/bracknell-forest","Bracknell Forest Council","00MA","Mental Health Needs (Under 65)","Nursing Home Placements","Nursing Home Placements-Mental Illness","Contracted Services",06/09/2010 00:00:00,"30160451",2500,"ASCOT NURSING HOME LTD"
"Bracknell Forest Council","http://opendatacommunities.org/id/unitary-authority/bracknell-forest","Bracknell Forest Council","00MA","Mental Health Needs (Under 65)","Nursing Home Placements","Nursing Home Placements-Mental Illness","Contracted Services",28/09/2010 00:00:00,"30161409",2500,"ASCOT NURSING HOME LTD"
"Bracknell Forest Council","http://opendatacommunities.org/id/unitary-authority/bracknell-forest","Bracknell Forest Council","00MA","Older People (Aged 65 or Over)","Nursing Home Placements","Nursing Home Placements MH 65 and Over","Contracted Services",28/09/2010 00:00:00,"30161409",7687.32,"ASCOT NURSING HOME LTD"
"Bracknell Forest Council","http://opendatacommunities.org/id/unitary-authority/bracknell-forest","Bracknell Forest Council","00MA","Physical Disability/Sensory Impairment","Nursing Home Placements","Nursing Home Placements-Physical Disabty","Contracted Services",28/09/2010 00:00:00,"30161409",4246.48,"ASCOT NURSING HOME LTD"
"Bracknell Forest Council","http://opendatacommunities.org/id/unitary-authority/bracknell-forest","Bracknell Forest Council","00MA","Older People (Aged 65 or Over)","Residential Care Home Placements","Residential Placements MH 65 and Over","Contracted Services",06/09/2010 00:00:00,"30160451",9400,"ASCOT RESIDENTIAL HOMES LTD"
"Bracknell Forest Council","http://opendatacommunities.org/id/unitary-authority/bracknell-forest","Bracknell Forest Council","00MA","Older People (Aged 65 or Over)","Residential Care Home Placements","Residential Placements-Elderly","Contracted Services",06/09/2010 00:00:00,"30160451",1819.12,"ASCOT RESIDENTIAL HOMES LTD"
"Bracknell Forest Council","http://opendatacommunities.org/id/unitary-authority/bracknell-forest","Bracknell Forest Council","00MA","Older People (Aged 65 or Over)","Nursing Home Placements","Nursing Home Placements-Elderly","Contracted Services",06/09/2010 00:00:00,"30160451",2567.6,"ASCOT RESIDENTIAL HOMES LTD"
"Bracknell Forest Council","http://opendatacommunities.org/id/unitary-authority/bracknell-forest","Bracknell Forest Council","00MA","Older People (Aged 65 or Over)","Nursing Home Placements","Nursing Home Placements-Elderly","Contracted Services",06/09/2010 00:00:00,"30160451",2306.12,"ASCOT RESIDENTIAL HOMES LTD"
"Bracknell Forest Council","http://opendatacommunities.org/id/unitary-authority/bracknell-forest","Bracknell Forest Council","00MA","Older People (Aged 65 or Over)","Nursing Home Placements","Nursing Home Placements-Elderly","Contracted Services",06/09/2010 00:00:00,"30160451",2358.48,"ASCOT RESIDENTIAL HOMES LTD"
"Bracknell Forest Council","http://opendatacommunities.org/id/unitary-authority/bracknell-forest","Bracknell Forest Council","00MA","Older People (Aged 65 or Over)","Residential Care Home Placements","Residential Placements-Elderly","Contracted Services",06/09/2010 00:00:00,"30160451",1864.32,"ASCOT RESIDENTIAL HOMES LTD"
"Bracknell Forest Council","http://opendatacommunities.org/id/unitary-authority/bracknell-forest","Bracknell Forest Council","00MA","Older People (Aged 65 or Over)","Nursing Home Placements","Nursing Home Placements-Elderly","Contracted Services",06/09/2010 00:00:00,"30160451",2358.48,"ASCOT RESIDENTIAL HOMES LTD"
"Bracknell Forest Council","http://opendatacommunities.org/id/unitary-authority/bracknell-forest","Bracknell Forest Council","00MA","Older People (Aged 65 or Over)","Other Services To Older People","Stroke Grant","Contracted Services",01/04/2010 00:00:00,"6423124",9719.5,"THE STROKE ASSOCIATION"
"Bracknell Forest Council","http://opendatacommunities.org/id/unitary-authority/bracknell-forest","Bracknell Forest Council","00MA","Older People (Aged 65 or Over)","Other Services To Older People","Stroke Grant","Contracted Services",01/07/2010 00:00:00,"6423125",9719.5,"THE STROKE ASSOCIATION"
"Bracknell Forest Council","http://opendatacommunities.org/id/unitary-authority/bracknell-forest","Bracknell Forest Council","00MA","Older People (Aged 65 or Over)","Other Services To Older People","Stroke Grant","Contracted Services",01/10/2010 00:00:00,"6423126",9719.5,"THE STROKE ASSOCIATION"
"Bracknell Forest Council","http://opendatacommunities.org/id/unitary-authority/bracknell-forest","Bracknell Forest Council","00MA","-","-","Replacement Revenue & Benefits System","IT Consultants",13/08/2010 00:00:00,"6419950",1194.75,"THE SYNERGY GROUP LTD"
"Bracknell Forest Council","http://opendatacommunities.org/id/unitary-authority/bracknell-forest","Bracknell Forest Council","00MA","-","-","Replacement Revenue & Benefits System","IT Consultants",06/08/2010 00:00:00,"6419953",1188,"THE SYNERGY GROUP LTD"
"Bracknell Forest Council","http://opendatacommunities.org/id/unitary-authority/bracknell-forest","Bracknell Forest Council","00MA","-","-","Replacement Revenue & Benefits System","IT Consultants",06/08/2010 00:00:00,"6419954",952,"THE SYNERGY GROUP LTD"
"Bracknell Forest Council","http://opendatacommunities.org/id/unitary-authority/bracknell-forest","Bracknell Forest Council","00MA","Housing Benefits Administration","Housing Benefits Administration","Benefits Administration","Agency",20/08/2010 00:00:00,"6420272",1066.5,"THE SYNERGY GROUP LTD"
"Bracknell Forest Council","http://opendatacommunities.org/id/unitary-authority/bracknell-forest","Bracknell Forest Council","00MA","-","-","Replacement Revenue & Benefits System","IT Consultants",20/08/2010 00:00:00,"6420522",1224,"THE SYNERGY GROUP LTD"
"Bracknell Forest Council","http://opendatacommunities.org/id/unitary-authority/bracknell-forest","Bracknell Forest Council","00MA","-","-","Replacement Revenue & Benefits System","IT Consultants",20/08/2010 00:00:00,"6420523",843.75,"THE SYNERGY GROUP LTD"
"Bracknell Forest Council","http://opendatacommunities.org/id/unitary-authority/bracknell-forest","Bracknell Forest Council","00MA","Housing Benefits Administration","Housing Benefits Administration","Benefits Administration","Agency",27/08/2010 00:00:00,"6420928",1080,"THE SYNERGY GROUP LTD"
"Bracknell Forest Council","http://opendatacommunities.org/id/unitary-authority/bracknell-forest","Bracknell Forest Council","00MA","Housing Benefits Administration","Housing Benefits Administration","Benefits Administration","Agency",03/09/2010 00:00:00,"6421375",1269,"THE SYNERGY GROUP LTD"
"Bracknell Forest Council","http://opendatacommunities.org/id/unitary-authority/bracknell-forest","Bracknell Forest Council","00MA","-","-","Replacement Revenue & Benefits System","IT Consultants",27/08/2010 00:00:00,"6421714",1326,"THE SYNERGY GROUP LTD"
"Bracknell Forest Council","http://opendatacommunities.org/id/unitary-authority/bracknell-forest","Bracknell Forest Council","00MA","-","-","Replacement Revenue & Benefits System","IT Consultants",27/08/2010 00:00:00,"6421715",945,"THE SYNERGY GROUP LTD"
"Bracknell Forest Council","http://opendatacommunities.org/id/unitary-authority/bracknell-forest","Bracknell Forest Council","00MA","Housing Benefits Administration","Housing Benefits Administration","Benefits Administration","Agency",10/09/2010 00:00:00,"6422142",999,"THE SYNERGY GROUP LTD"
"Bracknell Forest Council","http://opendatacommunities.org/id/unitary-authority/bracknell-forest","Bracknell Forest Council","00MA","-","-","Replacement Revenue & Benefits System","IT Consultants",03/09/2010 00:00:00,"6422533",999,"THE SYNERGY GROUP LTD"
"Bracknell Forest Council","http://opendatacommunities.org/id/unitary-authority/bracknell-forest","Bracknell Forest Council","00MA","-","-","Replacement Revenue & Benefits System","IT Consultants",10/09/2010 00:00:00,"6422534",945,"THE SYNERGY GROUP LTD"
"Bracknell Forest Council","http://opendatacommunities.org/id/unitary-authority/bracknell-forest","Bracknell Forest Council","00MA","-","-","Replacement Revenue & Benefits System","IT Consultants",10/09/2010 00:00:00,"6422535",918,"THE SYNERGY GROUP LTD"
"Bracknell Forest Council","http://opendatacommunities.org/id/unitary-authority/bracknell-forest","Bracknell Forest Council","00MA","-","-","Replacement Revenue & Benefits System","IT Consultants",03/09/2010 00:00:00,"6422536",1190,"THE SYNERGY GROUP LTD"
"Bracknell Forest Council","http://opendatacommunities.org/id/unitary-authority/bracknell-forest","Bracknell Forest Council","00MA","Environmental Health","Pollution Control","Pollution Control","Agency",17/09/2010 00:00:00,"6423593",756,"THE SYNERGY GROUP LTD"
"Bracknell Forest Council","http://opendatacommunities.org/id/unitary-authority/bracknell-forest","Bracknell Forest Council","00MA","Corporate Management COF","Corporate Management COF","Cserv. - Tax Making & Statutory Account","Subscriptions",31/08/2010 00:00:00,"6422059",680,"THE VAT CONSULTANCY"
"Bracknell Forest Council","http://opendatacommunities.org/id/unitary-authority/bracknell-forest","Bracknell Forest Council","00MA","Learning Disability (under 65)","Residential Care Home Placements","Residential Placements-Lrng Disab","Contracted Services",06/09/2010 00:00:00,"30160451",6813.8,"THF CARE ESTATES LIMITED"
"Bracknell Forest Council","http://opendatacommunities.org/id/unitary-authority/bracknell-forest","Bracknell Forest Council","00MA","Learning Disability (under 65)","Residential Care Home Placements","Residential Placements-Lrng Disab","Contracted Services",28/09/2010 00:00:00,"30161409",6813.8,"THF CARE ESTATES LIMITED"
"Bracknell Forest Council","http://opendatacommunities.org/id/unitary-authority/bracknell-forest","Bracknell Forest Council","00MA","-","-","Holly Spring Infant and Junior","Consultant Fees",19/08/2010 00:00:00,"6421228",800,"THOMSON RODDICK & LAURIE"
"Bracknell Forest Council","http://opendatacommunities.org/id/unitary-authority/bracknell-forest","Bracknell Forest Council","00MA","Older People (Aged 65 or Over)","Nursing Home Placements","Nursing Home Placements-Elderly","Contracted Services",06/09/2010 00:00:00,"30160451",1923.68,"TICEHURST NURSING HOME"
"Bracknell Forest Council","http://opendatacommunities.org/id/unitary-authority/bracknell-forest","Bracknell Forest Council","00MA","Older People (Aged 65 or Over)","Nursing Home Placements","Nursing Home Placements-Elderly","Contracted Services",28/09/2010 00:00:00,"30161409",618.33,"TICEHURST NURSING HOME"
"Bracknell Forest Council","http://opendatacommunities.org/id/unitary-authority/bracknell-forest","Bracknell Forest Council","00MA","Housing Benefits Administration","Housing Benefits Administration","Benefits Administration","Agency",22/08/2010 00:00:00,"6419923",650,"TOBS CONSULTING LIMITED"
"Bracknell Forest Council","http://opendatacommunities.org/id/unitary-authority/bracknell-forest","Bracknell Forest Council","00MA","Housing Benefits Administration","Housing Benefits Administration","Benefits Administration","Consultants Fees",22/08/2010 00:00:00,"6419923",1140,"TOBS CONSULTING LIMITED"
"Bracknell Forest Council","http://opendatacommunities.org/id/unitary-authority/bracknell-forest","Bracknell Forest Council","00MA","Housing Benefits Administration","Housing Benefits Administration","Benefits Administration","Consultants Fees",29/08/2010 00:00:00,"6420673",1140,"TOBS CONSULTING LIMITED"
"Bracknell Forest Council","http://opendatacommunities.org/id/unitary-authority/bracknell-forest","Bracknell Forest Council","00MA","Housing Benefits Administration","Housing Benefits Administration","Benefits Administration","Consultants Fees",05/09/2010 00:00:00,"6421367",1140,"TOBS CONSULTING LIMITED"
"Bracknell Forest Council","http://opendatacommunities.org/id/unitary-authority/bracknell-forest","Bracknell Forest Council","00MA","Housing Benefits Administration","Housing Benefits Administration","Benefits Administration","Consultants Fees",12/09/2010 00:00:00,"6422201",1170,"TOBS CONSULTING LIMITED"
"Bracknell Forest Council","http://opendatacommunities.org/id/unitary-authority/bracknell-forest","Bracknell Forest Council","00MA","Older People (Aged 65 or Over)","Residential Care Home Placements","Ladybank EPH","Gas",21/09/2010 00:00:00,"30161099",233.91,"TOTAL GAS"
"Bracknell Forest Council","http://opendatacommunities.org/id/unitary-authority/bracknell-forest","Bracknell Forest Council","00MA","Older People (Aged 65 or Over)","Residential Care Home Placements","Ladybank EPH","Gas",21/09/2010 00:00:00,"30161099",114.1,"TOTAL GAS"
"Bracknell Forest Council","http://opendatacommunities.org/id/unitary-authority/bracknell-forest","Bracknell Forest Council","00MA","Older People (Aged 65 or Over)","Day Care","Heathlands Day Centre","Gas",21/09/2010 00:00:00,"30161099",-52.95,"TOTAL GAS"
"Bracknell Forest Council","http://opendatacommunities.org/id/unitary-authority/bracknell-forest","Bracknell Forest Council","00MA","Older People (Aged 65 or Over)","Residential Care Home Placements","Ladybank EPH","Gas",21/09/2010 00:00:00,"30161099",515.22,"TOTAL GAS"
"Bracknell Forest Council","http://opendatacommunities.org/id/unitary-authority/bracknell-forest","Bracknell Forest Council","00MA","Older People (Aged 65 or Over)","Day Care","Heathlands Day Centre","Gas",21/09/2010 00:00:00,"30161099",17.76,"TOTAL GAS"
"Bracknell Forest Council","http://opendatacommunities.org/id/unitary-authority/bracknell-forest","Bracknell Forest Council","00MA","Older People (Aged 65 or Over)","Day Care","Heathlands Day Centre","Gas",21/09/2010 00:00:00,"30161099",82.59,"TOTAL GAS"
"Bracknell Forest Council","http://opendatacommunities.org/id/unitary-authority/bracknell-forest","Bracknell Forest Council","00MA","Older People (Aged 65 or Over)","Day Care","Heathlands Day Centre","Gas",21/09/2010 00:00:00,"30161099",57.78,"TOTAL GAS"
"Bracknell Forest Council","http://opendatacommunities.org/id/unitary-authority/bracknell-forest","Bracknell Forest Council","00MA","Physical Disability/Sensory Impairment","Day Care","Downside Resource Centre","Gas",21/09/2010 00:00:00,"30161099",86.28,"TOTAL GAS"
"Bracknell Forest Council","http://opendatacommunities.org/id/unitary-authority/bracknell-forest","Bracknell Forest Council","00MA","Physical Disability/Sensory Impairment","Day Care","Downside Resource Centre","Gas",21/09/2010 00:00:00,"30161099",91.76,"TOTAL GAS"
"Bracknell Forest Council","http://opendatacommunities.org/id/unitary-authority/bracknell-forest","Bracknell Forest Council","00MA","Primary Schools","Delegated Primary School Budgets","Ascot Heath - Junior","Gas",21/09/2010 00:00:00,"30161099",44.33,"TOTAL GAS"
"Bracknell Forest Council","http://opendatacommunities.org/id/unitary-authority/bracknell-forest","Bracknell Forest Council","00MA","Primary Schools","Delegated Primary School Budgets","Ascot Heath - Junior","Gas",21/09/2010 00:00:00,"30161099",11.62,"TOTAL GAS"
"Bracknell Forest Council","http://opendatacommunities.org/id/unitary-authority/bracknell-forest","Bracknell Forest Council","00MA","Primary Schools","Delegated Primary School Budgets","Ascot Heath - Infant","Gas",21/09/2010 00:00:00,"30161099",44.33,"TOTAL GAS"
"Bracknell Forest Council","http://opendatacommunities.org/id/unitary-authority/bracknell-forest","Bracknell Forest Council","00MA","Primary Schools","Delegated Primary School Budgets","Ascot Heath - Infant","Gas",21/09/2010 00:00:00,"30161099",39.42,"TOTAL GAS"
"Bracknell Forest Council","http://opendatacommunities.org/id/unitary-authority/bracknell-forest","Bracknell Forest Council","00MA","Learning Disability (under 65)","Day Care","Bracknell Day Services","Gas",21/09/2010 00:00:00,"30161099",91.76,"TOTAL GAS"
"Bracknell Forest Council","http://opendatacommunities.org/id/unitary-authority/bracknell-forest","Bracknell Forest Council","00MA","Learning Disability (under 65)","Day Care","Bracknell Day Services","Gas",21/09/2010 00:00:00,"30161099",143.31,"TOTAL GAS"
"Bracknell Forest Council","http://opendatacommunities.org/id/unitary-authority/bracknell-forest","Bracknell Forest Council","00MA","Learning Disability (under 65)","Residential Care Home Placements","Waymead - Short Stay","Gas",21/09/2010 00:00:00,"30161099",91.76,"TOTAL GAS"
